Publisher Label,Publisher URI,"Body Name","Service Area Categorisation","Service Division Categorisation","Expenses Type","Date","Transaction Number","Amount","Capital or Revenue","Supplier Name","Merchant Category"
"Peterborough","http://opendatacommunities.org/id/unitary-authority/peterborough","Peterborough City Council","Adults","Community Team","Agency Staff",02/10/2017 00:00:00,30131992,1435.2,"Revenue","Swim Recruitment","External Temporary Staff"
"Peterborough","http://opendatacommunities.org/id/unitary-authority/peterborough","Peterborough City Council","Communities","Housing Enforcement","Customer and client receipts - Fees & Charges",02/10/2017 00:00:00,30136601,750,"Revenue","City Homes Estate Agents Ltd","Refunds"
"Peterborough","http://opendatacommunities.org/id/unitary-authority/peterborough","Peterborough City Council","Adults","Day opportunities - Older People","Agency Staff",02/10/2017 00:00:00,30140404,-1392.9,"Revenue","Swim Recruitment","External Temporary Staff"
"Peterborough","http://opendatacommunities.org/id/unitary-authority/peterborough","Peterborough City Council","Children's & Safeguarding","Children's Social Care","Agency Staff",02/10/2017 00:00:00,30141463,-835.74,"Revenue","Swim Recruitment","External Temporary Staff"
"Peterborough","http://opendatacommunities.org/id/unitary-authority/peterborough","Peterborough City Council","Education","Financing - Resources","Services",02/10/2017 00:00:00,30143400,1896.6,"Revenue","Sense","Education Expenses"
"Peterborough","http://opendatacommunities.org/id/unitary-authority/peterborough","Peterborough City Council","Education","Financing - Resources","Services",02/10/2017 00:00:00,30143678,1857.16,"Revenue","Sense","Education Expenses"
"Peterborough","http://opendatacommunities.org/id/unitary-authority/peterborough","Peterborough City Council","Amey Peterborough & Waste Management","Waste & Operational Svs Mgmt","Services",02/10/2017 00:00:00,30144896,2072,"Revenue","Penna Plc","Consultants Fees"
"Peterborough","http://opendatacommunities.org/id/unitary-authority/peterborough","Peterborough City Council","Corporate Items","Corporate Services","Agency Staff",02/10/2017 00:00:00,30144897,10010,"Revenue","Penna Plc","External Temporary Staff"
"Peterborough","http://opendatacommunities.org/id/unitary-authority/peterborough","Peterborough City Council","Financial Services","Finance","Agency Staff",02/10/2017 00:00:00,30144898,8260,"Revenue","Penna Plc","External Temporary Staff"
"Peterborough","http://opendatacommunities.org/id/unitary-authority/peterborough","Peterborough City Council","Financial Services","Finance","Agency Staff",02/10/2017 00:00:00,30144899,17024,"Revenue","Penna Plc","External Temporary Staff"
"Peterborough","http://opendatacommunities.org/id/unitary-authority/peterborough","Peterborough City Council","Director's Office","Director's Office","Agency Staff",02/10/2017 00:00:00,30144900,1003,"Revenue","Penna Plc","External Temporary Staff"
"Peterborough","http://opendatacommunities.org/id/unitary-authority/peterborough","Peterborough City Council","Adults","Block Contracts","Other Establishments",02/10/2017 00:00:00,30144950,2289.84,"Revenue","Hales Group Ltd","Third Party Payments - Contract"
"Peterborough","http://opendatacommunities.org/id/unitary-authority/peterborough","Peterborough City Council","Adults","Independent Sector Placements","Services",02/10/2017 00:00:00,30144971,1192.8,"Revenue","Voyage","Home Care"
"Peterborough","http://opendatacommunities.org/id/unitary-authority/peterborough","Peterborough City Council","Adults","Independent Sector Placements","Services",02/10/2017 00:00:00,30144972,6642.2,"Revenue","Voyage","Home Care"
"Peterborough","http://opendatacommunities.org/id/unitary-authority/peterborough","Peterborough City Council","Adults","Independent Sector Placements","Services",02/10/2017 00:00:00,30144973,4354.16,"Revenue","Voyage","Home Care"
"Peterborough","http://opendatacommunities.org/id/unitary-authority/peterborough","Peterborough City Council","Adults","Independent Sector Placements","Services",02/10/2017 00:00:00,30144974,994,"Revenue","Voyage","Home Care"
"Peterborough","http://opendatacommunities.org/id/unitary-authority/peterborough","Peterborough City Council","Adults","Independent Sector Placements","Services",02/10/2017 00:00:00,30144975,1192.8,"Revenue","Voyage","Home Care"
"Peterborough","http://opendatacommunities.org/id/unitary-authority/peterborough","Peterborough City Council","Adults","Independent Sector Placements","Services",02/10/2017 00:00:00,30144976,4089.6,"Revenue","Voyage","Home Care"
"Peterborough","http://opendatacommunities.org/id/unitary-authority/peterborough","Peterborough City Council","Adults","Independent Sector Placements","Services",02/10/2017 00:00:00,30144977,6484.8,"Revenue","Voyage","Home Care"
"Peterborough","http://opendatacommunities.org/id/unitary-authority/peterborough","Peterborough City Council","Peterborough Highway Services","Transport & Infrastructure Commissioning","Services",02/10/2017 00:00:00,30144980,1250,"Revenue","Tym Huckin Ltd","Contractors"
"Peterborough","http://opendatacommunities.org/id/unitary-authority/peterborough","Peterborough City Council","Corporate","Corporate","Non Revenue",02/10/2017 00:00:00,30144989,2400,"Capital","NPS Peterborough Ltd","Consultants Fees"
"Peterborough","http://opendatacommunities.org/id/unitary-authority/peterborough","Peterborough City Council","Adults","Independent Sector Placements","Services",02/10/2017 00:00:00,30144990,5124.6,"Revenue","Voyage","Home Care"
"Peterborough","http://opendatacommunities.org/id/unitary-authority/peterborough","Peterborough City Council","Adults","Independent Sector Placements","Services",02/10/2017 00:00:00,30144991,1192.8,"Revenue","Voyage","Home Care"
"Peterborough","http://opendatacommunities.org/id/unitary-authority/peterborough","Peterborough City Council","Adults","Independent Sector Placements","Services",02/10/2017 00:00:00,30144992,1136,"Revenue","Voyage","Home Care"
"Peterborough","http://opendatacommunities.org/id/unitary-authority/peterborough","Peterborough City Council","Adults","Independent Sector Placements","Services",02/10/2017 00:00:00,30144993,4546.4,"Revenue","Voyage","Home Care"
"Peterborough","http://opendatacommunities.org/id/unitary-authority/peterborough","Peterborough City Council","Adults","Independent Sector Placements","Services",02/10/2017 00:00:00,30144996,5144.12,"Revenue","Voyage","Home Care"
"Peterborough","http://opendatacommunities.org/id/unitary-authority/peterborough","Peterborough City Council","Adults","Independent Sector Placements","Services",02/10/2017 00:00:00,30144997,4659,"Revenue","Voyage","Home Care"
"Peterborough","http://opendatacommunities.org/id/unitary-authority/peterborough","Peterborough City Council","Corporate","Corporate","Non Revenue",02/10/2017 00:00:00,30144998,2400,"Capital","NPS Peterborough Ltd","Consultants Fees"
"Peterborough","http://opendatacommunities.org/id/unitary-authority/peterborough","Peterborough City Council","Adults","Independent Sector Placements","Services",02/10/2017 00:00:00,30144999,3538.96,"Revenue","Voyage","Home Care"
"Peterborough","http://opendatacommunities.org/id/unitary-authority/peterborough","Peterborough City Council","Adults","Independent Sector Placements","Services",02/10/2017 00:00:00,30145001,4174,"Revenue","Voyage","Home Care"
"Peterborough","http://opendatacommunities.org/id/unitary-authority/peterborough","Peterborough City Council","Adults","Independent Sector Placements","Services",02/10/2017 00:00:00,30145003,5470.4,"Revenue","Voyage","Home Care"
"Peterborough","http://opendatacommunities.org/id/unitary-authority/peterborough","Peterborough City Council","Adults","Independent Sector Placements","Services",02/10/2017 00:00:00,30145004,3751.08,"Revenue","Voyage","Home Care"
"Peterborough","http://opendatacommunities.org/id/unitary-authority/peterborough","Peterborough City Council","Adults","Independent Sector Placements","Services",02/10/2017 00:00:00,30145005,4354.04,"Revenue","Voyage","Home Care"
"Peterborough","http://opendatacommunities.org/id/unitary-authority/peterborough","Peterborough City Council","Adults","Independent Sector Placements","Services",02/10/2017 00:00:00,30145006,3985.64,"Revenue","Voyage","Home Care"
"Peterborough","http://opendatacommunities.org/id/unitary-authority/peterborough","Peterborough City Council","Adults","Independent Sector Placements","Services",02/10/2017 00:00:00,30145007,4334.4,"Revenue","Voyage","Home Care"
"Peterborough","http://opendatacommunities.org/id/unitary-authority/peterborough","Peterborough City Council","Adults","Independent Sector Placements","Services",02/10/2017 00:00:00,30145008,4724.04,"Revenue","Voyage","Home Care"
"Peterborough","http://opendatacommunities.org/id/unitary-authority/peterborough","Peterborough City Council","Adults","Independent Sector Placements","Services",02/10/2017 00:00:00,30145009,3095.6,"Revenue","Voyage","Home Care"
"Peterborough","http://opendatacommunities.org/id/unitary-authority/peterborough","Peterborough City Council","Adults","Independent Sector Placements","Services",02/10/2017 00:00:00,30145065,3053.16,"Revenue","Maison Care Ltd","Residential Care"
"Peterborough","http://opendatacommunities.org/id/unitary-authority/peterborough","Peterborough City Council","Education","Assets and Schools Place Planning","Agency Staff",02/10/2017 00:00:00,30145121,2260,"Revenue","Baltimore Consulting","External Temporary Staff"
"Peterborough","http://opendatacommunities.org/id/unitary-authority/peterborough","Peterborough City Council","Corporate","Corporate","Non Revenue",02/10/2017 00:00:00,30145338,5608,"Capital","Enterprise Managed Services Limited","Building And Site Works"
"Peterborough","http://opendatacommunities.org/id/unitary-authority/peterborough","Peterborough City Council","Vivacity/Cultural Services","Cultural Services","Services",02/10/2017 00:00:00,30145440,2160,"Revenue","Michael Cross","Hired Services"
"Peterborough","http://opendatacommunities.org/id/unitary-authority/peterborough","Peterborough City Council","Director's Office","Director's Office","Agency Staff",02/10/2017 00:00:00,30145839,18555.5,"Revenue","Penna Plc","External Temporary Staff"
"Peterborough","http://opendatacommunities.org/id/unitary-authority/peterborough","Peterborough City Council","Adults","Independent Sector Placements","Services",02/10/2017 00:00:00,30145885,776.03,"Revenue","Hales Group Ltd","Home Care"
"Peterborough","http://opendatacommunities.org/id/unitary-authority/peterborough","Peterborough City Council","Legal & Democratic","Legal Services","Services",02/10/2017 00:00:00,30145900,700,"Revenue","Hunt, Miss Alison","Legal Costs"
"Peterborough","http://opendatacommunities.org/id/unitary-authority/peterborough","Peterborough City Council","Legal & Democratic","Legal Services","Services",02/10/2017 00:00:00,30145901,1200,"Revenue","Sleight, Mr Nigel","Legal Costs"
"Peterborough","http://opendatacommunities.org/id/unitary-authority/peterborough","Peterborough City Council","Adults","Block Contracts","Third Party Payments",02/10/2017 00:00:00,30146227,2289.84,"Revenue","Hales Group Ltd","Third Party Payments - Contract"
"Peterborough","http://opendatacommunities.org/id/unitary-authority/peterborough","Peterborough City Council","Adults","Block Contracts","Third Party Payments",02/10/2017 00:00:00,30146228,6730.64,"Revenue","Hales Group Ltd","Third Party Payments - Contract"
"Peterborough","http://opendatacommunities.org/id/unitary-authority/peterborough","Peterborough City Council","Adults","Independent Sector Placements","Agency Staff",02/10/2017 00:00:00,30146306,5581.88,"Revenue","Swim Recruitment","External Temporary Staff"
"Peterborough","http://opendatacommunities.org/id/unitary-authority/peterborough","Peterborough City Council","Children's & Safeguarding","Children's Social Care","Agency Staff",02/10/2017 00:00:00,30146375,2785.8,"Revenue","Swim Recruitment","External Temporary Staff"
"Peterborough","http://opendatacommunities.org/id/unitary-authority/peterborough","Peterborough City Council","Adults","Day opportunities - Older People","Agency Staff",02/10/2017 00:00:00,30146638,2397.6,"Revenue","Swim Recruitment","External Temporary Staff"
"Peterborough","http://opendatacommunities.org/id/unitary-authority/peterborough","Peterborough City Council","Various","Various","Services",02/10/2017 00:00:00,30146850,929.95,"Revenue","Whistl UK Ltd","Postage"
"Peterborough","http://opendatacommunities.org/id/unitary-authority/peterborough","Peterborough City Council","Corporate Property","Office Accomodation","Repair & Maintenance of Buildings",02/10/2017 00:00:00,30147089,4960.1,"Revenue","Baker Perkins Ltd","Service Charges - Premises"
"Peterborough","http://opendatacommunities.org/id/unitary-authority/peterborough","Peterborough City Council","Communities","Housing","Services",02/10/2017 00:00:00,30147208,567,"Revenue","Redacted Personal Information","Financial Assistance"
"Peterborough","http://opendatacommunities.org/id/unitary-authority/peterborough","Peterborough City Council","ICT","ICT","Services",02/10/2017 00:00:00,30147378,6658.2,"Revenue","Vodafone Ltd","Internet"
"Peterborough","http://opendatacommunities.org/id/unitary-authority/peterborough","Peterborough City Council","Westcombe Engineering","Westcombe Engineering","Tools, Equipment, Furniture & Materials",02/10/2017 00:00:00,30147447,804,"Revenue","Barron Clark Castings Ltd","Items For Resale"
"Peterborough","http://opendatacommunities.org/id/unitary-authority/peterborough","Peterborough City Council","Westcombe Engineering","Westcombe Engineering","Tools, Equipment, Furniture & Materials",02/10/2017 00:00:00,30147455,609.79,"Revenue","Barron Clark Castings Ltd","Items For Resale"
"Peterborough","http://opendatacommunities.org/id/unitary-authority/peterborough","Peterborough City Council","Communities","Housing","Services",02/10/2017 00:00:00,30147659,600,"Revenue","Belvoir Property Management","Financial Assistance"
"Peterborough","http://opendatacommunities.org/id/unitary-authority/peterborough","Peterborough City Council","Communities","Housing","Services",02/10/2017 00:00:00,30147831,560,"Revenue","Redacted Personal Information","Financial Assistance"
"Peterborough","http://opendatacommunities.org/id/unitary-authority/peterborough","Peterborough City Council","Education","Pupil Referral Unit","Services",02/10/2017 00:00:00,30148066,1097,"Revenue","Pearson Education","Exam Fees"
"Peterborough","http://opendatacommunities.org/id/unitary-authority/peterborough","Peterborough City Council","Education","Pupil Referral Unit","Services",02/10/2017 00:00:00,30148067,2918.05,"Revenue","Pearson Education","Exam Fees"
"Peterborough","http://opendatacommunities.org/id/unitary-authority/peterborough","Peterborough City Council","Education","Pupil Referral Unit","Services",02/10/2017 00:00:00,30148068,1911.25,"Revenue","Pearson Education","Exam Fees"
"Peterborough","http://opendatacommunities.org/id/unitary-authority/peterborough","Peterborough City Council","Education","Pupil Referral Unit","Services",02/10/2017 00:00:00,30148071,882.8,"Revenue","Pearson Education","Exam Fees"
"Peterborough","http://opendatacommunities.org/id/unitary-authority/peterborough","Peterborough City Council","Education","Pupil Referral Unit","Services",02/10/2017 00:00:00,30148074,2801.1,"Revenue","Pearson Education","Exam Fees"
"Peterborough","http://opendatacommunities.org/id/unitary-authority/peterborough","Peterborough City Council","Education","Pupil Referral Unit","Services",02/10/2017 00:00:00,30148075,1327.45,"Revenue","Pearson Education","Exam Fees"
"Peterborough","http://opendatacommunities.org/id/unitary-authority/peterborough","Peterborough City Council","Education","Pupil Referral Unit","Services",02/10/2017 00:00:00,30148076,667.2,"Revenue","Pearson Education","Exam Fees"
"Peterborough","http://opendatacommunities.org/id/unitary-authority/peterborough","Peterborough City Council","Education","Pupil Referral Unit","Services",02/10/2017 00:00:00,30148077,514.3,"Revenue","Pearson Education","Exam Fees"
"Peterborough","http://opendatacommunities.org/id/unitary-authority/peterborough","Peterborough City Council","Education","Pupil Referral Unit","Services",02/10/2017 00:00:00,30148078,539.2,"Revenue","Pearson Education","Exam Fees"
"Peterborough","http://opendatacommunities.org/id/unitary-authority/peterborough","Peterborough City Council","Peterborough Highway Services","Transport & Infrastructure Commissioning","Energy Costs",02/10/2017 00:00:00,30149155,5047.85,"Revenue","E.ON Energy","Electricity"
"Peterborough","http://opendatacommunities.org/id/unitary-authority/peterborough","Peterborough City Council","Communities","Targeted Youth Service","Services",02/10/2017 00:00:00,30149434,18899.2,"Revenue","Kingswood Learning & Leisure Grp Ltd","Programmes"
"Peterborough","http://opendatacommunities.org/id/unitary-authority/peterborough","Peterborough City Council","Adults","Independent Sector Placements","Services",02/10/2017 00:00:00,8000097739,968.18,"Revenue","Hales Group Ltd","Home Care"
"Peterborough","http://opendatacommunities.org/id/unitary-authority/peterborough","Peterborough City Council","Adults","Independent Sector Placements","Services",02/10/2017 00:00:00,8000097741,682.13,"Revenue","Hales Group Ltd","Home Care"
"Peterborough","http://opendatacommunities.org/id/unitary-authority/peterborough","Peterborough City Council","Adults","Independent Sector Placements","Services",02/10/2017 00:00:00,8000097746,2060.36,"Revenue","Hales Group Ltd","Home Care"
"Peterborough","http://opendatacommunities.org/id/unitary-authority/peterborough","Peterborough City Council","Adults","Independent Sector Placements","Services",02/10/2017 00:00:00,8000097751,1038.51,"Revenue","Hales Group Ltd","Home Care"
"Peterborough","http://opendatacommunities.org/id/unitary-authority/peterborough","Peterborough City Council","Adults","Independent Sector Placements","Services",02/10/2017 00:00:00,8000097753,1387.71,"Revenue","Hales Group Ltd","Home Care"
"Peterborough","http://opendatacommunities.org/id/unitary-authority/peterborough","Peterborough City Council","Adults","Independent Sector Placements","Services",02/10/2017 00:00:00,8000097754,554.93,"Revenue","Hales Group Ltd","Home Care"
"Peterborough","http://opendatacommunities.org/id/unitary-authority/peterborough","Peterborough City Council","Adults","Independent Sector Placements","Services",02/10/2017 00:00:00,8000097755,525.21,"Revenue","Hales Group Ltd","Home Care"
"Peterborough","http://opendatacommunities.org/id/unitary-authority/peterborough","Peterborough City Council","Adults","Independent Sector Placements","Services",02/10/2017 00:00:00,8000097756,781.41,"Revenue","Hales Group Ltd","Home Care"
"Peterborough","http://opendatacommunities.org/id/unitary-authority/peterborough","Peterborough City Council","Adults","Independent Sector Placements","Services",02/10/2017 00:00:00,8000097757,734.4,"Revenue","Hales Group Ltd","Home Care"
"Peterborough","http://opendatacommunities.org/id/unitary-authority/peterborough","Peterborough City Council","Adults","Independent Sector Placements","Services",02/10/2017 00:00:00,8000097758,2372.03,"Revenue","Hales Group Ltd","Home Care"
"Peterborough","http://opendatacommunities.org/id/unitary-authority/peterborough","Peterborough City Council","Adults","Independent Sector Placements","Services",02/10/2017 00:00:00,8000097761,605.66,"Revenue","Hales Group Ltd","Home Care"
"Peterborough","http://opendatacommunities.org/id/unitary-authority/peterborough","Peterborough City Council","Adults","Independent Sector Placements","Services",02/10/2017 00:00:00,8000097762,634.48,"Revenue","Hales Group Ltd","Home Care"
"Peterborough","http://opendatacommunities.org/id/unitary-authority/peterborough","Peterborough City Council","Adults","Independent Sector Placements","Services",02/10/2017 00:00:00,8000097763,1024.8,"Revenue","Hales Group Ltd","Home Care"
"Peterborough","http://opendatacommunities.org/id/unitary-authority/peterborough","Peterborough City Council","Adults","Independent Sector Placements","Services",02/10/2017 00:00:00,8000097764,1907.28,"Revenue","Hales Group Ltd","Home Care"
"Peterborough","http://opendatacommunities.org/id/unitary-authority/peterborough","Peterborough City Council","Adults","Independent Sector Placements","Services",02/10/2017 00:00:00,8000097765,894.65,"Revenue","Hales Group Ltd","Home Care"
"Peterborough","http://opendatacommunities.org/id/unitary-authority/peterborough","Peterborough City Council","Adults","Independent Sector Placements","Services",02/10/2017 00:00:00,8000097766,651.13,"Revenue","Hales Group Ltd","Home Care"
"Peterborough","http://opendatacommunities.org/id/unitary-authority/peterborough","Peterborough City Council","Adults","Independent Sector Placements","Services",02/10/2017 00:00:00,8000097767,685.34,"Revenue","Hales Group Ltd","Home Care"
"Peterborough","http://opendatacommunities.org/id/unitary-authority/peterborough","Peterborough City Council","Adults","Independent Sector Placements","Services",02/10/2017 00:00:00,8000097768,2191.41,"Revenue","Hales Group Ltd","Home Care"
"Peterborough","http://opendatacommunities.org/id/unitary-authority/peterborough","Peterborough City Council","Adults","Independent Sector Placements","Services",02/10/2017 00:00:00,8000097769,920.14,"Revenue","Hales Group Ltd","Home Care"
"Peterborough","http://opendatacommunities.org/id/unitary-authority/peterborough","Peterborough City Council","Adults","Independent Sector Placements","Services",02/10/2017 00:00:00,8000097770,522.01,"Revenue","Hales Group Ltd","Home Care"
"Peterborough","http://opendatacommunities.org/id/unitary-authority/peterborough","Peterborough City Council","Adults","Independent Sector Placements","Services",02/10/2017 00:00:00,8000097771,860.06,"Revenue","Hales Group Ltd","Home Care"
"Peterborough","http://opendatacommunities.org/id/unitary-authority/peterborough","Peterborough City Council","Adults","Independent Sector Placements","Services",02/10/2017 00:00:00,8000097774,665.1,"Revenue","Hales Group Ltd","Home Care"
"Peterborough","http://opendatacommunities.org/id/unitary-authority/peterborough","Peterborough City Council","Adults","Independent Sector Placements","Services",02/10/2017 00:00:00,8000097775,584.39,"Revenue","Hales Group Ltd","Home Care"
"Peterborough","http://opendatacommunities.org/id/unitary-authority/peterborough","Peterborough City Council","Adults","Independent Sector Placements","Services",02/10/2017 00:00:00,8000097776,840.08,"Revenue","Hales Group Ltd","Home Care"
"Peterborough","http://opendatacommunities.org/id/unitary-authority/peterborough","Peterborough City Council","Adults","Independent Sector Placements","Services",02/10/2017 00:00:00,8000097778,613.86,"Revenue","Hales Group Ltd","Home Care"
"Peterborough","http://opendatacommunities.org/id/unitary-authority/peterborough","Peterborough City Council","Adults","Independent Sector Placements","Services",02/10/2017 00:00:00,8000097779,779.23,"Revenue","Hales Group Ltd","Home Care"
"Peterborough","http://opendatacommunities.org/id/unitary-authority/peterborough","Peterborough City Council","Adults","Independent Sector Placements","Services",02/10/2017 00:00:00,8000097780,855.84,"Revenue","Hales Group Ltd","Home Care"
"Peterborough","http://opendatacommunities.org/id/unitary-authority/peterborough","Peterborough City Council","Adults","Independent Sector Placements","Services",02/10/2017 00:00:00,8000097782,884.91,"Revenue","Hales Group Ltd","Home Care"
"Peterborough","http://opendatacommunities.org/id/unitary-authority/peterborough","Peterborough City Council","Adults","Independent Sector Placements","Services",02/10/2017 00:00:00,8000097784,1083.98,"Revenue","Hales Group Ltd","Home Care"
"Peterborough","http://opendatacommunities.org/id/unitary-authority/peterborough","Peterborough City Council","Adults","Independent Sector Placements","Services",02/10/2017 00:00:00,8000097785,620.13,"Revenue","Hales Group Ltd","Home Care"
"Peterborough","http://opendatacommunities.org/id/unitary-authority/peterborough","Peterborough City Council","Adults","Independent Sector Placements","Services",02/10/2017 00:00:00,8000097786,638.32,"Revenue","Hales Group Ltd","Home Care"
"Peterborough","http://opendatacommunities.org/id/unitary-authority/peterborough","Peterborough City Council","Children's & Safeguarding","Looked After Children","Third Party Payments",02/10/2017 00:00:00,8000101025,59779.56,"Revenue","TACT","Third Party Payments - Contract"
"Peterborough","http://opendatacommunities.org/id/unitary-authority/peterborough","Peterborough City Council","Legal & Democratic","Legal Services","Services",04/10/2017 00:00:00,30089285,702,"Revenue","Weightmans LLP","Legal Costs"
"Peterborough","http://opendatacommunities.org/id/unitary-authority/peterborough","Peterborough City Council","Corporate","Corporate","Non Revenue",04/10/2017 00:00:00,30145109,1020,"Capital","PDMS Ltd (Peterborough Design & Management Services Ltd)","Consultants Fees"
"Peterborough","http://opendatacommunities.org/id/unitary-authority/peterborough","Peterborough City Council","Children's & Safeguarding","Commissioning - CSC","Services",04/10/2017 00:00:00,30145128,750.4,"Revenue","Sahara Community Care Services","Purchased Social Care Services"
"Peterborough","http://opendatacommunities.org/id/unitary-authority/peterborough","Peterborough City Council","Corporate Property","Commercial Propety","Services",04/10/2017 00:00:00,30145143,5500,"Revenue","Serco Ltd","Hired Services"
"Peterborough","http://opendatacommunities.org/id/unitary-authority/peterborough","Peterborough City Council","Energy","Environment Capital","Services",04/10/2017 00:00:00,30145147,1250,"Revenue","Pinsent Masons","Legal Costs"
"Peterborough","http://opendatacommunities.org/id/unitary-authority/peterborough","Peterborough City Council","Adults","Finance","Services",04/10/2017 00:00:00,30145149,1661,"Revenue","Pinsent Masons","Legal Costs"
"Peterborough","http://opendatacommunities.org/id/unitary-authority/peterborough","Peterborough City Council","Energy","Environment Capital","Services",04/10/2017 00:00:00,30145150,11620.5,"Revenue","Pinsent Masons","Legal Costs"
"Peterborough","http://opendatacommunities.org/id/unitary-authority/peterborough","Peterborough City Council","Energy","Environment Capital","Services",04/10/2017 00:00:00,30145151,18478.2,"Revenue","Pinsent Masons","Legal Costs"
"Peterborough","http://opendatacommunities.org/id/unitary-authority/peterborough","Peterborough City Council","Sustainable Growth Strategy","Housing & Strategic Planning","Services",04/10/2017 00:00:00,30145170,5003.4,"Revenue","Trevor Roberts Associates Ltd","Hired Services"
"Peterborough","http://opendatacommunities.org/id/unitary-authority/peterborough","Peterborough City Council","Adults","Home Services Delivery Model","Third Party Payments",04/10/2017 00:00:00,30145278,2933.36,"Revenue","NACRO","Grant-Third Party"
"Peterborough","http://opendatacommunities.org/id/unitary-authority/peterborough","Peterborough City Council","Communities","Service Director - Adults & Communities","Interview & Training Expenses",04/10/2017 00:00:00,30145279,2500,"Revenue","De Montfort University","Training"
"Peterborough","http://opendatacommunities.org/id/unitary-authority/peterborough","Peterborough City Council","Peterborough Highway Services","Highway & Drainage Control","Agency Staff",04/10/2017 00:00:00,30145323,1020,"Revenue","Matchtech","External Temporary Staff"
"Peterborough","http://opendatacommunities.org/id/unitary-authority/peterborough","Peterborough City Council","Peterborough Highway Services","Highway & Drainage Control","Agency Staff",04/10/2017 00:00:00,30145324,1306.8,"Revenue","Matchtech","External Temporary Staff"
"Peterborough","http://opendatacommunities.org/id/unitary-authority/peterborough","Peterborough City Council","Corporate Property","Office Accomodation","Cleaning & Domestic Supplies",04/10/2017 00:00:00,30145344,1477.28,"Revenue","Beebys Ltd","Cleaning"
"Peterborough","http://opendatacommunities.org/id/unitary-authority/peterborough","Peterborough City Council","Public Health","PH Commissioning","Services",04/10/2017 00:00:00,30145347,2500,"Revenue","Cambridgeshire Chamber of Commerce","Sponsorship"
"Peterborough","http://opendatacommunities.org/id/unitary-authority/peterborough","Peterborough City Council","Corporate","Corporate","Non Revenue",04/10/2017 00:00:00,30145353,2950,"Capital","Badenoch & Clark Ltd","Consultants Fees"
"Peterborough","http://opendatacommunities.org/id/unitary-authority/peterborough","Peterborough City Council","Legal & Democratic","Legal Services","Services",04/10/2017 00:00:00,30145367,720,"Revenue","Bhachu, Sharan","Legal Costs"
"Peterborough","http://opendatacommunities.org/id/unitary-authority/peterborough","Peterborough City Council","Corporate","Corporate","Non Revenue",04/10/2017 00:00:00,30145375,8106,"Capital","Imperial Civil Enforcement Solutions","Computer Software"
"Peterborough","http://opendatacommunities.org/id/unitary-authority/peterborough","Peterborough City Council","Corporate Property","Office Accomodation","Services",04/10/2017 00:00:00,30145381,5875.69,"Revenue","GSL Dardan Ltd","Security"
"Peterborough","http://opendatacommunities.org/id/unitary-authority/peterborough","Peterborough City Council","Legal & Democratic","Legal Services","Agency Staff",04/10/2017 00:00:00,30145382,561,"Revenue","Venn Group Ltd","External Temporary Staff"
"Peterborough","http://opendatacommunities.org/id/unitary-authority/peterborough","Peterborough City Council","City Servs & Communications","Marketing & Communications","Services",04/10/2017 00:00:00,30145387,550,"Revenue","Living Villages Magazine","Advertising"
"Peterborough","http://opendatacommunities.org/id/unitary-authority/peterborough","Peterborough City Council","Adults","Independent Sector Placements","Services",04/10/2017 00:00:00,30145573,1297.44,"Revenue","Avery House (Peterborough) t/a Brighterkind","Residential Care"
"Peterborough","http://opendatacommunities.org/id/unitary-authority/peterborough","Peterborough City Council","Legal & Democratic","Legal Services","Agency Staff",04/10/2017 00:00:00,30145605,1005.69,"Revenue","Venn Group Ltd","External Temporary Staff"
"Peterborough","http://opendatacommunities.org/id/unitary-authority/peterborough","Peterborough City Council","Commissioning and Commercial Operations","Commissioning","Services",04/10/2017 00:00:00,30145624,2840,"Revenue","BDP Social Care Ltd","Hired Services"
"Peterborough","http://opendatacommunities.org/id/unitary-authority/peterborough","Peterborough City Council","Adults","Independent Sector Placements","Services",04/10/2017 00:00:00,30145732,1288.08,"Revenue","GCH (North London) Ltd - Tudors","Residential Care"
"Peterborough","http://opendatacommunities.org/id/unitary-authority/peterborough","Peterborough City Council","Adults","Independent Sector Placements","Services",04/10/2017 00:00:00,30145738,1284.08,"Revenue","GCH (North London) Ltd - Tudors","Residential Care"
"Peterborough","http://opendatacommunities.org/id/unitary-authority/peterborough","Peterborough City Council","Adults","Independent Sector Placements","Services",04/10/2017 00:00:00,30145740,1280.08,"Revenue","GCH (North London) Ltd - Tudors","Residential Care"
"Peterborough","http://opendatacommunities.org/id/unitary-authority/peterborough","Peterborough City Council","Adults","Independent Sector Placements","Services",04/10/2017 00:00:00,30145742,1776.24,"Revenue","GCH (North London) Ltd - Tudors","Residential Care"
"Peterborough","http://opendatacommunities.org/id/unitary-authority/peterborough","Peterborough City Council","Adults","Independent Sector Placements","Services",04/10/2017 00:00:00,30145744,1038.44,"Revenue","GCH (North London) Ltd - Tudors","Residential Care"
"Peterborough","http://opendatacommunities.org/id/unitary-authority/peterborough","Peterborough City Council","Adults","Independent Sector Placements","Services",04/10/2017 00:00:00,30145745,1008.76,"Revenue","GCH (North London) Ltd - Tudors","Residential Care"
"Peterborough","http://opendatacommunities.org/id/unitary-authority/peterborough","Peterborough City Council","Adults","Independent Sector Placements","Services",04/10/2017 00:00:00,30145747,663.36,"Revenue","GCH (North London) Ltd - Tudors","Residential Care"
"Peterborough","http://opendatacommunities.org/id/unitary-authority/peterborough","Peterborough City Council","Corporate Property","Commercial Propety","Services",04/10/2017 00:00:00,30145749,2500,"Revenue","Wilks Head & Eve","Valuations"
"Peterborough","http://opendatacommunities.org/id/unitary-authority/peterborough","Peterborough City Council","Adults","Independent Sector Placements","Services",04/10/2017 00:00:00,30145751,1288.08,"Revenue","GCH (North London) Ltd - Tudors","Residential Care"
"Peterborough","http://opendatacommunities.org/id/unitary-authority/peterborough","Peterborough City Council","Adults","Independent Sector Placements","Services",04/10/2017 00:00:00,30145752,1208.8,"Revenue","GCH (North London) Ltd - Tudors","Residential Care"
"Peterborough","http://opendatacommunities.org/id/unitary-authority/peterborough","Peterborough City Council","Adults","Independent Sector Placements","Services",04/10/2017 00:00:00,30145753,1239.6,"Revenue","GCH (North London) Ltd - Tudors","Residential Care"
"Peterborough","http://opendatacommunities.org/id/unitary-authority/peterborough","Peterborough City Council","Adults","Independent Sector Placements","Services",04/10/2017 00:00:00,30145754,1006.12,"Revenue","GCH (North London) Ltd - Tudors","Residential Care"
"Peterborough","http://opendatacommunities.org/id/unitary-authority/peterborough","Peterborough City Council","Adults","Independent Sector Placements","Services",04/10/2017 00:00:00,30145755,2021.88,"Revenue","GCH (North London) Ltd - Tudors","Residential Care"
"Peterborough","http://opendatacommunities.org/id/unitary-authority/peterborough","Peterborough City Council","Adults","Independent Sector Placements","Services",04/10/2017 00:00:00,30145756,1188.2,"Revenue","GCH (North London) Ltd - Tudors","Residential Care"
"Peterborough","http://opendatacommunities.org/id/unitary-authority/peterborough","Peterborough City Council","Adults","Independent Sector Placements","Services",04/10/2017 00:00:00,30145772,1085.72,"Revenue","GCH (North London) Ltd - Tudors","Residential Care"
"Peterborough","http://opendatacommunities.org/id/unitary-authority/peterborough","Peterborough City Council","Adults","Independent Sector Placements","Services",04/10/2017 00:00:00,30145776,1284.08,"Revenue","GCH (North London) Ltd - Tudors","Residential Care"
"Peterborough","http://opendatacommunities.org/id/unitary-authority/peterborough","Peterborough City Council","Adults","Independent Sector Placements","Services",04/10/2017 00:00:00,30145777,1280.08,"Revenue","GCH (North London) Ltd - Tudors","Residential Care"
"Peterborough","http://opendatacommunities.org/id/unitary-authority/peterborough","Peterborough City Council","Adults","Independent Sector Placements","Services",04/10/2017 00:00:00,30145780,1064.8,"Revenue","GCH (North London) Ltd - Tudors","Residential Care"
"Peterborough","http://opendatacommunities.org/id/unitary-authority/peterborough","Peterborough City Council","Adults","Independent Sector Placements","Services",04/10/2017 00:00:00,30145781,1114.68,"Revenue","GCH (North London) Ltd - Tudors","Residential Care"
"Peterborough","http://opendatacommunities.org/id/unitary-authority/peterborough","Peterborough City Council","Adults","Independent Sector Placements","Services",04/10/2017 00:00:00,30145787,1384.08,"Revenue","GCH (North London) Ltd - Tudors","Residential Care"
"Peterborough","http://opendatacommunities.org/id/unitary-authority/peterborough","Peterborough City Council","Adults","Independent Sector Placements","Services",04/10/2017 00:00:00,30145788,1312.08,"Revenue","GCH (North London) Ltd - Tudors","Residential Care"
"Peterborough","http://opendatacommunities.org/id/unitary-authority/peterborough","Peterborough City Council","Adults","Independent Sector Placements","Services",04/10/2017 00:00:00,30145790,1721.96,"Revenue","GCH (North London) Ltd - Tudors","Residential Care"
"Peterborough","http://opendatacommunities.org/id/unitary-authority/peterborough","Peterborough City Council","Adults","Independent Sector Placements","Services",04/10/2017 00:00:00,30145791,1143.92,"Revenue","GCH (North London) Ltd - Tudors","Residential Care"
"Peterborough","http://opendatacommunities.org/id/unitary-authority/peterborough","Peterborough City Council","Adults","Independent Sector Placements","Services",04/10/2017 00:00:00,30145792,991.12,"Revenue","GCH (North London) Ltd - Tudors","Residential Care"
"Peterborough","http://opendatacommunities.org/id/unitary-authority/peterborough","Peterborough City Council","Adults","Independent Sector Placements","Services",04/10/2017 00:00:00,30145796,1038.44,"Revenue","GCH (North London) Ltd - Tudors","Residential Care"
"Peterborough","http://opendatacommunities.org/id/unitary-authority/peterborough","Peterborough City Council","Adults","Independent Sector Placements","Services",04/10/2017 00:00:00,30145798,1640.28,"Revenue","GCH (North London) Ltd - Tudors","Residential Care"
"Peterborough","http://opendatacommunities.org/id/unitary-authority/peterborough","Peterborough City Council","Adults","Independent Sector Placements","Services",04/10/2017 00:00:00,30145799,701.2,"Revenue","GCH (North London) Ltd - Tudors","Residential Care"
"Peterborough","http://opendatacommunities.org/id/unitary-authority/peterborough","Peterborough City Council","Adults","Home Services Delivery Model","Services",04/10/2017 00:00:00,30145820,1623.5,"Revenue","Fletton Electrics Ltd","Contractors"
"Peterborough","http://opendatacommunities.org/id/unitary-authority/peterborough","Peterborough City Council","Adults","Independent Sector Placements","Services",04/10/2017 00:00:00,30146078,2961,"Revenue","Deafblind Enablement Ltd","Home Care"
"Peterborough","http://opendatacommunities.org/id/unitary-authority/peterborough","Peterborough City Council","Westcombe Engineering","Westcombe Engineering","Tools, Equipment, Furniture & Materials",04/10/2017 00:00:00,30146081,1240,"Revenue","Hydrafeed Ltd","Items For Resale"
"Peterborough","http://opendatacommunities.org/id/unitary-authority/peterborough","Peterborough City Council","Westcombe Engineering","Westcombe Engineering","Tools, Equipment, Furniture & Materials",04/10/2017 00:00:00,30146082,536.5,"Revenue","Hydrafeed Ltd","Items For Resale"
"Peterborough","http://opendatacommunities.org/id/unitary-authority/peterborough","Peterborough City Council","Legal & Democratic","Elections","Rents",04/10/2017 00:00:00,30146099,2952,"Revenue","Portakabin Ltd","Hire Of Premises"
"Peterborough","http://opendatacommunities.org/id/unitary-authority/peterborough","Peterborough City Council","Adults","Independent Sector Placements","Services",04/10/2017 00:00:00,30146250,2703.64,"Revenue","LEONARD CHESHIRE DISABILITY","Residential Care"
"Peterborough","http://opendatacommunities.org/id/unitary-authority/peterborough","Peterborough City Council","Adults","Independent Sector Placements","Services",04/10/2017 00:00:00,30146251,4992.32,"Revenue","LEONARD CHESHIRE DISABILITY","Residential Care"
"Peterborough","http://opendatacommunities.org/id/unitary-authority/peterborough","Peterborough City Council","Adults","Independent Sector Placements","Services",04/10/2017 00:00:00,30146438,930.44,"Revenue","Avery House (Peterborough) t/a Brighterkind","Residential Care"
"Peterborough","http://opendatacommunities.org/id/unitary-authority/peterborough","Peterborough City Council","Adults","Independent Sector Placements","Services",04/10/2017 00:00:00,30146448,-1496.54,"Revenue","Avery House (Peterborough) t/a Brighterkind","Residential Care"
"Peterborough","http://opendatacommunities.org/id/unitary-authority/peterborough","Peterborough City Council","Corporate","Corporate","Non Revenue",04/10/2017 00:00:00,30146458,4752,"Capital","M J Greaves","Grant Payment"
"Peterborough","http://opendatacommunities.org/id/unitary-authority/peterborough","Peterborough City Council","Corporate","Corporate","Non Revenue",04/10/2017 00:00:00,30146465,5424.3,"Capital","A.F.Construction Services Ltd","Grant Payment"
"Peterborough","http://opendatacommunities.org/id/unitary-authority/peterborough","Peterborough City Council","Adults","Independent Sector Placements","Services",04/10/2017 00:00:00,30146479,571.95,"Revenue","Metropolitan","Home Care"
"Peterborough","http://opendatacommunities.org/id/unitary-authority/peterborough","Peterborough City Council","Adults","Independent Sector Placements","Services",04/10/2017 00:00:00,30146481,571.95,"Revenue","Metropolitan","Home Care"
"Peterborough","http://opendatacommunities.org/id/unitary-authority/peterborough","Peterborough City Council","Adults","Independent Sector Placements","Services",04/10/2017 00:00:00,30146482,636.99,"Revenue","Metropolitan","Home Care"
"Peterborough","http://opendatacommunities.org/id/unitary-authority/peterborough","Peterborough City Council","Adults","Independent Sector Placements","Services",04/10/2017 00:00:00,30146495,553.47,"Revenue","Metropolitan","Home Care"
"Peterborough","http://opendatacommunities.org/id/unitary-authority/peterborough","Peterborough City Council","Adults","Independent Sector Placements","Services",04/10/2017 00:00:00,30146498,2182.2,"Revenue","HEREWARD CARE SERVICES LIMITED","Residential Care"
"Peterborough","http://opendatacommunities.org/id/unitary-authority/peterborough","Peterborough City Council","Adults","Independent Sector Placements","Services",04/10/2017 00:00:00,30146527,2328.52,"Revenue","PossAbilities CIC","Home Care"
"Peterborough","http://opendatacommunities.org/id/unitary-authority/peterborough","Peterborough City Council","Adults","Block Contracts","Third Party Payments",04/10/2017 00:00:00,30146530,60548.12,"Revenue","HEREWARD CARE SERVICES LIMITED","Third Party Payments - Contract"
"Peterborough","http://opendatacommunities.org/id/unitary-authority/peterborough","Peterborough City Council","Peterborough Serco Strategic Partnership","Peterborough Serco Strategic Partnership","Services",04/10/2017 00:00:00,30146550,576.08,"Revenue","Pitney Bowes Ltd","Postage"
"Peterborough","http://opendatacommunities.org/id/unitary-authority/peterborough","Peterborough City Council","Adults","Independent Sector Placements","Services",04/10/2017 00:00:00,30146561,1762.88,"Revenue","Barchester Healthcare (Werrington Lodge)","Residential Care"
"Peterborough","http://opendatacommunities.org/id/unitary-authority/peterborough","Peterborough City Council","Adults","Independent Sector Placements","Services",04/10/2017 00:00:00,30146563,3188,"Revenue","Barchester Healthcare (Werrington Lodge)","Residential Care"
"Peterborough","http://opendatacommunities.org/id/unitary-authority/peterborough","Peterborough City Council","Adults","Independent Sector Placements","Services",04/10/2017 00:00:00,30146564,2549.04,"Revenue","Barchester Healthcare (Werrington Lodge)","Residential Care"
"Peterborough","http://opendatacommunities.org/id/unitary-authority/peterborough","Peterborough City Council","Adults","Independent Sector Placements","Services",04/10/2017 00:00:00,30146565,2655,"Revenue","Barchester Healthcare (Werrington Lodge)","Residential Care"
"Peterborough","http://opendatacommunities.org/id/unitary-authority/peterborough","Peterborough City Council","Adults","Independent Sector Placements","Services",04/10/2017 00:00:00,30146569,1944.64,"Revenue","Barchester Healthcare (Werrington Lodge)","Residential Care"
"Peterborough","http://opendatacommunities.org/id/unitary-authority/peterborough","Peterborough City Council","Adults","Independent Sector Placements","Services",04/10/2017 00:00:00,30146571,2305.92,"Revenue","Barchester Healthcare (Werrington Lodge)","Residential Care"
"Peterborough","http://opendatacommunities.org/id/unitary-authority/peterborough","Peterborough City Council","Adults","Independent Sector Placements","Services",04/10/2017 00:00:00,30146574,2328.52,"Revenue","PossAbilities CIC","Home Care"
"Peterborough","http://opendatacommunities.org/id/unitary-authority/peterborough","Peterborough City Council","Adults","Independent Sector Placements","Services",04/10/2017 00:00:00,30146577,884.06,"Revenue","Barchester Healthcare (Werrington Lodge)","Residential Care"
"Peterborough","http://opendatacommunities.org/id/unitary-authority/peterborough","Peterborough City Council","Adults","Independent Sector Placements","Services",04/10/2017 00:00:00,30146580,2687.2,"Revenue","Barchester Healthcare (Werrington Lodge)","Residential Care"
"Peterborough","http://opendatacommunities.org/id/unitary-authority/peterborough","Peterborough City Council","Adults","Independent Sector Placements","Services",04/10/2017 00:00:00,30146581,2305.92,"Revenue","Barchester Healthcare (Werrington Lodge)","Residential Care"
"Peterborough","http://opendatacommunities.org/id/unitary-authority/peterborough","Peterborough City Council","Adults","Independent Sector Placements","Services",04/10/2017 00:00:00,30146582,2680.24,"Revenue","HEREWARD CARE SERVICES LIMITED","Residential Care"
"Peterborough","http://opendatacommunities.org/id/unitary-authority/peterborough","Peterborough City Council","Adults","Independent Sector Placements","Services",04/10/2017 00:00:00,30146583,3187.48,"Revenue","HEREWARD CARE SERVICES LIMITED","Residential Care"
"Peterborough","http://opendatacommunities.org/id/unitary-authority/peterborough","Peterborough City Council","Adults","Independent Sector Placements","Services",04/10/2017 00:00:00,30146584,4154.56,"Revenue","HEREWARD CARE SERVICES LIMITED","Residential Care"
"Peterborough","http://opendatacommunities.org/id/unitary-authority/peterborough","Peterborough City Council","Adults","Independent Sector Placements","Services",04/10/2017 00:00:00,30146586,5925.71,"Revenue","HEREWARD CARE SERVICES LIMITED","Residential Care"
"Peterborough","http://opendatacommunities.org/id/unitary-authority/peterborough","Peterborough City Council","Adults","Independent Sector Placements","Services",04/10/2017 00:00:00,30146587,2621.6,"Revenue","HEREWARD CARE SERVICES LIMITED","Residential Care"
"Peterborough","http://opendatacommunities.org/id/unitary-authority/peterborough","Peterborough City Council","Adults","Independent Sector Placements","Services",04/10/2017 00:00:00,30146589,3437.52,"Revenue","HEREWARD CARE SERVICES LIMITED","Residential Care"
"Peterborough","http://opendatacommunities.org/id/unitary-authority/peterborough","Peterborough City Council","Adults","Independent Sector Placements","Services",04/10/2017 00:00:00,30146591,2808.64,"Revenue","HEREWARD CARE SERVICES LIMITED","Residential Care"
"Peterborough","http://opendatacommunities.org/id/unitary-authority/peterborough","Peterborough City Council","Adults","Independent Sector Placements","Services",04/10/2017 00:00:00,30146593,2677.32,"Revenue","HEREWARD CARE SERVICES LIMITED","Residential Care"
"Peterborough","http://opendatacommunities.org/id/unitary-authority/peterborough","Peterborough City Council","Corporate","Corporate","Non Revenue",04/10/2017 00:00:00,30146685,1867,"Capital","Dolphin Mobility East Midlands Ltd","Grant Payment"
"Peterborough","http://opendatacommunities.org/id/unitary-authority/peterborough","Peterborough City Council","Children's & Safeguarding","Early Help ASC/CSC","Services",04/10/2017 00:00:00,30146731,1890,"Revenue","BDP Social Care Ltd","Hired Services"
"Peterborough","http://opendatacommunities.org/id/unitary-authority/peterborough","Peterborough City Council","Adults","Independent Sector Placements","Services",04/10/2017 00:00:00,30146816,1821.88,"Revenue","GCH (North London) Ltd - Tudors","Residential Care"
"Peterborough","http://opendatacommunities.org/id/unitary-authority/peterborough","Peterborough City Council","Adults","Independent Sector Placements","Services",04/10/2017 00:00:00,30146831,1378.65,"Revenue","GCH (North London) Ltd - Tudors","Residential Care"
"Peterborough","http://opendatacommunities.org/id/unitary-authority/peterborough","Peterborough City Council","Legal & Democratic","Legal Services","Agency Staff",04/10/2017 00:00:00,30146917,1421,"Revenue","Venn Group Ltd","External Temporary Staff"
"Peterborough","http://opendatacommunities.org/id/unitary-authority/peterborough","Peterborough City Council","Corporate Items","Corporate Services","Services",04/10/2017 00:00:00,30147182,-1014,"Revenue","Pinsent Masons","Legal Costs"
"Peterborough","http://opendatacommunities.org/id/unitary-authority/peterborough","Peterborough City Council","Adults","Independent Sector Placements","Services",04/10/2017 00:00:00,30147207,11173.52,"Revenue","PHILIA LODGE REST HOME","Residential Care"
"Peterborough","http://opendatacommunities.org/id/unitary-authority/peterborough","Peterborough City Council","Education","Special Educational Needs / Inclusion","Agency Staff",04/10/2017 00:00:00,30147273,1966.15,"Revenue","Protocol National Ltd","External Temporary Staff"
"Peterborough","http://opendatacommunities.org/id/unitary-authority/peterborough","Peterborough City Council","Adults","Independent Sector Placements","Services",04/10/2017 00:00:00,30147312,19127.4,"Revenue","Voyage","Home Care"
"Peterborough","http://opendatacommunities.org/id/unitary-authority/peterborough","Peterborough City Council","Adults","Independent Sector Placements","Services",04/10/2017 00:00:00,30147334,12240,"Revenue","Longueville Court (Barchester)","Residential Care"
"Peterborough","http://opendatacommunities.org/id/unitary-authority/peterborough","Peterborough City Council","Legal & Democratic","Legal Services","Agency Staff",04/10/2017 00:00:00,30147389,2025.38,"Revenue","Reed Specialist Recruitment Limited","External Temporary Staff"
"Peterborough","http://opendatacommunities.org/id/unitary-authority/peterborough","Peterborough City Council","Legal & Democratic","Legal Services","Agency Staff",04/10/2017 00:00:00,30147392,1468.56,"Revenue","Reed Specialist Recruitment Limited","External Temporary Staff"
"Peterborough","http://opendatacommunities.org/id/unitary-authority/peterborough","Peterborough City Council","Financial Services","Finance","Agency Staff",04/10/2017 00:00:00,30147394,646.76,"Revenue","Reed Specialist Recruitment Limited","External Temporary Staff"
"Peterborough","http://opendatacommunities.org/id/unitary-authority/peterborough","Peterborough City Council","Financial Services","Finance","Agency Staff",04/10/2017 00:00:00,30147397,792.91,"Revenue","Reed Specialist Recruitment Limited","External Temporary Staff"
"Peterborough","http://opendatacommunities.org/id/unitary-authority/peterborough","Peterborough City Council","Financial Services","Finance","Agency Staff",04/10/2017 00:00:00,30147405,734.4,"Revenue","Reed Specialist Recruitment Limited","External Temporary Staff"
"Peterborough","http://opendatacommunities.org/id/unitary-authority/peterborough","Peterborough City Council","City Servs & Communications","Regulatory Services","Agency Staff",04/10/2017 00:00:00,30147409,1209.53,"Revenue","Reed Specialist Recruitment Limited","External Temporary Staff"
"Peterborough","http://opendatacommunities.org/id/unitary-authority/peterborough","Peterborough City Council","Westcombe Engineering","Westcombe Engineering","Tools, Equipment, Furniture & Materials",04/10/2017 00:00:00,30147457,502.5,"Revenue","Barron Clark Castings Ltd","Items For Resale"
"Peterborough","http://opendatacommunities.org/id/unitary-authority/peterborough","Peterborough City Council","Adults","Independent Sector Placements","Services",04/10/2017 00:00:00,30147471,966,"Revenue","Cozy Care","Home Care"
"Peterborough","http://opendatacommunities.org/id/unitary-authority/peterborough","Peterborough City Council","Adults","Independent Sector Placements","Services",04/10/2017 00:00:00,30147502,-788.12,"Revenue","Avery House (Peterborough) t/a Brighterkind","Residential Care"
"Peterborough","http://opendatacommunities.org/id/unitary-authority/peterborough","Peterborough City Council","Adults","Independent Sector Placements","Services",04/10/2017 00:00:00,30147504,1152.96,"Revenue","BROADLEIGH NURSING HOME","Residential Care"
"Peterborough","http://opendatacommunities.org/id/unitary-authority/peterborough","Peterborough City Council","Adults","Independent Sector Placements","Services",04/10/2017 00:00:00,30147509,1585.2,"Revenue","Pilgrim Havens","Residential Care"
"Peterborough","http://opendatacommunities.org/id/unitary-authority/peterborough","Peterborough City Council","Adults","Independent Sector Placements","Services",04/10/2017 00:00:00,30147525,2256.75,"Revenue","Kemps Place Ltd","Residential Care"
"Peterborough","http://opendatacommunities.org/id/unitary-authority/peterborough","Peterborough City Council","Adults","Independent Sector Placements","Services",04/10/2017 00:00:00,30147531,1071,"Revenue","Kemps Place Ltd","Residential Care"
"Peterborough","http://opendatacommunities.org/id/unitary-authority/peterborough","Peterborough City Council","Adults","Independent Sector Placements","Services",04/10/2017 00:00:00,30147534,1071,"Revenue","Kemps Place Ltd","Residential Care"
"Peterborough","http://opendatacommunities.org/id/unitary-authority/peterborough","Peterborough City Council","Education","Pupil Referral Unit","Water Services",04/10/2017 00:00:00,30147548,1098.74,"Revenue","Anglian Water","Water"
"Peterborough","http://opendatacommunities.org/id/unitary-authority/peterborough","Peterborough City Council","Communities","Community Capacity","Water Services",04/10/2017 00:00:00,30147548,769.82,"Revenue","Anglian Water","Water"
"Peterborough","http://opendatacommunities.org/id/unitary-authority/peterborough","Peterborough City Council","Vivacity/Cultural Services","Cultural Services","Water Services",04/10/2017 00:00:00,30147548,8788.73,"Revenue","Anglian Water","Water"
"Peterborough","http://opendatacommunities.org/id/unitary-authority/peterborough","Peterborough City Council","Vivacity/Cultural Services","Cultural Services","Water Services",04/10/2017 00:00:00,30147548,1670.22,"Revenue","Anglian Water","Water"
"Peterborough","http://opendatacommunities.org/id/unitary-authority/peterborough","Peterborough City Council","Adults","Independent Sector Placements","Services",04/10/2017 00:00:00,30147568,1821.88,"Revenue","Park Vista Care Home","Residential Care"
"Peterborough","http://opendatacommunities.org/id/unitary-authority/peterborough","Peterborough City Council","Commissioning and Commercial Operations","Early Years & Quality Improvement","Services",04/10/2017 00:00:00,30147632,910,"Revenue","Whiz Kids Day Nursery","Grant Payment"
"Peterborough","http://opendatacommunities.org/id/unitary-authority/peterborough","Peterborough City Council","Commissioning and Commercial Operations","Early Years & Quality Improvement","Services",04/10/2017 00:00:00,30147633,1365,"Revenue","West Town Pre-School","Grant Payment"
"Peterborough","http://opendatacommunities.org/id/unitary-authority/peterborough","Peterborough City Council","Commissioning and Commercial Operations","Early Years & Quality Improvement","Services",04/10/2017 00:00:00,30147634,1729,"Revenue","Little Tigers Day Nursery","Grant Payment"
"Peterborough","http://opendatacommunities.org/id/unitary-authority/peterborough","Peterborough City Council","Adults","Independent Sector Placements","Services",04/10/2017 00:00:00,30147652,1985.71,"Revenue","Park Vista Care Home","Residential Care"
"Peterborough","http://opendatacommunities.org/id/unitary-authority/peterborough","Peterborough City Council","Adults","Independent Sector Placements","Services",04/10/2017 00:00:00,30147736,809.98,"Revenue","Park Vista Care Home","Residential Care"
"Peterborough","http://opendatacommunities.org/id/unitary-authority/peterborough","Peterborough City Council","Adults","Independent Sector Placements","Services",04/10/2017 00:00:00,30147737,1793.53,"Revenue","Park Vista Care Home","Residential Care"
"Peterborough","http://opendatacommunities.org/id/unitary-authority/peterborough","Peterborough City Council","Adults","Independent Sector Placements","Services",04/10/2017 00:00:00,30147738,4606.2,"Revenue","Mencap","Residential Care"
"Peterborough","http://opendatacommunities.org/id/unitary-authority/peterborough","Peterborough City Council","Adults","Independent Sector Placements","Services",04/10/2017 00:00:00,30147884,742.72,"Revenue","Athena (Ashlynn Grange)","Residential Care"
"Peterborough","http://opendatacommunities.org/id/unitary-authority/peterborough","Peterborough City Council","Education","School Improvement","Services",04/10/2017 00:00:00,30147908,758.3,"Revenue","Sir Harry Smith Community College","Grant Payment"
"Peterborough","http://opendatacommunities.org/id/unitary-authority/peterborough","Peterborough City Council","Adults","Independent Sector Placements","Services",04/10/2017 00:00:00,30147930,1820.96,"Revenue","Avery House (Peterborough) t/a Brighterkind","Residential Care"
"Peterborough","http://opendatacommunities.org/id/unitary-authority/peterborough","Peterborough City Council","Education","Pupil Referral Unit","Services",04/10/2017 00:00:00,30148003,511.75,"Revenue","Pearson Education","Exam Fees"
"Peterborough","http://opendatacommunities.org/id/unitary-authority/peterborough","Peterborough City Council","Children's & Safeguarding","Children's Social Care","Services",04/10/2017 00:00:00,30148017,730.99,"Revenue","Redacted Personal Information","Financial Assistance"
"Peterborough","http://opendatacommunities.org/id/unitary-authority/peterborough","Peterborough City Council","Children's & Safeguarding","Children's Social Care","Services",04/10/2017 00:00:00,30148119,580,"Revenue","Redacted Personal Information","Financial Assistance"
"Peterborough","http://opendatacommunities.org/id/unitary-authority/peterborough","Peterborough City Council","Adults","Other Services","Third Party Payments",04/10/2017 00:00:00,30148240,28382,"Revenue","P'Boro Council For Voluntary Srvs (PCVS)","Third Party Payments - Contract"
"Peterborough","http://opendatacommunities.org/id/unitary-authority/peterborough","Peterborough City Council","Adults","Other Services","Third Party Payments",04/10/2017 00:00:00,30148241,2990,"Revenue","P'Boro Council For Voluntary Srvs (PCVS)","Third Party Payments - Contract"
"Peterborough","http://opendatacommunities.org/id/unitary-authority/peterborough","Peterborough City Council","Commissioning and Commercial Operations","Clare Lodge","Agency Staff",04/10/2017 00:00:00,30148242,1520,"Revenue","Wrixon Care Services","External Temporary Staff"
"Peterborough","http://opendatacommunities.org/id/unitary-authority/peterborough","Peterborough City Council","Commissioning and Commercial Operations","Clare Lodge","Agency Staff",04/10/2017 00:00:00,30148243,1512,"Revenue","Wrixon Care Services","External Temporary Staff"
"Peterborough","http://opendatacommunities.org/id/unitary-authority/peterborough","Peterborough City Council","Commissioning and Commercial Operations","Clare Lodge","Agency Staff",04/10/2017 00:00:00,30148244,1872,"Revenue","Wrixon Care Services","External Temporary Staff"
"Peterborough","http://opendatacommunities.org/id/unitary-authority/peterborough","Peterborough City Council","Adults","Independent Sector Placements","Services",04/10/2017 00:00:00,30148249,4536.85,"Revenue","Athena (Ashlynn Grange)","Residential Care"
"Peterborough","http://opendatacommunities.org/id/unitary-authority/peterborough","Peterborough City Council","Adults","Independent Sector Placements","Services",04/10/2017 00:00:00,30148257,-1217.31,"Revenue","Athena (Ashlynn Grange)","Residential Care"
"Peterborough","http://opendatacommunities.org/id/unitary-authority/peterborough","Peterborough City Council","Adults","Independent Sector Placements","Services",04/10/2017 00:00:00,30148285,2780,"Revenue","LAVENDER HOUSE RESIDENTIAL HOME","Residential Care"
"Peterborough","http://opendatacommunities.org/id/unitary-authority/peterborough","Peterborough City Council","Education","Service Director Education","Salaries & Wages",04/10/2017 00:00:00,30148315,26947.3,"Revenue","Teachers Pensions","Pensions"
"Peterborough","http://opendatacommunities.org/id/unitary-authority/peterborough","Peterborough City Council","Adults","Independent Sector Placements","Services",04/10/2017 00:00:00,30148323,1163.42,"Revenue","Park Vista Care Home","Residential Care"
"Peterborough","http://opendatacommunities.org/id/unitary-authority/peterborough","Peterborough City Council","Adults","Independent Sector Placements","Services",04/10/2017 00:00:00,30148324,-662.74,"Revenue","Park Vista Care Home","Residential Care"
"Peterborough","http://opendatacommunities.org/id/unitary-authority/peterborough","Peterborough City Council","Corporate","Corporate","Non Revenue",04/10/2017 00:00:00,30148327,793046.33,"Balance Sheet","Teachers Pensions","Pensions"
"Peterborough","http://opendatacommunities.org/id/unitary-authority/peterborough","Peterborough City Council","Communities","Cohesion","Services",04/10/2017 00:00:00,30148348,575,"Revenue","Record Property Solutions","Financial Assistance"
"Peterborough","http://opendatacommunities.org/id/unitary-authority/peterborough","Peterborough City Council","Communities","Cohesion","Services",04/10/2017 00:00:00,30148349,800,"Revenue","Rightroom Lettings Ltd","Financial Assistance"
"Peterborough","http://opendatacommunities.org/id/unitary-authority/peterborough","Peterborough City Council","Adults","Block Contracts","Third Party Payments",04/10/2017 00:00:00,30148351,102684.66,"Revenue","Turning Point Services Ltd","Third Party Payments - Contract"
"Peterborough","http://opendatacommunities.org/id/unitary-authority/peterborough","Peterborough City Council","Communities","Cohesion","Services",04/10/2017 00:00:00,30148355,625,"Revenue","Record Property Solutions","Financial Assistance"
"Peterborough","http://opendatacommunities.org/id/unitary-authority/peterborough","Peterborough City Council","Communities","Cohesion","Services",04/10/2017 00:00:00,30148358,800,"Revenue","Hope Into Action","Financial Assistance"
"Peterborough","http://opendatacommunities.org/id/unitary-authority/peterborough","Peterborough City Council","Communities","Cohesion","Services",04/10/2017 00:00:00,30148360,625,"Revenue","Rightroom Lettings Ltd","Financial Assistance"
"Peterborough","http://opendatacommunities.org/id/unitary-authority/peterborough","Peterborough City Council","Commissioning and Commercial Operations","Clare Lodge","Agency Staff",04/10/2017 00:00:00,30148366,2240,"Revenue","Wrixon Care Services","External Temporary Staff"
"Peterborough","http://opendatacommunities.org/id/unitary-authority/peterborough","Peterborough City Council","Commissioning and Commercial Operations","Clare Lodge","Agency Staff",04/10/2017 00:00:00,30148367,2576,"Revenue","Wrixon Care Services","External Temporary Staff"
"Peterborough","http://opendatacommunities.org/id/unitary-authority/peterborough","Peterborough City Council","Commissioning and Commercial Operations","Clare Lodge","Agency Staff",04/10/2017 00:00:00,30148368,1056,"Revenue","Wrixon Care Services","External Temporary Staff"
"Peterborough","http://opendatacommunities.org/id/unitary-authority/peterborough","Peterborough City Council","Commissioning and Commercial Operations","Clare Lodge","Agency Staff",04/10/2017 00:00:00,30148369,1424,"Revenue","Wrixon Care Services","External Temporary Staff"
"Peterborough","http://opendatacommunities.org/id/unitary-authority/peterborough","Peterborough City Council","Commissioning and Commercial Operations","Clare Lodge","Agency Staff",04/10/2017 00:00:00,30148370,1536,"Revenue","Wrixon Care Services","External Temporary Staff"
"Peterborough","http://opendatacommunities.org/id/unitary-authority/peterborough","Peterborough City Council","Commissioning and Commercial Operations","Clare Lodge","Agency Staff",04/10/2017 00:00:00,30148371,1272,"Revenue","Wrixon Care Services","External Temporary Staff"
"Peterborough","http://opendatacommunities.org/id/unitary-authority/peterborough","Peterborough City Council","Adults","Independent Sector Placements","Services",04/10/2017 00:00:00,30148373,1026.99,"Revenue","The Regard Partnership Limited","Residential Care"
"Peterborough","http://opendatacommunities.org/id/unitary-authority/peterborough","Peterborough City Council","Commissioning and Commercial Operations","Clare Lodge","Agency Staff",04/10/2017 00:00:00,30148375,1136,"Revenue","Wrixon Care Services","External Temporary Staff"
"Peterborough","http://opendatacommunities.org/id/unitary-authority/peterborough","Peterborough City Council","Commissioning and Commercial Operations","Clare Lodge","Agency Staff",04/10/2017 00:00:00,30148376,1568,"Revenue","Wrixon Care Services","External Temporary Staff"
"Peterborough","http://opendatacommunities.org/id/unitary-authority/peterborough","Peterborough City Council","Commissioning and Commercial Operations","Clare Lodge","Agency Staff",04/10/2017 00:00:00,30148378,1109,"Revenue","Wrixon Care Services","External Temporary Staff"
"Peterborough","http://opendatacommunities.org/id/unitary-authority/peterborough","Peterborough City Council","Commissioning and Commercial Operations","Clare Lodge","Agency Staff",04/10/2017 00:00:00,30148379,2000,"Revenue","Wrixon Care Services","External Temporary Staff"
"Peterborough","http://opendatacommunities.org/id/unitary-authority/peterborough","Peterborough City Council","Commissioning and Commercial Operations","Clare Lodge","Agency Staff",04/10/2017 00:00:00,30148380,1776,"Revenue","Wrixon Care Services","External Temporary Staff"
"Peterborough","http://opendatacommunities.org/id/unitary-authority/peterborough","Peterborough City Council","Commissioning and Commercial Operations","Clare Lodge","Agency Staff",04/10/2017 00:00:00,30148381,2176,"Revenue","Wrixon Care Services","External Temporary Staff"
"Peterborough","http://opendatacommunities.org/id/unitary-authority/peterborough","Peterborough City Council","Commissioning and Commercial Operations","Clare Lodge","Agency Staff",04/10/2017 00:00:00,30148383,1952,"Revenue","Wrixon Care Services","External Temporary Staff"
"Peterborough","http://opendatacommunities.org/id/unitary-authority/peterborough","Peterborough City Council","Commissioning and Commercial Operations","Clare Lodge","Agency Staff",04/10/2017 00:00:00,30148387,1168,"Revenue","Wrixon Care Services","External Temporary Staff"
"Peterborough","http://opendatacommunities.org/id/unitary-authority/peterborough","Peterborough City Council","Commissioning and Commercial Operations","Clare Lodge","Agency Staff",04/10/2017 00:00:00,30148389,1088,"Revenue","Wrixon Care Services","External Temporary Staff"
"Peterborough","http://opendatacommunities.org/id/unitary-authority/peterborough","Peterborough City Council","Commissioning and Commercial Operations","Clare Lodge","Agency Staff",04/10/2017 00:00:00,30148391,608,"Revenue","Wrixon Care Services","External Temporary Staff"
"Peterborough","http://opendatacommunities.org/id/unitary-authority/peterborough","Peterborough City Council","Commissioning and Commercial Operations","Clare Lodge","Agency Staff",04/10/2017 00:00:00,30148392,1488,"Revenue","Wrixon Care Services","External Temporary Staff"
"Peterborough","http://opendatacommunities.org/id/unitary-authority/peterborough","Peterborough City Council","Commissioning and Commercial Operations","Clare Lodge","Agency Staff",04/10/2017 00:00:00,30148393,976,"Revenue","Wrixon Care Services","External Temporary Staff"
"Peterborough","http://opendatacommunities.org/id/unitary-authority/peterborough","Peterborough City Council","Commissioning and Commercial Operations","Clare Lodge","Agency Staff",04/10/2017 00:00:00,30148394,976,"Revenue","Wrixon Care Services","External Temporary Staff"
"Peterborough","http://opendatacommunities.org/id/unitary-authority/peterborough","Peterborough City Council","Adults","Independent Sector Placements","Services",04/10/2017 00:00:00,30148412,6190.67,"Revenue","Avery House (Peterborough) t/a Brighterkind","Residential Care"
"Peterborough","http://opendatacommunities.org/id/unitary-authority/peterborough","Peterborough City Council","Adults","Independent Sector Placements","Services",04/10/2017 00:00:00,30148413,1299.08,"Revenue","Avery House (Peterborough) t/a Brighterkind","Residential Care"
"Peterborough","http://opendatacommunities.org/id/unitary-authority/peterborough","Peterborough City Council","Adults","Independent Sector Placements","Services",04/10/2017 00:00:00,30148414,1024.4,"Revenue","Avery House (Peterborough) t/a Brighterkind","Residential Care"
"Peterborough","http://opendatacommunities.org/id/unitary-authority/peterborough","Peterborough City Council","Adults","Independent Sector Placements","Services",04/10/2017 00:00:00,30148415,1299.08,"Revenue","Avery House (Peterborough) t/a Brighterkind","Residential Care"
"Peterborough","http://opendatacommunities.org/id/unitary-authority/peterborough","Peterborough City Council","Adults","Independent Sector Placements","Services",04/10/2017 00:00:00,30148416,1821.88,"Revenue","Avery House (Peterborough) t/a Brighterkind","Residential Care"
"Peterborough","http://opendatacommunities.org/id/unitary-authority/peterborough","Peterborough City Council","Adults","Independent Sector Placements","Services",04/10/2017 00:00:00,30148417,1235.8,"Revenue","Avery House (Peterborough) t/a Brighterkind","Residential Care"
"Peterborough","http://opendatacommunities.org/id/unitary-authority/peterborough","Peterborough City Council","Adults","Independent Sector Placements","Services",04/10/2017 00:00:00,30148418,999.36,"Revenue","Avery House (Peterborough) t/a Brighterkind","Residential Care"
"Peterborough","http://opendatacommunities.org/id/unitary-authority/peterborough","Peterborough City Council","Adults","Independent Sector Placements","Services",04/10/2017 00:00:00,30148419,1284.08,"Revenue","Avery House (Peterborough) t/a Brighterkind","Residential Care"
"Peterborough","http://opendatacommunities.org/id/unitary-authority/peterborough","Peterborough City Council","Adults","Independent Sector Placements","Services",04/10/2017 00:00:00,30148420,3700,"Revenue","Avery House (Peterborough) t/a Brighterkind","Residential Care"
"Peterborough","http://opendatacommunities.org/id/unitary-authority/peterborough","Peterborough City Council","Adults","Independent Sector Placements","Services",04/10/2017 00:00:00,30148421,1292.08,"Revenue","Avery House (Peterborough) t/a Brighterkind","Residential Care"
"Peterborough","http://opendatacommunities.org/id/unitary-authority/peterborough","Peterborough City Council","Adults","Independent Sector Placements","Services",04/10/2017 00:00:00,30148422,1195.64,"Revenue","Avery House (Peterborough) t/a Brighterkind","Residential Care"
"Peterborough","http://opendatacommunities.org/id/unitary-authority/peterborough","Peterborough City Council","Corporate","Corporate","Non Revenue",04/10/2017 00:00:00,30148509,4636.36,"Capital","NPS Peterborough Ltd","Consultants Fees"
"Peterborough","http://opendatacommunities.org/id/unitary-authority/peterborough","Peterborough City Council","Adults","Independent Sector Placements","Services",04/10/2017 00:00:00,8000098010,583.1,"Revenue","Axiom Care Ltd","Home Care"
"Peterborough","http://opendatacommunities.org/id/unitary-authority/peterborough","Peterborough City Council","Adults","Independent Sector Placements","Services",04/10/2017 00:00:00,8000098013,833,"Revenue","Axiom Care Ltd","Home Care"
"Peterborough","http://opendatacommunities.org/id/unitary-authority/peterborough","Peterborough City Council","Adults","Independent Sector Placements","Services",04/10/2017 00:00:00,8000098017,2451.4,"Revenue","Axiom Care Ltd","Home Care"
"Peterborough","http://opendatacommunities.org/id/unitary-authority/peterborough","Peterborough City Council","Adults","Independent Sector Placements","Services",04/10/2017 00:00:00,8000098019,728.88,"Revenue","Axiom Care Ltd","Home Care"
"Peterborough","http://opendatacommunities.org/id/unitary-authority/peterborough","Peterborough City Council","Adults","Independent Sector Placements","Services",04/10/2017 00:00:00,8000098020,666.4,"Revenue","Axiom Care Ltd","Home Care"
"Peterborough","http://opendatacommunities.org/id/unitary-authority/peterborough","Peterborough City Council","Adults","Independent Sector Placements","Services",04/10/2017 00:00:00,8000098022,639.63,"Revenue","Axiom Care Ltd","Home Care"
"Peterborough","http://opendatacommunities.org/id/unitary-authority/peterborough","Peterborough City Council","Adults","Independent Sector Placements","Services",04/10/2017 00:00:00,8000098025,583.1,"Revenue","Axiom Care Ltd","Home Care"
"Peterborough","http://opendatacommunities.org/id/unitary-authority/peterborough","Peterborough City Council","Adults","Independent Sector Placements","Services",04/10/2017 00:00:00,8000098026,666.4,"Revenue","Axiom Care Ltd","Home Care"
"Peterborough","http://opendatacommunities.org/id/unitary-authority/peterborough","Peterborough City Council","Adults","Independent Sector Placements","Services",04/10/2017 00:00:00,8000098030,749.7,"Revenue","Axiom Care Ltd","Home Care"
"Peterborough","http://opendatacommunities.org/id/unitary-authority/peterborough","Peterborough City Council","Adults","Independent Sector Placements","Services",04/10/2017 00:00:00,8000098031,583.1,"Revenue","Axiom Care Ltd","Home Care"
"Peterborough","http://opendatacommunities.org/id/unitary-authority/peterborough","Peterborough City Council","Adults","Independent Sector Placements","Services",04/10/2017 00:00:00,8000098032,963.9,"Revenue","Axiom Care Ltd","Home Care"
"Peterborough","http://opendatacommunities.org/id/unitary-authority/peterborough","Peterborough City Council","Adults","Independent Sector Placements","Services",04/10/2017 00:00:00,8000098033,749.7,"Revenue","Axiom Care Ltd","Home Care"
"Peterborough","http://opendatacommunities.org/id/unitary-authority/peterborough","Peterborough City Council","Adults","Independent Sector Placements","Services",04/10/2017 00:00:00,8000098039,523.6,"Revenue","Axiom Care Ltd","Home Care"
"Peterborough","http://opendatacommunities.org/id/unitary-authority/peterborough","Peterborough City Council","Adults","Independent Sector Placements","Services",04/10/2017 00:00:00,8000098043,749.7,"Revenue","Axiom Care Ltd","Home Care"
"Peterborough","http://opendatacommunities.org/id/unitary-authority/peterborough","Peterborough City Council","Adults","Independent Sector Placements","Services",04/10/2017 00:00:00,8000098044,666.4,"Revenue","Axiom Care Ltd","Home Care"
"Peterborough","http://opendatacommunities.org/id/unitary-authority/peterborough","Peterborough City Council","Adults","Independent Sector Placements","Services",04/10/2017 00:00:00,8000098047,749.7,"Revenue","Axiom Care Ltd","Home Care"
"Peterborough","http://opendatacommunities.org/id/unitary-authority/peterborough","Peterborough City Council","Adults","Independent Sector Placements","Services",04/10/2017 00:00:00,8000098049,654.5,"Revenue","Axiom Care Ltd","Home Care"
"Peterborough","http://opendatacommunities.org/id/unitary-authority/peterborough","Peterborough City Council","Adults","Independent Sector Placements","Services",04/10/2017 00:00:00,8000098050,666.4,"Revenue","Axiom Care Ltd","Home Care"
"Peterborough","http://opendatacommunities.org/id/unitary-authority/peterborough","Peterborough City Council","Adults","Independent Sector Placements","Services",04/10/2017 00:00:00,8000098052,583.1,"Revenue","Axiom Care Ltd","Home Care"
"Peterborough","http://opendatacommunities.org/id/unitary-authority/peterborough","Peterborough City Council","Adults","Independent Sector Placements","Services",04/10/2017 00:00:00,8000098056,583.1,"Revenue","Axiom Care Ltd","Home Care"
"Peterborough","http://opendatacommunities.org/id/unitary-authority/peterborough","Peterborough City Council","Adults","Independent Sector Placements","Services",04/10/2017 00:00:00,8000098058,666.4,"Revenue","Axiom Care Ltd","Home Care"
"Peterborough","http://opendatacommunities.org/id/unitary-authority/peterborough","Peterborough City Council","Adults","Independent Sector Placements","Services",04/10/2017 00:00:00,8000098061,583.1,"Revenue","Axiom Care Ltd","Home Care"
"Peterborough","http://opendatacommunities.org/id/unitary-authority/peterborough","Peterborough City Council","Adults","Independent Sector Placements","Services",04/10/2017 00:00:00,8000098062,833,"Revenue","Axiom Care Ltd","Home Care"
"Peterborough","http://opendatacommunities.org/id/unitary-authority/peterborough","Peterborough City Council","Adults","Independent Sector Placements","Services",04/10/2017 00:00:00,8000098063,1082.9,"Revenue","Axiom Care Ltd","Home Care"
"Peterborough","http://opendatacommunities.org/id/unitary-authority/peterborough","Peterborough City Council","Adults","Independent Sector Placements","Services",04/10/2017 00:00:00,8000098065,810,"Revenue","Axiom Care Ltd","Home Care"
"Peterborough","http://opendatacommunities.org/id/unitary-authority/peterborough","Peterborough City Council","Adults","Independent Sector Placements","Services",04/10/2017 00:00:00,8000098066,630,"Revenue","Axiom Care Ltd","Home Care"
"Peterborough","http://opendatacommunities.org/id/unitary-authority/peterborough","Peterborough City Council","Adults","Independent Sector Placements","Services",04/10/2017 00:00:00,8000098068,735,"Revenue","Axiom Care Ltd","Home Care"
"Peterborough","http://opendatacommunities.org/id/unitary-authority/peterborough","Peterborough City Council","Adults","Independent Sector Placements","Services",04/10/2017 00:00:00,8000098069,1008.88,"Revenue","Axiom Housing Association","Home Care"
"Peterborough","http://opendatacommunities.org/id/unitary-authority/peterborough","Peterborough City Council","Adults","Independent Sector Placements","Services",04/10/2017 00:00:00,8000098096,1416.1,"Revenue","Axiom Care Ltd","Home Care"
"Peterborough","http://opendatacommunities.org/id/unitary-authority/peterborough","Peterborough City Council","Adults","Independent Sector Placements","Services",04/10/2017 00:00:00,8000098266,2499,"Revenue","Axiom Care Ltd","Home Care"
"Peterborough","http://opendatacommunities.org/id/unitary-authority/peterborough","Peterborough City Council","Adults","Independent Sector Placements","Services",04/10/2017 00:00:00,8000098269,1999.2,"Revenue","Axiom Care Ltd","Home Care"
"Peterborough","http://opendatacommunities.org/id/unitary-authority/peterborough","Peterborough City Council","Adults","Independent Sector Placements","Services",04/10/2017 00:00:00,8000098270,666.4,"Revenue","Axiom Care Ltd","Home Care"
"Peterborough","http://opendatacommunities.org/id/unitary-authority/peterborough","Peterborough City Council","Adults","Independent Sector Placements","Services",04/10/2017 00:00:00,8000098272,2261,"Revenue","Axiom Care Ltd","Home Care"
"Peterborough","http://opendatacommunities.org/id/unitary-authority/peterborough","Peterborough City Council","Adults","Independent Sector Placements","Services",04/10/2017 00:00:00,8000098274,1582.7,"Revenue","Axiom Care Ltd","Home Care"
"Peterborough","http://opendatacommunities.org/id/unitary-authority/peterborough","Peterborough City Council","Adults","Independent Sector Placements","Services",04/10/2017 00:00:00,8000098275,583.1,"Revenue","Axiom Care Ltd","Home Care"
"Peterborough","http://opendatacommunities.org/id/unitary-authority/peterborough","Peterborough City Council","Adults","Independent Sector Placements","Services",04/10/2017 00:00:00,8000098277,916.3,"Revenue","Axiom Care Ltd","Home Care"
"Peterborough","http://opendatacommunities.org/id/unitary-authority/peterborough","Peterborough City Council","Adults","Independent Sector Placements","Services",04/10/2017 00:00:00,8000098279,809.2,"Revenue","Axiom Care Ltd","Home Care"
"Peterborough","http://opendatacommunities.org/id/unitary-authority/peterborough","Peterborough City Council","Adults","Independent Sector Placements","Services",04/10/2017 00:00:00,8000098281,1082.9,"Revenue","Axiom Care Ltd","Home Care"
"Peterborough","http://opendatacommunities.org/id/unitary-authority/peterborough","Peterborough City Council","Adults","Independent Sector Placements","Services",04/10/2017 00:00:00,8000098282,547.4,"Revenue","Axiom Care Ltd","Home Care"
"Peterborough","http://opendatacommunities.org/id/unitary-authority/peterborough","Peterborough City Council","Adults","Independent Sector Placements","Services",04/10/2017 00:00:00,8000098461,535.5,"Revenue","Axiom Care Ltd","Home Care"
"Peterborough","http://opendatacommunities.org/id/unitary-authority/peterborough","Peterborough City Council","Children's & Safeguarding","Commissioning - CSC","Services",04/10/2017 00:00:00,8000099137,851.5,"Revenue","Redacted Personal Information","Financial Assistance"
"Peterborough","http://opendatacommunities.org/id/unitary-authority/peterborough","Peterborough City Council","Children's & Safeguarding","Commissioning - CSC","Services",04/10/2017 00:00:00,8000099137,940.85,"Revenue","Redacted Personal Information","Financial Assistance"
"Peterborough","http://opendatacommunities.org/id/unitary-authority/peterborough","Peterborough City Council","Adults","Independent Sector Placements","Services",04/10/2017 00:00:00,8000099139,3381.1,"Revenue","Redacted Personal Information","Adult Social Care Direct Payment"
"Peterborough","http://opendatacommunities.org/id/unitary-authority/peterborough","Peterborough City Council","Adults","Independent Sector Placements","Services",04/10/2017 00:00:00,8000099140,1354.56,"Revenue","Redacted Personal Information","Adult Social Care Direct Payment"
"Peterborough","http://opendatacommunities.org/id/unitary-authority/peterborough","Peterborough City Council","Adults","Independent Sector Placements","Services",04/10/2017 00:00:00,8000099141,3516.3,"Revenue","Redacted Personal Information","Adult Social Care Direct Payment"
"Peterborough","http://opendatacommunities.org/id/unitary-authority/peterborough","Peterborough City Council","Adults","Independent Sector Placements","Services",04/10/2017 00:00:00,8000099142,1165.71,"Revenue","Redacted Personal Information","Adult Social Care Direct Payment"
"Peterborough","http://opendatacommunities.org/id/unitary-authority/peterborough","Peterborough City Council","Adults","Independent Sector Placements","Services",04/10/2017 00:00:00,8000099143,833.14,"Revenue","Redacted Personal Information","Adult Social Care Direct Payment"
"Peterborough","http://opendatacommunities.org/id/unitary-authority/peterborough","Peterborough City Council","Adults","Independent Sector Placements","Services",04/10/2017 00:00:00,8000099144,564.29,"Revenue","Redacted Personal Information","Adult Social Care Direct Payment"
"Peterborough","http://opendatacommunities.org/id/unitary-authority/peterborough","Peterborough City Council","Adults","Independent Sector Placements","Services",04/10/2017 00:00:00,8000099145,928.74,"Revenue","Redacted Personal Information","Adult Social Care Direct Payment"
"Peterborough","http://opendatacommunities.org/id/unitary-authority/peterborough","Peterborough City Council","Adults","Independent Sector Placements","Services",04/10/2017 00:00:00,8000099146,1417.92,"Revenue","Redacted Personal Information","Adult Social Care Direct Payment"
"Peterborough","http://opendatacommunities.org/id/unitary-authority/peterborough","Peterborough City Council","Adults","Independent Sector Placements","Services",04/10/2017 00:00:00,8000099147,528,"Revenue","Redacted Personal Information","Adult Social Care Direct Payment"
"Peterborough","http://opendatacommunities.org/id/unitary-authority/peterborough","Peterborough City Council","Adults","Independent Sector Placements","Services",04/10/2017 00:00:00,8000099148,604.93,"Revenue","Redacted Personal Information","Adult Social Care Direct Payment"
"Peterborough","http://opendatacommunities.org/id/unitary-authority/peterborough","Peterborough City Council","Adults","Independent Sector Placements","Services",04/10/2017 00:00:00,8000099157,583.1,"Revenue","Axiom Care Ltd","Home Care"
"Peterborough","http://opendatacommunities.org/id/unitary-authority/peterborough","Peterborough City Council","Adults","Independent Sector Placements","Services",04/10/2017 00:00:00,8000099158,583.1,"Revenue","Axiom Care Ltd","Home Care"
"Peterborough","http://opendatacommunities.org/id/unitary-authority/peterborough","Peterborough City Council","Adults","Independent Sector Placements","Services",04/10/2017 00:00:00,8000099162,972.5,"Revenue","Cross Keys Homes","Home Care"
"Peterborough","http://opendatacommunities.org/id/unitary-authority/peterborough","Peterborough City Council","Adults","Independent Sector Placements","Services",04/10/2017 00:00:00,8000099166,666.4,"Revenue","Axiom Care Ltd","Home Care"
"Peterborough","http://opendatacommunities.org/id/unitary-authority/peterborough","Peterborough City Council","Adults","Independent Sector Placements","Services",04/10/2017 00:00:00,8000099167,511.7,"Revenue","Axiom Care Ltd","Home Care"
"Peterborough","http://opendatacommunities.org/id/unitary-authority/peterborough","Peterborough City Council","Adults","Independent Sector Placements","Services",04/10/2017 00:00:00,8000099225,732.72,"Revenue","Atlas Care Services Ltd","Home Care"
"Peterborough","http://opendatacommunities.org/id/unitary-authority/peterborough","Peterborough City Council","Adults","Independent Sector Placements","Services",04/10/2017 00:00:00,8000099273,525,"Revenue","Cross Keys Homes","Home Care"
"Peterborough","http://opendatacommunities.org/id/unitary-authority/peterborough","Peterborough City Council","Adults","Independent Sector Placements","Services",04/10/2017 00:00:00,8000099275,1147.5,"Revenue","Cross Keys Homes","Home Care"
"Peterborough","http://opendatacommunities.org/id/unitary-authority/peterborough","Peterborough City Council","Adults","Independent Sector Placements","Services",04/10/2017 00:00:00,8000099276,583.1,"Revenue","Axiom Care Ltd","Home Care"
"Peterborough","http://opendatacommunities.org/id/unitary-authority/peterborough","Peterborough City Council","Education","Special Educational Needs / Inclusion","Services",06/10/2017 00:00:00,30135943,-5880,"Revenue","Sonova UK Ltd","Education Expenses"
"Peterborough","http://opendatacommunities.org/id/unitary-authority/peterborough","Peterborough City Council","Education","Special Educational Needs / Inclusion","Services",06/10/2017 00:00:00,30139333,896.4,"Revenue","Sonova UK Ltd","Education Expenses"
"Peterborough","http://opendatacommunities.org/id/unitary-authority/peterborough","Peterborough City Council","Children's & Safeguarding","Children's Social Care","Services",06/10/2017 00:00:00,30140195,838,"Revenue","Serco Ltd","Ict Maintenance"
"Peterborough","http://opendatacommunities.org/id/unitary-authority/peterborough","Peterborough City Council","Education","Special Educational Needs / Inclusion","Services",06/10/2017 00:00:00,30140708,873,"Revenue","Sonova UK Ltd","Education Expenses"
"Peterborough","http://opendatacommunities.org/id/unitary-authority/peterborough","Peterborough City Council","Education","Special Educational Needs / Inclusion","Services",06/10/2017 00:00:00,30140709,873,"Revenue","Sonova UK Ltd","Education Expenses"
"Peterborough","http://opendatacommunities.org/id/unitary-authority/peterborough","Peterborough City Council","Adults","Independent Sector Placements","Services",06/10/2017 00:00:00,30143819,2357.14,"Revenue","Linkage Community Trust Limited","Residential Care"
"Peterborough","http://opendatacommunities.org/id/unitary-authority/peterborough","Peterborough City Council","Adults","Independent Sector Placements","Services",06/10/2017 00:00:00,30145327,-1457.14,"Revenue","EXCELCARE GLENNFIELD HOUSE","Residential Care"
"Peterborough","http://opendatacommunities.org/id/unitary-authority/peterborough","Peterborough City Council","Corporate Property","Commercial Propety","Third Party Payments",06/10/2017 00:00:00,30145630,16750,"Revenue","Opportunity Peterborough T/A OP Ltd","Third Party Payments - Contract"
"Peterborough","http://opendatacommunities.org/id/unitary-authority/peterborough","Peterborough City Council","Corporate","Corporate","Non Revenue",06/10/2017 00:00:00,30145633,500,"Capital","Opportunity Peterborough T/A OP Ltd","Consultants Fees"
"Peterborough","http://opendatacommunities.org/id/unitary-authority/peterborough","Peterborough City Council","Adults","Block Contracts","Third Party Payments",06/10/2017 00:00:00,30145743,6837.36,"Revenue","Axiom Housing Association","Third Party Payments - Contract"
"Peterborough","http://opendatacommunities.org/id/unitary-authority/peterborough","Peterborough City Council","Education","Pupil Referral Unit","Agency Staff",06/10/2017 00:00:00,30145795,2572.7,"Revenue","Grade A Recruitment Ltd","Supply Teachers"
"Peterborough","http://opendatacommunities.org/id/unitary-authority/peterborough","Peterborough City Council","Westcombe Engineering","Westcombe Engineering","Tools, Equipment, Furniture & Materials",06/10/2017 00:00:00,30145818,2430,"Revenue","Thomas Dudley Ltd","Items For Resale"
"Peterborough","http://opendatacommunities.org/id/unitary-authority/peterborough","Peterborough City Council","Education","Pupil Referral Unit","Agency Staff",06/10/2017 00:00:00,30145819,550,"Revenue","Grade A Recruitment Ltd","Supply Teachers"
"Peterborough","http://opendatacommunities.org/id/unitary-authority/peterborough","Peterborough City Council","Adults","Home Services Delivery Model","Services",06/10/2017 00:00:00,30145823,854.25,"Revenue","Nightingale Services","Contractors"
"Peterborough","http://opendatacommunities.org/id/unitary-authority/peterborough","Peterborough City Council","Adults","Mental Capacity Act & DoLs","Services",06/10/2017 00:00:00,30145825,2835.8,"Revenue","Dr Nauman Khalil Ltd","Hired Services"
"Peterborough","http://opendatacommunities.org/id/unitary-authority/peterborough","Peterborough City Council","Corporate Items","Corporate Services","Services",06/10/2017 00:00:00,30145841,1014,"Revenue","Pinsent Masons","Legal Costs"
"Peterborough","http://opendatacommunities.org/id/unitary-authority/peterborough","Peterborough City Council","Adults","Independent Sector Placements","Services",06/10/2017 00:00:00,30145965,1884.08,"Revenue","Avery House (Peterborough) t/a Brighterkind","Residential Care"
"Peterborough","http://opendatacommunities.org/id/unitary-authority/peterborough","Peterborough City Council","Adults","Independent Sector Placements","Services",06/10/2017 00:00:00,30145989,1884.08,"Revenue","Avery House (Peterborough) t/a Brighterkind","Residential Care"
"Peterborough","http://opendatacommunities.org/id/unitary-authority/peterborough","Peterborough City Council","Adults","Independent Sector Placements","Services",06/10/2017 00:00:00,30145990,1884.08,"Revenue","Avery House (Peterborough) t/a Brighterkind","Residential Care"
"Peterborough","http://opendatacommunities.org/id/unitary-authority/peterborough","Peterborough City Council","Adults","Independent Sector Placements","Services",06/10/2017 00:00:00,30145991,1884.08,"Revenue","Avery House (Peterborough) t/a Brighterkind","Residential Care"
"Peterborough","http://opendatacommunities.org/id/unitary-authority/peterborough","Peterborough City Council","Financial Services","Finance","Agency Staff",06/10/2017 00:00:00,30146018,1092.28,"Revenue","Morgan Hunt UK Ltd","External Temporary Staff"
"Peterborough","http://opendatacommunities.org/id/unitary-authority/peterborough","Peterborough City Council","Adults","Independent Sector Placements","Services",06/10/2017 00:00:00,30146077,14588,"Revenue","Decoy Farm","Residential Care"
"Peterborough","http://opendatacommunities.org/id/unitary-authority/peterborough","Peterborough City Council","Adults","Independent Sector Placements","Services",06/10/2017 00:00:00,30146112,979.8,"Revenue","Mencap","Home Care"
"Peterborough","http://opendatacommunities.org/id/unitary-authority/peterborough","Peterborough City Council","Legal & Democratic","Elections","Services",06/10/2017 00:00:00,30146117,1250,"Revenue","Tracsis Traffic Data Limited","Hired Services"
"Peterborough","http://opendatacommunities.org/id/unitary-authority/peterborough","Peterborough City Council","Adults","Independent Sector Placements","Services",06/10/2017 00:00:00,30146254,6354.32,"Revenue","Home From Home Care","Residential Care"
"Peterborough","http://opendatacommunities.org/id/unitary-authority/peterborough","Peterborough City Council","Adults","Independent Sector Placements","Services",06/10/2017 00:00:00,30146255,7002.04,"Revenue","Home From Home Care","Residential Care"
"Peterborough","http://opendatacommunities.org/id/unitary-authority/peterborough","Peterborough City Council","Adults","Independent Sector Placements","Services",06/10/2017 00:00:00,30146256,7814.04,"Revenue","Home From Home Care","Residential Care"
"Peterborough","http://opendatacommunities.org/id/unitary-authority/peterborough","Peterborough City Council","Adults","Independent Sector Placements","Services",06/10/2017 00:00:00,30146257,8328.92,"Revenue","Home From Home Care","Residential Care"
"Peterborough","http://opendatacommunities.org/id/unitary-authority/peterborough","Peterborough City Council","Adults","Independent Sector Placements","Services",06/10/2017 00:00:00,30146286,2318,"Revenue","Thera East Anglia","Day Care"
"Peterborough","http://opendatacommunities.org/id/unitary-authority/peterborough","Peterborough City Council","Adults","Independent Sector Placements","Services",06/10/2017 00:00:00,30146288,945,"Revenue","Thera East Anglia","Day Care"
"Peterborough","http://opendatacommunities.org/id/unitary-authority/peterborough","Peterborough City Council","Adults","Independent Sector Placements","Services",06/10/2017 00:00:00,30146290,2318,"Revenue","Thera East Anglia","Day Care"
"Peterborough","http://opendatacommunities.org/id/unitary-authority/peterborough","Peterborough City Council","Adults","Independent Sector Placements","Services",06/10/2017 00:00:00,30146294,645,"Revenue","Thera East Anglia","Day Care"
"Peterborough","http://opendatacommunities.org/id/unitary-authority/peterborough","Peterborough City Council","Adults","Independent Sector Placements","Services",06/10/2017 00:00:00,30146298,1197,"Revenue","Thera East Anglia","Day Care"
"Peterborough","http://opendatacommunities.org/id/unitary-authority/peterborough","Peterborough City Council","Adults","Independent Sector Placements","Services",06/10/2017 00:00:00,30146299,549,"Revenue","Thera East Anglia","Day Care"
"Peterborough","http://opendatacommunities.org/id/unitary-authority/peterborough","Peterborough City Council","Westcombe Engineering","Westcombe Engineering","Tools, Equipment, Furniture & Materials",06/10/2017 00:00:00,30146323,675.42,"Revenue","Carillon Industrial Services Ltd","Furniture And Equipment"
"Peterborough","http://opendatacommunities.org/id/unitary-authority/peterborough","Peterborough City Council","Education","PFI","Services",06/10/2017 00:00:00,30146388,1880.94,"Revenue","IIC by Education (P'boro) Ltd","Service Charge"
"Peterborough","http://opendatacommunities.org/id/unitary-authority/peterborough","Peterborough City Council","Adults","Independent Sector Placements","Services",06/10/2017 00:00:00,30146405,852,"Revenue","Mencap","Home Care"
"Peterborough","http://opendatacommunities.org/id/unitary-authority/peterborough","Peterborough City Council","Adults","Independent Sector Placements","Services",06/10/2017 00:00:00,30146406,6492,"Revenue","Mencap","Home Care"
"Peterborough","http://opendatacommunities.org/id/unitary-authority/peterborough","Peterborough City Council","Adults","Independent Sector Placements","Services",06/10/2017 00:00:00,30146407,1500.64,"Revenue","Mencap","Home Care"
"Peterborough","http://opendatacommunities.org/id/unitary-authority/peterborough","Peterborough City Council","Adults","Independent Sector Placements","Services",06/10/2017 00:00:00,30146409,6302.2,"Revenue","Mencap","Residential Care"
"Peterborough","http://opendatacommunities.org/id/unitary-authority/peterborough","Peterborough City Council","Adults","Independent Sector Placements","Services",06/10/2017 00:00:00,30146411,1671.04,"Revenue","Mencap","Home Care"
"Peterborough","http://opendatacommunities.org/id/unitary-authority/peterborough","Peterborough City Council","Adults","Independent Sector Placements","Services",06/10/2017 00:00:00,30146412,5199.8,"Revenue","Mencap","Home Care"
"Peterborough","http://opendatacommunities.org/id/unitary-authority/peterborough","Peterborough City Council","Adults","Independent Sector Placements","Services",06/10/2017 00:00:00,30146414,1542,"Revenue","Mencap","Home Care"
"Peterborough","http://opendatacommunities.org/id/unitary-authority/peterborough","Peterborough City Council","Adults","Independent Sector Placements","Services",06/10/2017 00:00:00,30146415,695.8,"Revenue","Mencap","Home Care"
"Peterborough","http://opendatacommunities.org/id/unitary-authority/peterborough","Peterborough City Council","Adults","Independent Sector Placements","Services",06/10/2017 00:00:00,30146422,2318,"Revenue","Thera East Anglia","Day Care"
"Peterborough","http://opendatacommunities.org/id/unitary-authority/peterborough","Peterborough City Council","Adults","Independent Sector Placements","Services",06/10/2017 00:00:00,30146426,817,"Revenue","Thera East Anglia","Day Care"
"Peterborough","http://opendatacommunities.org/id/unitary-authority/peterborough","Peterborough City Council","Adults","Independent Sector Placements","Services",06/10/2017 00:00:00,30146427,2318,"Revenue","Thera East Anglia","Day Care"
"Peterborough","http://opendatacommunities.org/id/unitary-authority/peterborough","Peterborough City Council","Adults","Independent Sector Placements","Services",06/10/2017 00:00:00,30146432,1952,"Revenue","Thera East Anglia","Day Care"
"Peterborough","http://opendatacommunities.org/id/unitary-authority/peterborough","Peterborough City Council","Adults","Independent Sector Placements","Services",06/10/2017 00:00:00,30146437,1464,"Revenue","Thera East Anglia","Day Care"
"Peterborough","http://opendatacommunities.org/id/unitary-authority/peterborough","Peterborough City Council","Adults","Independent Sector Placements","Services",06/10/2017 00:00:00,30146439,1876.08,"Revenue","Avery House (Peterborough) t/a Brighterkind","Residential Care"
"Peterborough","http://opendatacommunities.org/id/unitary-authority/peterborough","Peterborough City Council","Adults","Independent Sector Placements","Services",06/10/2017 00:00:00,30146440,549,"Revenue","Thera East Anglia","Day Care"
"Peterborough","http://opendatacommunities.org/id/unitary-authority/peterborough","Peterborough City Council","Adults","Independent Sector Placements","Services",06/10/2017 00:00:00,30146443,1197,"Revenue","Thera East Anglia","Day Care"
"Peterborough","http://opendatacommunities.org/id/unitary-authority/peterborough","Peterborough City Council","Adults","Independent Sector Placements","Services",06/10/2017 00:00:00,30146447,549,"Revenue","Thera East Anglia","Day Care"
"Peterborough","http://opendatacommunities.org/id/unitary-authority/peterborough","Peterborough City Council","Adults","Independent Sector Placements","Services",06/10/2017 00:00:00,30146449,549,"Revenue","Thera East Anglia","Day Care"
"Peterborough","http://opendatacommunities.org/id/unitary-authority/peterborough","Peterborough City Council","Adults","Independent Sector Placements","Services",06/10/2017 00:00:00,30146450,549,"Revenue","Thera East Anglia","Day Care"
"Peterborough","http://opendatacommunities.org/id/unitary-authority/peterborough","Peterborough City Council","Adults","Independent Sector Placements","Services",06/10/2017 00:00:00,30146451,2318,"Revenue","Thera East Anglia","Day Care"
"Peterborough","http://opendatacommunities.org/id/unitary-authority/peterborough","Peterborough City Council","Adults","Independent Sector Placements","Services",06/10/2017 00:00:00,30146453,1197,"Revenue","Thera East Anglia","Day Care"
"Peterborough","http://opendatacommunities.org/id/unitary-authority/peterborough","Peterborough City Council","Adults","Independent Sector Placements","Services",06/10/2017 00:00:00,30146459,3339.25,"Revenue","Thera East Anglia","Day Care"
"Peterborough","http://opendatacommunities.org/id/unitary-authority/peterborough","Peterborough City Council","Adults","Independent Sector Placements","Services",06/10/2017 00:00:00,30146460,1197,"Revenue","Thera East Anglia","Day Care"
"Peterborough","http://opendatacommunities.org/id/unitary-authority/peterborough","Peterborough City Council","Adults","Independent Sector Placements","Services",06/10/2017 00:00:00,30146463,2318,"Revenue","Thera East Anglia","Day Care"
"Peterborough","http://opendatacommunities.org/id/unitary-authority/peterborough","Peterborough City Council","Adults","Independent Sector Placements","Services",06/10/2017 00:00:00,30146475,1804.2,"Revenue","THE LODGE TRUST","Residential Care"
"Peterborough","http://opendatacommunities.org/id/unitary-authority/peterborough","Peterborough City Council","Adults","Independent Sector Placements","Services",06/10/2017 00:00:00,30146529,1636.8,"Revenue","Mencap","Home Care"
"Peterborough","http://opendatacommunities.org/id/unitary-authority/peterborough","Peterborough City Council","Adults","Independent Sector Placements","Services",06/10/2017 00:00:00,30146531,562.4,"Revenue","Mencap","Home Care"
"Peterborough","http://opendatacommunities.org/id/unitary-authority/peterborough","Peterborough City Council","Adults","Independent Sector Placements","Services",06/10/2017 00:00:00,30146534,681.6,"Revenue","Mencap","Home Care"
"Peterborough","http://opendatacommunities.org/id/unitary-authority/peterborough","Peterborough City Council","Adults","Independent Sector Placements","Services",06/10/2017 00:00:00,30146535,6548.8,"Revenue","Mencap","Home Care"
"Peterborough","http://opendatacommunities.org/id/unitary-authority/peterborough","Peterborough City Council","Adults","Independent Sector Placements","Services",06/10/2017 00:00:00,30146536,1107.6,"Revenue","Mencap","Home Care"
"Peterborough","http://opendatacommunities.org/id/unitary-authority/peterborough","Peterborough City Council","Adults","Independent Sector Placements","Services",06/10/2017 00:00:00,30146537,7425.6,"Revenue","Mencap","Home Care"
"Peterborough","http://opendatacommunities.org/id/unitary-authority/peterborough","Peterborough City Council","Adults","Independent Sector Placements","Services",06/10/2017 00:00:00,30146538,852,"Revenue","Mencap","Home Care"
"Peterborough","http://opendatacommunities.org/id/unitary-authority/peterborough","Peterborough City Council","Adults","Independent Sector Placements","Services",06/10/2017 00:00:00,30146539,1306.4,"Revenue","Mencap","Home Care"
"Peterborough","http://opendatacommunities.org/id/unitary-authority/peterborough","Peterborough City Council","Adults","Independent Sector Placements","Services",06/10/2017 00:00:00,30146540,2215.2,"Revenue","Mencap","Home Care"
"Peterborough","http://opendatacommunities.org/id/unitary-authority/peterborough","Peterborough City Council","Adults","Independent Sector Placements","Services",06/10/2017 00:00:00,30146542,3369.24,"Revenue","Mencap","Home Care"
"Peterborough","http://opendatacommunities.org/id/unitary-authority/peterborough","Peterborough City Council","Adults","Independent Sector Placements","Services",06/10/2017 00:00:00,30146546,3400,"Revenue","EXCELCARE GLENNFIELD HOUSE","Residential Care"
"Peterborough","http://opendatacommunities.org/id/unitary-authority/peterborough","Peterborough City Council","Education","Special Educational Needs / Inclusion","Services",06/10/2017 00:00:00,30146554,2689.2,"Revenue","Sonova UK Ltd","Education Expenses"
"Peterborough","http://opendatacommunities.org/id/unitary-authority/peterborough","Peterborough City Council","Education","Special Educational Needs / Inclusion","Services",06/10/2017 00:00:00,30146555,1344.6,"Revenue","Sonova UK Ltd","Education Expenses"
"Peterborough","http://opendatacommunities.org/id/unitary-authority/peterborough","Peterborough City Council","Adults","Independent Sector Placements","Services",06/10/2017 00:00:00,30146558,3720,"Revenue","EXCELCARE GLENNFIELD HOUSE","Residential Care"
"Peterborough","http://opendatacommunities.org/id/unitary-authority/peterborough","Peterborough City Council","Adults","Independent Sector Placements","Services",06/10/2017 00:00:00,30146567,3200,"Revenue","EXCELCARE GLENNFIELD HOUSE","Residential Care"
"Peterborough","http://opendatacommunities.org/id/unitary-authority/peterborough","Peterborough City Council","Adults","Independent Sector Placements","Services",06/10/2017 00:00:00,30146568,1680,"Revenue","EXCELCARE GLENNFIELD HOUSE","Residential Care"
"Peterborough","http://opendatacommunities.org/id/unitary-authority/peterborough","Peterborough City Council","Adults","Independent Sector Placements","Services",06/10/2017 00:00:00,30146608,1811.24,"Revenue","Excelcare Aliwal Manor","Residential Care"
"Peterborough","http://opendatacommunities.org/id/unitary-authority/peterborough","Peterborough City Council","Adults","Independent Sector Placements","Services",06/10/2017 00:00:00,30146611,8597.96,"Revenue","Consensus Support Services Ltd","Residential Care"
"Peterborough","http://opendatacommunities.org/id/unitary-authority/peterborough","Peterborough City Council","Adults","Independent Sector Placements","Services",06/10/2017 00:00:00,30146612,3785.4,"Revenue","Community Care Solutions Ltd","Residential Care"
"Peterborough","http://opendatacommunities.org/id/unitary-authority/peterborough","Peterborough City Council","Adults","Independent Sector Placements","Services",06/10/2017 00:00:00,30146794,2424,"Revenue","The Regard Partnership Limited","Residential Care"
"Peterborough","http://opendatacommunities.org/id/unitary-authority/peterborough","Peterborough City Council","Children's & Safeguarding","Commissioning - CSC","Services",06/10/2017 00:00:00,30146864,1464.58,"Revenue","K2 CARE LTD","Purchased Social Care Services"
"Peterborough","http://opendatacommunities.org/id/unitary-authority/peterborough","Peterborough City Council","Adults","OP/PD/SI","Third Party Payments",06/10/2017 00:00:00,30146940,73250,"Revenue","Alzheimer's Society","Third Party Payments - Contract"
"Peterborough","http://opendatacommunities.org/id/unitary-authority/peterborough","Peterborough City Council","Adults","OP/PD/SI","Third Party Payments",06/10/2017 00:00:00,30146941,73250,"Revenue","Alzheimer's Society","Third Party Payments - Contract"
"Peterborough","http://opendatacommunities.org/id/unitary-authority/peterborough","Peterborough City Council","Communities","Housing","Services",06/10/2017 00:00:00,30147062,36312.5,"Revenue","Stef & Philips Ltd","Homelessness Bed & Breakfast Costs"
"Peterborough","http://opendatacommunities.org/id/unitary-authority/peterborough","Peterborough City Council","Adults","Independent Sector Placements","Services",06/10/2017 00:00:00,30147077,1174.16,"Revenue","Athena","Residential Care"
"Peterborough","http://opendatacommunities.org/id/unitary-authority/peterborough","Peterborough City Council","Adults","Independent Sector Placements","Services",06/10/2017 00:00:00,30147146,2577.61,"Revenue","ABOUT ME CARE AND SUPPORT LTD","Home Care"
"Peterborough","http://opendatacommunities.org/id/unitary-authority/peterborough","Peterborough City Council","Adults","Independent Sector Placements","Services",06/10/2017 00:00:00,30147147,1324.87,"Revenue","ABOUT ME CARE AND SUPPORT LTD","Home Care"
"Peterborough","http://opendatacommunities.org/id/unitary-authority/peterborough","Peterborough City Council","Adults","Independent Sector Placements","Services",06/10/2017 00:00:00,30147148,2148.01,"Revenue","ABOUT ME CARE AND SUPPORT LTD","Home Care"
"Peterborough","http://opendatacommunities.org/id/unitary-authority/peterborough","Peterborough City Council","Adults","Independent Sector Placements","Services",06/10/2017 00:00:00,30147149,1884,"Revenue","ABOUT ME CARE AND SUPPORT LTD","Home Care"
"Peterborough","http://opendatacommunities.org/id/unitary-authority/peterborough","Peterborough City Council","Adults","Independent Sector Placements","Services",06/10/2017 00:00:00,30147150,1575.2,"Revenue","ABOUT ME CARE AND SUPPORT LTD","Home Care"
"Peterborough","http://opendatacommunities.org/id/unitary-authority/peterborough","Peterborough City Council","Adults","Independent Sector Placements","Services",06/10/2017 00:00:00,30147152,698.1,"Revenue","ABOUT ME CARE AND SUPPORT LTD","Home Care"
"Peterborough","http://opendatacommunities.org/id/unitary-authority/peterborough","Peterborough City Council","Adults","Independent Sector Placements","Services",06/10/2017 00:00:00,30147154,563.85,"Revenue","ABOUT ME CARE AND SUPPORT LTD","Home Care"
"Peterborough","http://opendatacommunities.org/id/unitary-authority/peterborough","Peterborough City Council","Adults","Independent Sector Placements","Services",06/10/2017 00:00:00,30147155,859.2,"Revenue","ABOUT ME CARE AND SUPPORT LTD","Home Care"
"Peterborough","http://opendatacommunities.org/id/unitary-authority/peterborough","Peterborough City Council","Adults","Independent Sector Placements","Services",06/10/2017 00:00:00,30147181,3230.92,"Revenue","K2 CARE LTD","Home Care"
"Peterborough","http://opendatacommunities.org/id/unitary-authority/peterborough","Peterborough City Council","Adults","Independent Sector Placements","Services",06/10/2017 00:00:00,30147183,2268.2,"Revenue","K2 CARE LTD","Home Care"
"Peterborough","http://opendatacommunities.org/id/unitary-authority/peterborough","Peterborough City Council","Adults","Independent Sector Placements","Services",06/10/2017 00:00:00,30147184,784.08,"Revenue","K2 CARE LTD","Home Care"
"Peterborough","http://opendatacommunities.org/id/unitary-authority/peterborough","Peterborough City Council","Adults","Independent Sector Placements","Services",06/10/2017 00:00:00,30147185,1095.6,"Revenue","K2 CARE LTD","Home Care"
"Peterborough","http://opendatacommunities.org/id/unitary-authority/peterborough","Peterborough City Council","Adults","Independent Sector Placements","Services",06/10/2017 00:00:00,30147186,3600,"Revenue","Alysia Caring Ltd T/a Cherry Blossom care Home","Residential Care"
"Peterborough","http://opendatacommunities.org/id/unitary-authority/peterborough","Peterborough City Council","Adults","Independent Sector Placements","Services",06/10/2017 00:00:00,30147187,2128.92,"Revenue","Alysia Caring Ltd T/a Cherry Blossom care Home","Residential Care"
"Peterborough","http://opendatacommunities.org/id/unitary-authority/peterborough","Peterborough City Council","Adults","Independent Sector Placements","Services",06/10/2017 00:00:00,30147188,3600,"Revenue","Alysia Caring Ltd T/a Cherry Blossom care Home","Residential Care"
"Peterborough","http://opendatacommunities.org/id/unitary-authority/peterborough","Peterborough City Council","Adults","Independent Sector Placements","Services",06/10/2017 00:00:00,30147189,3100,"Revenue","Alysia Caring Ltd T/a Cherry Blossom care Home","Residential Care"
"Peterborough","http://opendatacommunities.org/id/unitary-authority/peterborough","Peterborough City Council","Adults","Independent Sector Placements","Services",06/10/2017 00:00:00,30147190,2909.28,"Revenue","Alysia Caring Ltd T/a Cherry Blossom care Home","Residential Care"
"Peterborough","http://opendatacommunities.org/id/unitary-authority/peterborough","Peterborough City Council","Adults","Independent Sector Placements","Services",06/10/2017 00:00:00,30147191,2128.92,"Revenue","Alysia Caring Ltd T/a Cherry Blossom care Home","Residential Care"
"Peterborough","http://opendatacommunities.org/id/unitary-authority/peterborough","Peterborough City Council","Adults","Independent Sector Placements","Services",06/10/2017 00:00:00,30147192,2842.2,"Revenue","Alysia Caring Ltd T/a Cherry Blossom care Home","Residential Care"
"Peterborough","http://opendatacommunities.org/id/unitary-authority/peterborough","Peterborough City Council","Adults","Independent Sector Placements","Services",06/10/2017 00:00:00,30147193,2467.48,"Revenue","Alysia Caring Ltd T/a Cherry Blossom care Home","Residential Care"
"Peterborough","http://opendatacommunities.org/id/unitary-authority/peterborough","Peterborough City Council","Adults","Independent Sector Placements","Services",06/10/2017 00:00:00,30147194,3100,"Revenue","Alysia Caring Ltd T/a Cherry Blossom care Home","Residential Care"
"Peterborough","http://opendatacommunities.org/id/unitary-authority/peterborough","Peterborough City Council","Adults","Independent Sector Placements","Services",06/10/2017 00:00:00,30147195,1900.52,"Revenue","Alysia Caring Ltd T/a Cherry Blossom care Home","Residential Care"
"Peterborough","http://opendatacommunities.org/id/unitary-authority/peterborough","Peterborough City Council","Adults","Independent Sector Placements","Services",06/10/2017 00:00:00,30147196,2739.2,"Revenue","Alysia Caring Ltd T/a Cherry Blossom care Home","Residential Care"
"Peterborough","http://opendatacommunities.org/id/unitary-authority/peterborough","Peterborough City Council","Adults","Independent Sector Placements","Services",06/10/2017 00:00:00,30147197,1900.52,"Revenue","Alysia Caring Ltd T/a Cherry Blossom care Home","Residential Care"
"Peterborough","http://opendatacommunities.org/id/unitary-authority/peterborough","Peterborough City Council","Adults","Independent Sector Placements","Services",06/10/2017 00:00:00,30147199,1013.44,"Revenue","Alysia Caring Ltd T/a Cherry Blossom care Home","Residential Care"
"Peterborough","http://opendatacommunities.org/id/unitary-authority/peterborough","Peterborough City Council","Adults","Independent Sector Placements","Services",06/10/2017 00:00:00,30147201,3460.44,"Revenue","Alysia Caring Ltd T/a Cherry Blossom care Home","Residential Care"
"Peterborough","http://opendatacommunities.org/id/unitary-authority/peterborough","Peterborough City Council","Adults","Independent Sector Placements","Services",06/10/2017 00:00:00,30147204,3100,"Revenue","Alysia Caring Ltd T/a Cherry Blossom care Home","Residential Care"
"Peterborough","http://opendatacommunities.org/id/unitary-authority/peterborough","Peterborough City Council","Adults","Independent Sector Placements","Services",06/10/2017 00:00:00,30147205,1775.76,"Revenue","Alysia Caring Ltd T/a Cherry Blossom care Home","Residential Care"
"Peterborough","http://opendatacommunities.org/id/unitary-authority/peterborough","Peterborough City Council","Adults","Independent Sector Placements","Services",06/10/2017 00:00:00,30147211,2952.8,"Revenue","Alysia Caring Ltd T/a Cherry Blossom care Home","Residential Care"
"Peterborough","http://opendatacommunities.org/id/unitary-authority/peterborough","Peterborough City Council","Adults","Independent Sector Placements","Services",06/10/2017 00:00:00,30147212,1862.2,"Revenue","Alysia Caring Ltd T/a Cherry Blossom care Home","Residential Care"
"Peterborough","http://opendatacommunities.org/id/unitary-authority/peterborough","Peterborough City Council","Adults","Independent Sector Placements","Services",06/10/2017 00:00:00,30147214,1013.44,"Revenue","Alysia Caring Ltd T/a Cherry Blossom care Home","Residential Care"
"Peterborough","http://opendatacommunities.org/id/unitary-authority/peterborough","Peterborough City Council","Adults","Independent Sector Placements","Services",06/10/2017 00:00:00,30147325,-10833.6,"Revenue","SOCIAL CARE SOLUTIONS LTD","Home Care"
"Peterborough","http://opendatacommunities.org/id/unitary-authority/peterborough","Peterborough City Council","Adults","Independent Sector Placements","Services",06/10/2017 00:00:00,30147336,6966.72,"Revenue","Autism Care (UK) Ltd","Residential Care"
"Peterborough","http://opendatacommunities.org/id/unitary-authority/peterborough","Peterborough City Council","Children's & Safeguarding","Early Help ASC/CSC","Agency Staff",06/10/2017 00:00:00,30147390,532.84,"Revenue","Reed Specialist Recruitment Limited","External Temporary Staff"
"Peterborough","http://opendatacommunities.org/id/unitary-authority/peterborough","Peterborough City Council","Adults","Independent Sector Placements","Services",06/10/2017 00:00:00,30147393,1292.08,"Revenue","Avery House (Peterborough) t/a Brighterkind","Residential Care"
"Peterborough","http://opendatacommunities.org/id/unitary-authority/peterborough","Peterborough City Council","Adults","Independent Sector Placements","Services",06/10/2017 00:00:00,30147395,939.16,"Revenue","Avery House (Peterborough) t/a Brighterkind","Residential Care"
"Peterborough","http://opendatacommunities.org/id/unitary-authority/peterborough","Peterborough City Council","Adults","Independent Sector Placements","Services",06/10/2017 00:00:00,30147396,1299.08,"Revenue","Avery House (Peterborough) t/a Brighterkind","Residential Care"
"Peterborough","http://opendatacommunities.org/id/unitary-authority/peterborough","Peterborough City Council","Development and Construction","Development Management","Agency Staff",06/10/2017 00:00:00,30147404,1202.5,"Revenue","Reed Specialist Recruitment Limited","External Temporary Staff"
"Peterborough","http://opendatacommunities.org/id/unitary-authority/peterborough","Peterborough City Council","Adults","Independent Sector Placements","Services",06/10/2017 00:00:00,30147412,1235.8,"Revenue","Avery House (Peterborough) t/a Brighterkind","Residential Care"
"Peterborough","http://opendatacommunities.org/id/unitary-authority/peterborough","Peterborough City Council","Adults","Independent Sector Placements","Services",06/10/2017 00:00:00,30147413,1097.88,"Revenue","Avery House (Peterborough) t/a Brighterkind","Residential Care"
"Peterborough","http://opendatacommunities.org/id/unitary-authority/peterborough","Peterborough City Council","Adults","Independent Sector Placements","Services",06/10/2017 00:00:00,30147415,1299.08,"Revenue","Avery House (Peterborough) t/a Brighterkind","Residential Care"
"Peterborough","http://opendatacommunities.org/id/unitary-authority/peterborough","Peterborough City Council","Adults","Independent Sector Placements","Services",06/10/2017 00:00:00,30147418,994.88,"Revenue","Avery House (Peterborough) t/a Brighterkind","Residential Care"
"Peterborough","http://opendatacommunities.org/id/unitary-authority/peterborough","Peterborough City Council","Adults","Independent Sector Placements","Services",06/10/2017 00:00:00,30147434,2210.6,"Revenue","Avery House (Peterborough) t/a Brighterkind","Residential Care"
"Peterborough","http://opendatacommunities.org/id/unitary-authority/peterborough","Peterborough City Council","Adults","Independent Sector Placements","Services",06/10/2017 00:00:00,30147435,1612.64,"Revenue","Avery House (Peterborough) t/a Brighterkind","Residential Care"
"Peterborough","http://opendatacommunities.org/id/unitary-authority/peterborough","Peterborough City Council","Adults","Independent Sector Placements","Services",06/10/2017 00:00:00,30147436,1821.88,"Revenue","Avery House (Peterborough) t/a Brighterkind","Residential Care"
"Peterborough","http://opendatacommunities.org/id/unitary-authority/peterborough","Peterborough City Council","Adults","Independent Sector Placements","Services",06/10/2017 00:00:00,30147437,1284.08,"Revenue","Avery House (Peterborough) t/a Brighterkind","Residential Care"
"Peterborough","http://opendatacommunities.org/id/unitary-authority/peterborough","Peterborough City Council","Adults","Independent Sector Placements","Services",06/10/2017 00:00:00,30147438,1884.08,"Revenue","Avery House (Peterborough) t/a Brighterkind","Residential Care"
"Peterborough","http://opendatacommunities.org/id/unitary-authority/peterborough","Peterborough City Council","Adults","Independent Sector Placements","Services",06/10/2017 00:00:00,30147439,1501.32,"Revenue","Avery House (Peterborough) t/a Brighterkind","Residential Care"
"Peterborough","http://opendatacommunities.org/id/unitary-authority/peterborough","Peterborough City Council","Westcombe Engineering","Westcombe Engineering","Tools, Equipment, Furniture & Materials",06/10/2017 00:00:00,30147464,502.5,"Revenue","Barron Clark Castings Ltd","Items For Resale"
"Peterborough","http://opendatacommunities.org/id/unitary-authority/peterborough","Peterborough City Council","Adults","Independent Sector Placements","Services",06/10/2017 00:00:00,30147472,999.36,"Revenue","Avery House (Peterborough) t/a Brighterkind","Residential Care"
"Peterborough","http://opendatacommunities.org/id/unitary-authority/peterborough","Peterborough City Council","Adults","Independent Sector Placements","Services",06/10/2017 00:00:00,30147508,2421.88,"Revenue","Avery House (Peterborough) t/a Brighterkind","Residential Care"
"Peterborough","http://opendatacommunities.org/id/unitary-authority/peterborough","Peterborough City Council","Adults","Independent Sector Placements","Services",06/10/2017 00:00:00,30147519,3700,"Revenue","Avery House (Peterborough) t/a Brighterkind","Residential Care"
"Peterborough","http://opendatacommunities.org/id/unitary-authority/peterborough","Peterborough City Council","Adults","Independent Sector Placements","Services",06/10/2017 00:00:00,30147520,2450.24,"Revenue","Avery House (Peterborough) t/a Brighterkind","Residential Care"
"Peterborough","http://opendatacommunities.org/id/unitary-authority/peterborough","Peterborough City Council","Adults","Independent Sector Placements","Services",06/10/2017 00:00:00,30147521,1195.64,"Revenue","Avery House (Peterborough) t/a Brighterkind","Residential Care"
"Peterborough","http://opendatacommunities.org/id/unitary-authority/peterborough","Peterborough City Council","Adults","Independent Sector Placements","Services",06/10/2017 00:00:00,30147522,1494.44,"Revenue","Avery House (Peterborough) t/a Brighterkind","Residential Care"
"Peterborough","http://opendatacommunities.org/id/unitary-authority/peterborough","Peterborough City Council","Adults","Independent Sector Placements","Services",06/10/2017 00:00:00,30147530,1942.4,"Revenue","Benell Care Services Ltd","Residential Care"
"Peterborough","http://opendatacommunities.org/id/unitary-authority/peterborough","Peterborough City Council","Communities","Housing","Services",06/10/2017 00:00:00,30147577,525,"Revenue","Eastfield Guesthouse","Homelessness Bed & Breakfast Costs"
"Peterborough","http://opendatacommunities.org/id/unitary-authority/peterborough","Peterborough City Council","Communities","Housing","Services",06/10/2017 00:00:00,30147578,525,"Revenue","Eastfield Guesthouse","Homelessness Bed & Breakfast Costs"
"Peterborough","http://opendatacommunities.org/id/unitary-authority/peterborough","Peterborough City Council","Communities","Housing","Services",06/10/2017 00:00:00,30147579,525,"Revenue","Eastfield Guesthouse","Homelessness Bed & Breakfast Costs"
"Peterborough","http://opendatacommunities.org/id/unitary-authority/peterborough","Peterborough City Council","Communities","Housing","Services",06/10/2017 00:00:00,30147582,525,"Revenue","Eastfield Guesthouse","Homelessness Bed & Breakfast Costs"
"Peterborough","http://opendatacommunities.org/id/unitary-authority/peterborough","Peterborough City Council","Communities","Housing","Services",06/10/2017 00:00:00,30147583,525,"Revenue","Eastfield Guesthouse","Homelessness Bed & Breakfast Costs"
"Peterborough","http://opendatacommunities.org/id/unitary-authority/peterborough","Peterborough City Council","Communities","Housing","Services",06/10/2017 00:00:00,30147584,525,"Revenue","Eastfield Guesthouse","Homelessness Bed & Breakfast Costs"
"Peterborough","http://opendatacommunities.org/id/unitary-authority/peterborough","Peterborough City Council","Communities","Housing","Services",06/10/2017 00:00:00,30147586,525,"Revenue","Eastfield Guesthouse","Homelessness Bed & Breakfast Costs"
"Peterborough","http://opendatacommunities.org/id/unitary-authority/peterborough","Peterborough City Council","Communities","Housing","Services",06/10/2017 00:00:00,30147590,525,"Revenue","Eastfield Guesthouse","Homelessness Bed & Breakfast Costs"
"Peterborough","http://opendatacommunities.org/id/unitary-authority/peterborough","Peterborough City Council","Vivacity/Cultural Services","Cultural Services","Energy Costs",06/10/2017 00:00:00,30147600,6507.34,"Revenue","EDF Energy Networks Ltd","Electricity"
"Peterborough","http://opendatacommunities.org/id/unitary-authority/peterborough","Peterborough City Council","Vivacity/Cultural Services","Cultural Services","Energy Costs",06/10/2017 00:00:00,30147600,3883.21,"Revenue","EDF Energy Networks Ltd","Electricity"
"Peterborough","http://opendatacommunities.org/id/unitary-authority/peterborough","Peterborough City Council","Vivacity/Cultural Services","Cultural Services","Energy Costs",06/10/2017 00:00:00,30147600,3196.14,"Revenue","EDF Energy Networks Ltd","Electricity"
"Peterborough","http://opendatacommunities.org/id/unitary-authority/peterborough","Peterborough City Council","Cemeteries, Cremation & Registrars","Bereavement Service","Energy Costs",06/10/2017 00:00:00,30147600,1476.51,"Revenue","EDF Energy Networks Ltd","Electricity"
"Peterborough","http://opendatacommunities.org/id/unitary-authority/peterborough","Peterborough City Council","Corporate Property","Commercial Propety","Energy Costs",06/10/2017 00:00:00,30147600,4261.08,"Revenue","EDF Energy Networks Ltd","Electricity"
"Peterborough","http://opendatacommunities.org/id/unitary-authority/peterborough","Peterborough City Council","Amey Peterborough & Waste Management","Waste & Operational Svs Mgmt","Services",06/10/2017 00:00:00,30147606,2000,"Revenue","Codename Media Ltd","Advertising"
"Peterborough","http://opendatacommunities.org/id/unitary-authority/peterborough","Peterborough City Council","Adults","Independent Sector Placements","Services",06/10/2017 00:00:00,30147650,1932,"Revenue","SOCIAL CARE SOLUTIONS LTD","Home Care"
"Peterborough","http://opendatacommunities.org/id/unitary-authority/peterborough","Peterborough City Council","Adults","Independent Sector Placements","Services",06/10/2017 00:00:00,30147653,4463.2,"Revenue","SOCIAL CARE SOLUTIONS LTD","Home Care"
"Peterborough","http://opendatacommunities.org/id/unitary-authority/peterborough","Peterborough City Council","Adults","Independent Sector Placements","Services",06/10/2017 00:00:00,30147654,3211.2,"Revenue","SOCIAL CARE SOLUTIONS LTD","Home Care"
"Peterborough","http://opendatacommunities.org/id/unitary-authority/peterborough","Peterborough City Council","Adults","Independent Sector Placements","Services",06/10/2017 00:00:00,30147655,6674.4,"Revenue","SOCIAL CARE SOLUTIONS LTD","Home Care"
"Peterborough","http://opendatacommunities.org/id/unitary-authority/peterborough","Peterborough City Council","Cemeteries, Cremation & Registrars","Bereavement Service","Services",06/10/2017 00:00:00,30147680,845,"Revenue","G D'Amore Ltd","Special Projects"
"Peterborough","http://opendatacommunities.org/id/unitary-authority/peterborough","Peterborough City Council","Corporate","Corporate","Non Revenue",06/10/2017 00:00:00,30147681,11725,"Capital","Vivacity Culture and Leisure","Building And Site Works"
"Peterborough","http://opendatacommunities.org/id/unitary-authority/peterborough","Peterborough City Council","Peterborough Highway Services","Transport & Infrastructure Commissioning","Repair & Maintenance of Buildings",06/10/2017 00:00:00,30147734,18750,"Revenue","Jones Lang LaSalle","Service Charges - Premises"
"Peterborough","http://opendatacommunities.org/id/unitary-authority/peterborough","Peterborough City Council","City Servs & Communications","Markets, Tourism & Events","Rents",06/10/2017 00:00:00,30147735,1834.47,"Revenue","Jones Lang LaSalle","Rent"
"Peterborough","http://opendatacommunities.org/id/unitary-authority/peterborough","Peterborough City Council","Communities","Targeted Youth Service","Services",06/10/2017 00:00:00,30147746,5000,"Revenue","Run A Club Ltd","Programmes"
"Peterborough","http://opendatacommunities.org/id/unitary-authority/peterborough","Peterborough City Council","City Servs & Communications","Parking Services","Water Services",06/10/2017 00:00:00,30147778,619.9,"Revenue","Anglian Water","Water"
"Peterborough","http://opendatacommunities.org/id/unitary-authority/peterborough","Peterborough City Council","Education","PFI","Water Services",06/10/2017 00:00:00,30147778,969.08,"Revenue","Anglian Water","Water"
"Peterborough","http://opendatacommunities.org/id/unitary-authority/peterborough","Peterborough City Council","Vivacity/Cultural Services","Cultural Services","Water Services",06/10/2017 00:00:00,30147778,18881.71,"Revenue","Anglian Water","Water"
"Peterborough","http://opendatacommunities.org/id/unitary-authority/peterborough","Peterborough City Council","Commissioning and Commercial Operations","Clare Lodge","Water Services",06/10/2017 00:00:00,30147778,2090.31,"Revenue","Anglian Water","Water"
"Peterborough","http://opendatacommunities.org/id/unitary-authority/peterborough","Peterborough City Council","Education","Special Educational Needs / Inclusion","Services",06/10/2017 00:00:00,30147833,1792.8,"Revenue","Sonova UK Ltd","Education Expenses"
"Peterborough","http://opendatacommunities.org/id/unitary-authority/peterborough","Peterborough City Council","Vivacity/Cultural Services","Cultural Services","Energy Costs",06/10/2017 00:00:00,30148118,1368.58,"Revenue","British Gas Business","Electricity"
"Peterborough","http://opendatacommunities.org/id/unitary-authority/peterborough","Peterborough City Council","Corporate Property","Office Accomodation","Energy Costs",06/10/2017 00:00:00,30148127,994.51,"Revenue","British Gas Business","Electricity"
"Peterborough","http://opendatacommunities.org/id/unitary-authority/peterborough","Peterborough City Council","Vivacity/Cultural Services","Cultural Services","Energy Costs",06/10/2017 00:00:00,30148127,3563.13,"Revenue","British Gas Business","Electricity"
"Peterborough","http://opendatacommunities.org/id/unitary-authority/peterborough","Peterborough City Council","Communities","Housing","Services",06/10/2017 00:00:00,30148152,507.5,"Revenue","Eastfield Guesthouse","Homelessness Bed & Breakfast Costs"
"Peterborough","http://opendatacommunities.org/id/unitary-authority/peterborough","Peterborough City Council","Communities","Housing","Services",06/10/2017 00:00:00,30148153,507.5,"Revenue","Eastfield Guesthouse","Homelessness Bed & Breakfast Costs"
"Peterborough","http://opendatacommunities.org/id/unitary-authority/peterborough","Peterborough City Council","Communities","Housing","Services",06/10/2017 00:00:00,30148154,507.5,"Revenue","Eastfield Guesthouse","Homelessness Bed & Breakfast Costs"
"Peterborough","http://opendatacommunities.org/id/unitary-authority/peterborough","Peterborough City Council","Communities","Housing","Services",06/10/2017 00:00:00,30148159,525,"Revenue","Eastfield Guesthouse","Homelessness Bed & Breakfast Costs"
"Peterborough","http://opendatacommunities.org/id/unitary-authority/peterborough","Peterborough City Council","Communities","Housing","Services",06/10/2017 00:00:00,30148164,507.5,"Revenue","Eastfield Guesthouse","Homelessness Bed & Breakfast Costs"
"Peterborough","http://opendatacommunities.org/id/unitary-authority/peterborough","Peterborough City Council","Communities","Housing","Services",06/10/2017 00:00:00,30148167,525,"Revenue","Eastfield Guesthouse","Homelessness Bed & Breakfast Costs"
"Peterborough","http://opendatacommunities.org/id/unitary-authority/peterborough","Peterborough City Council","Communities","Housing","Services",06/10/2017 00:00:00,30148172,525,"Revenue","Eastfield Guesthouse","Homelessness Bed & Breakfast Costs"
"Peterborough","http://opendatacommunities.org/id/unitary-authority/peterborough","Peterborough City Council","Westcombe Engineering","Westcombe Engineering","Energy Costs",06/10/2017 00:00:00,30148239,972.5,"Revenue","British Gas Business","Electricity"
"Peterborough","http://opendatacommunities.org/id/unitary-authority/peterborough","Peterborough City Council","Adults","Independent Sector Placements","Services",06/10/2017 00:00:00,30148252,2121.43,"Revenue","LAVENDER HOUSE RESIDENTIAL HOME","Residential Care"
"Peterborough","http://opendatacommunities.org/id/unitary-authority/peterborough","Peterborough City Council","Communities","Housing","Services",06/10/2017 00:00:00,30148363,696.66,"Revenue","Dunham Property Agents","Financial Assistance"
"Peterborough","http://opendatacommunities.org/id/unitary-authority/peterborough","Peterborough City Council","Communities","Housing","Services",06/10/2017 00:00:00,30148364,1200,"Revenue","Redacted Personal Information","Financial Assistance"
"Peterborough","http://opendatacommunities.org/id/unitary-authority/peterborough","Peterborough City Council","Commissioning and Commercial Operations","Clare Lodge","Agency Staff",06/10/2017 00:00:00,30148395,2160,"Revenue","Wrixon Care Services","External Temporary Staff"
"Peterborough","http://opendatacommunities.org/id/unitary-authority/peterborough","Peterborough City Council","Commissioning and Commercial Operations","Clare Lodge","Agency Staff",06/10/2017 00:00:00,30148396,1360,"Revenue","Wrixon Care Services","External Temporary Staff"
"Peterborough","http://opendatacommunities.org/id/unitary-authority/peterborough","Peterborough City Council","Vivacity/Cultural Services","Cultural Services","Energy Costs",06/10/2017 00:00:00,30148410,4021.18,"Revenue","Corona Energy Retail 4 Limited","Gas"
"Peterborough","http://opendatacommunities.org/id/unitary-authority/peterborough","Peterborough City Council","Corporate Property","Office Accomodation","Energy Costs",06/10/2017 00:00:00,30148511,10048.14,"Revenue","EDF Energy Networks Ltd","Electricity"
"Peterborough","http://opendatacommunities.org/id/unitary-authority/peterborough","Peterborough City Council","Corporate Property","Office Accomodation","Energy Costs",06/10/2017 00:00:00,30148511,10798.2,"Revenue","EDF Energy Networks Ltd","Electricity"
"Peterborough","http://opendatacommunities.org/id/unitary-authority/peterborough","Peterborough City Council","Vivacity/Cultural Services","Cultural Services","Energy Costs",06/10/2017 00:00:00,30148511,2831.26,"Revenue","EDF Energy Networks Ltd","Electricity"
"Peterborough","http://opendatacommunities.org/id/unitary-authority/peterborough","Peterborough City Council","City Servs & Communications","Markets, Tourism & Events","Energy Costs",06/10/2017 00:00:00,30148511,851.2,"Revenue","EDF Energy Networks Ltd","Electricity"
"Peterborough","http://opendatacommunities.org/id/unitary-authority/peterborough","Peterborough City Council","City Servs & Communications","Parking Services","Energy Costs",06/10/2017 00:00:00,30148511,3404.79,"Revenue","EDF Energy Networks Ltd","Electricity"
"Peterborough","http://opendatacommunities.org/id/unitary-authority/peterborough","Peterborough City Council","Amey Peterborough & Waste Management","Waste & Operational Svs Mgmt","Energy Costs",06/10/2017 00:00:00,30148511,1594.88,"Revenue","EDF Energy Networks Ltd","Electricity"
"Peterborough","http://opendatacommunities.org/id/unitary-authority/peterborough","Peterborough City Council","Westcombe Engineering","Westcombe Engineering","Energy Costs",06/10/2017 00:00:00,30148521,595.92,"Revenue","Corona Energy Retail 4 Limited","Gas"
"Peterborough","http://opendatacommunities.org/id/unitary-authority/peterborough","Peterborough City Council","Adults","Independent Sector Placements","Services",06/10/2017 00:00:00,30148559,2657.14,"Revenue","LAVENDER HOUSE RESIDENTIAL HOME","Residential Care"
"Peterborough","http://opendatacommunities.org/id/unitary-authority/peterborough","Peterborough City Council","Adults","Independent Sector Placements","Services",06/10/2017 00:00:00,30148560,987.99,"Revenue","Sagecare","Home Care"
"Peterborough","http://opendatacommunities.org/id/unitary-authority/peterborough","Peterborough City Council","Adults","Independent Sector Placements","Services",06/10/2017 00:00:00,30148562,596.44,"Revenue","Sagecare","Home Care"
"Peterborough","http://opendatacommunities.org/id/unitary-authority/peterborough","Peterborough City Council","Adults","Independent Sector Placements","Services",06/10/2017 00:00:00,30148563,823.54,"Revenue","Athena (Ashlynn Grange)","Residential Care"
"Peterborough","http://opendatacommunities.org/id/unitary-authority/peterborough","Peterborough City Council","Adults","Independent Sector Placements","Services",06/10/2017 00:00:00,30148564,1120,"Revenue","Sahara Community Care Services","Home Care"
"Peterborough","http://opendatacommunities.org/id/unitary-authority/peterborough","Peterborough City Council","Adults","Independent Sector Placements","Services",06/10/2017 00:00:00,30148574,900,"Revenue","SOCIAL CARE SOLUTIONS LTD","Home Care"
"Peterborough","http://opendatacommunities.org/id/unitary-authority/peterborough","Peterborough City Council","Adults","Independent Sector Placements","Services",06/10/2017 00:00:00,30148575,900,"Revenue","SOCIAL CARE SOLUTIONS LTD","Home Care"
"Peterborough","http://opendatacommunities.org/id/unitary-authority/peterborough","Peterborough City Council","Adults","Independent Sector Placements","Services",06/10/2017 00:00:00,30148584,1768.92,"Revenue","Ashmere","Residential Care"
"Peterborough","http://opendatacommunities.org/id/unitary-authority/peterborough","Peterborough City Council","Education","Special Educational Needs / Inclusion","Agency Staff",06/10/2017 00:00:00,30148602,4140,"Revenue","Protocol National Ltd","External Temporary Staff"
"Peterborough","http://opendatacommunities.org/id/unitary-authority/peterborough","Peterborough City Council","Peterborough Highway Services","Transport & Infrastructure Commissioning","Services",06/10/2017 00:00:00,30148609,2047.54,"Revenue","Centrebus North Ltd","Contractors"
"Peterborough","http://opendatacommunities.org/id/unitary-authority/peterborough","Peterborough City Council","Adults","Independent Sector Placements","Services",06/10/2017 00:00:00,30148700,1008.48,"Revenue","K2 CARE LTD","Home Care"
"Peterborough","http://opendatacommunities.org/id/unitary-authority/peterborough","Peterborough City Council","Adults","Independent Sector Placements","Services",06/10/2017 00:00:00,30148708,1076.83,"Revenue","K2 CARE LTD","Home Care"
"Peterborough","http://opendatacommunities.org/id/unitary-authority/peterborough","Peterborough City Council","Adults","Independent Sector Placements","Services",06/10/2017 00:00:00,30148714,500.34,"Revenue","K2 CARE LTD","Home Care"
"Peterborough","http://opendatacommunities.org/id/unitary-authority/peterborough","Peterborough City Council","Adults","Independent Sector Placements","Services",06/10/2017 00:00:00,30148719,1071.43,"Revenue","Longueville Court (Barchester)","Residential Care"
"Peterborough","http://opendatacommunities.org/id/unitary-authority/peterborough","Peterborough City Council","Adults","Independent Sector Placements","Services",06/10/2017 00:00:00,30148720,1158.21,"Revenue","Longueville Court (Barchester)","Residential Care"
"Peterborough","http://opendatacommunities.org/id/unitary-authority/peterborough","Peterborough City Council","Adults","Independent Sector Placements","Services",06/10/2017 00:00:00,30148721,1410,"Revenue","Longueville Court (Barchester)","Residential Care"
"Peterborough","http://opendatacommunities.org/id/unitary-authority/peterborough","Peterborough City Council","Public Health","PH Commissioning","Third Party Payments",06/10/2017 00:00:00,30148732,712.89,"Revenue","Graham Young Pharmacy","Third Party Payments - Contract"
"Peterborough","http://opendatacommunities.org/id/unitary-authority/peterborough","Peterborough City Council","Adults","Independent Sector Placements","Services",06/10/2017 00:00:00,30148737,1107.14,"Revenue","Longueville Court (Barchester)","Residential Care"
"Peterborough","http://opendatacommunities.org/id/unitary-authority/peterborough","Peterborough City Council","Adults","Independent Sector Placements","Services",06/10/2017 00:00:00,30148738,1410,"Revenue","Longueville Court (Barchester)","Residential Care"
"Peterborough","http://opendatacommunities.org/id/unitary-authority/peterborough","Peterborough City Council","Adults","Independent Sector Placements","Services",06/10/2017 00:00:00,30148739,1326.07,"Revenue","Longueville Court (Barchester)","Residential Care"
"Peterborough","http://opendatacommunities.org/id/unitary-authority/peterborough","Peterborough City Council","Adults","Independent Sector Placements","Services",06/10/2017 00:00:00,30148772,2328.9,"Revenue","Banya Family Placement Agency","Residential Care"
"Peterborough","http://opendatacommunities.org/id/unitary-authority/peterborough","Peterborough City Council","Adults","Independent Sector Placements","Services",06/10/2017 00:00:00,30148774,2406.53,"Revenue","Banya Family Placement Agency","Residential Care"
"Peterborough","http://opendatacommunities.org/id/unitary-authority/peterborough","Peterborough City Council","Adults","Independent Sector Placements","Services",06/10/2017 00:00:00,30148775,2914.85,"Revenue","Allied Healthcare (UK) Ltd","Home Care"
"Peterborough","http://opendatacommunities.org/id/unitary-authority/peterborough","Peterborough City Council","Adults","Independent Sector Placements","Services",06/10/2017 00:00:00,30148777,2867.47,"Revenue","Allied Healthcare (UK) Ltd","Home Care"
"Peterborough","http://opendatacommunities.org/id/unitary-authority/peterborough","Peterborough City Council","Adults","Independent Sector Placements","Services",06/10/2017 00:00:00,30148779,2100.24,"Revenue","Allied Healthcare (UK) Ltd","Home Care"
"Peterborough","http://opendatacommunities.org/id/unitary-authority/peterborough","Peterborough City Council","Adults","Independent Sector Placements","Services",06/10/2017 00:00:00,30148781,809.14,"Revenue","Allied Healthcare (UK) Ltd","Home Care"
"Peterborough","http://opendatacommunities.org/id/unitary-authority/peterborough","Peterborough City Council","Adults","Independent Sector Placements","Services",06/10/2017 00:00:00,30148787,604.8,"Revenue","Allied Healthcare (UK) Ltd","Home Care"
"Peterborough","http://opendatacommunities.org/id/unitary-authority/peterborough","Peterborough City Council","Adults","Independent Sector Placements","Services",06/10/2017 00:00:00,30148792,1965.46,"Revenue","Allied Healthcare (UK) Ltd","Home Care"
"Peterborough","http://opendatacommunities.org/id/unitary-authority/peterborough","Peterborough City Council","Adults","Independent Sector Placements","Services",06/10/2017 00:00:00,30148802,2336.11,"Revenue","ABOUT ME CARE AND SUPPORT LTD","Home Care"
"Peterborough","http://opendatacommunities.org/id/unitary-authority/peterborough","Peterborough City Council","Adults","Independent Sector Placements","Services",06/10/2017 00:00:00,30148809,10000,"Revenue","Community Care Solutions Ltd","Residential Care"
"Peterborough","http://opendatacommunities.org/id/unitary-authority/peterborough","Peterborough City Council","Adults","Independent Sector Placements","Services",06/10/2017 00:00:00,30148814,2931.04,"Revenue","Boulevard Care Limited","Residential Care"
"Peterborough","http://opendatacommunities.org/id/unitary-authority/peterborough","Peterborough City Council","Adults","Independent Sector Placements","Services",06/10/2017 00:00:00,30148830,-771.43,"Revenue","LAVENDER HOUSE RESIDENTIAL HOME","Residential Care"
"Peterborough","http://opendatacommunities.org/id/unitary-authority/peterborough","Peterborough City Council","Legal & Democratic","Legal Services","Agency Staff",06/10/2017 00:00:00,30148846,1580.4,"Revenue","Reed Specialist Recruitment Limited","External Temporary Staff"
"Peterborough","http://opendatacommunities.org/id/unitary-authority/peterborough","Peterborough City Council","Communities","Housing","Services",06/10/2017 00:00:00,30148857,899.98,"Revenue","Dunham Property Agents","Financial Assistance"
"Peterborough","http://opendatacommunities.org/id/unitary-authority/peterborough","Peterborough City Council","Commissioning and Commercial Operations","Commissioning Team","Services",06/10/2017 00:00:00,30148875,2750,"Revenue","Cross Keys Homes","Consultants Fees"
"Peterborough","http://opendatacommunities.org/id/unitary-authority/peterborough","Peterborough City Council","Adults","Independent Sector Placements","Services",06/10/2017 00:00:00,30148889,504,"Revenue","Thera East Anglia","Day Care"
"Peterborough","http://opendatacommunities.org/id/unitary-authority/peterborough","Peterborough City Council","Adults","Independent Sector Placements","Services",06/10/2017 00:00:00,30148890,504,"Revenue","Thera East Anglia","Day Care"
"Peterborough","http://opendatacommunities.org/id/unitary-authority/peterborough","Peterborough City Council","Adults","Independent Sector Placements","Services",06/10/2017 00:00:00,30148891,504,"Revenue","Thera East Anglia","Day Care"
"Peterborough","http://opendatacommunities.org/id/unitary-authority/peterborough","Peterborough City Council","Adults","Independent Sector Placements","Services",06/10/2017 00:00:00,30148893,1067.6,"Revenue","Westerleigh Nursing Home","Residential Care"
"Peterborough","http://opendatacommunities.org/id/unitary-authority/peterborough","Peterborough City Council","Adults","Independent Sector Placements","Services",06/10/2017 00:00:00,30148894,1069.48,"Revenue","Westerleigh Nursing Home","Residential Care"
"Peterborough","http://opendatacommunities.org/id/unitary-authority/peterborough","Peterborough City Council","Adults","Independent Sector Placements","Services",06/10/2017 00:00:00,30148895,1069.48,"Revenue","Westerleigh Nursing Home","Residential Care"
"Peterborough","http://opendatacommunities.org/id/unitary-authority/peterborough","Peterborough City Council","Adults","Independent Sector Placements","Services",06/10/2017 00:00:00,30148896,1069.48,"Revenue","Westerleigh Nursing Home","Residential Care"
"Peterborough","http://opendatacommunities.org/id/unitary-authority/peterborough","Peterborough City Council","Adults","Independent Sector Placements","Services",06/10/2017 00:00:00,30148897,1069.48,"Revenue","Westerleigh Nursing Home","Residential Care"
"Peterborough","http://opendatacommunities.org/id/unitary-authority/peterborough","Peterborough City Council","Adults","Independent Sector Placements","Services",06/10/2017 00:00:00,30148904,2328.9,"Revenue","Banya Family Placement Agency","Residential Care"
"Peterborough","http://opendatacommunities.org/id/unitary-authority/peterborough","Peterborough City Council","Adults","Independent Sector Placements","Services",06/10/2017 00:00:00,30148905,2406.53,"Revenue","Banya Family Placement Agency","Residential Care"
"Peterborough","http://opendatacommunities.org/id/unitary-authority/peterborough","Peterborough City Council","Adults","Independent Sector Placements","Services",06/10/2017 00:00:00,30148906,2406.53,"Revenue","Banya Family Placement Agency","Residential Care"
"Peterborough","http://opendatacommunities.org/id/unitary-authority/peterborough","Peterborough City Council","Adults","Independent Sector Placements","Services",06/10/2017 00:00:00,30148917,3600,"Revenue","LESTER HALL APARTMENTS LTD","Residential Care"
"Peterborough","http://opendatacommunities.org/id/unitary-authority/peterborough","Peterborough City Council","Adults","Independent Sector Placements","Services",06/10/2017 00:00:00,30148925,2337.52,"Revenue","ATCHISON, MR ALAN","Residential Care"
"Peterborough","http://opendatacommunities.org/id/unitary-authority/peterborough","Peterborough City Council","Adults","Independent Sector Placements","Services",06/10/2017 00:00:00,30148926,4288,"Revenue","ATCHISON, MR ALAN","Residential Care"
"Peterborough","http://opendatacommunities.org/id/unitary-authority/peterborough","Peterborough City Council","Adults","Independent Sector Placements","Services",06/10/2017 00:00:00,30148927,3812.84,"Revenue","ATCHISON, MR ALAN","Residential Care"
"Peterborough","http://opendatacommunities.org/id/unitary-authority/peterborough","Peterborough City Council","Adults","Independent Sector Placements","Services",06/10/2017 00:00:00,30148928,2162.28,"Revenue","ATCHISON, MR ALAN","Residential Care"
"Peterborough","http://opendatacommunities.org/id/unitary-authority/peterborough","Peterborough City Council","Adults","Independent Sector Placements","Services",06/10/2017 00:00:00,30148929,660,"Revenue","ATCHISON, MR ALAN","Day Care"
"Peterborough","http://opendatacommunities.org/id/unitary-authority/peterborough","Peterborough City Council","Adults","Independent Sector Placements","Services",06/10/2017 00:00:00,30148930,3625.08,"Revenue","ATCHISON, MR ALAN","Residential Care"
"Peterborough","http://opendatacommunities.org/id/unitary-authority/peterborough","Peterborough City Council","Adults","Independent Sector Placements","Services",06/10/2017 00:00:00,30148931,1954.32,"Revenue","ATCHISON, MR ALAN","Residential Care"
"Peterborough","http://opendatacommunities.org/id/unitary-authority/peterborough","Peterborough City Council","Adults","Independent Sector Placements","Services",06/10/2017 00:00:00,30148932,1954.32,"Revenue","ATCHISON, MR ALAN","Residential Care"
"Peterborough","http://opendatacommunities.org/id/unitary-authority/peterborough","Peterborough City Council","Adults","Independent Sector Placements","Services",06/10/2017 00:00:00,30148933,3200,"Revenue","ATCHISON, MR ALAN","Residential Care"
"Peterborough","http://opendatacommunities.org/id/unitary-authority/peterborough","Peterborough City Council","Adults","Independent Sector Placements","Services",06/10/2017 00:00:00,30148934,3103.92,"Revenue","ATCHISON, MR ALAN","Residential Care"
"Peterborough","http://opendatacommunities.org/id/unitary-authority/peterborough","Peterborough City Council","Adults","Independent Sector Placements","Services",06/10/2017 00:00:00,30148936,2162.24,"Revenue","ATCHISON, MR ALAN","Residential Care"
"Peterborough","http://opendatacommunities.org/id/unitary-authority/peterborough","Peterborough City Council","Adults","Independent Sector Placements","Services",06/10/2017 00:00:00,30148937,2345.2,"Revenue","ATCHISON, MR ALAN","Residential Care"
"Peterborough","http://opendatacommunities.org/id/unitary-authority/peterborough","Peterborough City Council","Adults","Independent Sector Placements","Services",06/10/2017 00:00:00,30148938,3625.08,"Revenue","ATCHISON, MR ALAN","Residential Care"
"Peterborough","http://opendatacommunities.org/id/unitary-authority/peterborough","Peterborough City Council","Adults","Independent Sector Placements","Services",06/10/2017 00:00:00,30148939,685.28,"Revenue","ATCHISON, MR ALAN","Day Care"
"Peterborough","http://opendatacommunities.org/id/unitary-authority/peterborough","Peterborough City Council","Adults","Independent Sector Placements","Services",06/10/2017 00:00:00,30148941,4904,"Revenue","ATCHISON, MR ALAN","Residential Care"
"Peterborough","http://opendatacommunities.org/id/unitary-authority/peterborough","Peterborough City Council","Adults","Independent Sector Placements","Services",06/10/2017 00:00:00,30148942,6121,"Revenue","ATCHISON, MR ALAN","Residential Care"
"Peterborough","http://opendatacommunities.org/id/unitary-authority/peterborough","Peterborough City Council","Adults","Independent Sector Placements","Services",06/10/2017 00:00:00,30148943,2794.32,"Revenue","ATCHISON, MR ALAN","Residential Care"
"Peterborough","http://opendatacommunities.org/id/unitary-authority/peterborough","Peterborough City Council","Adults","Independent Sector Placements","Services",06/10/2017 00:00:00,30148944,3065.6,"Revenue","ATCHISON, MR ALAN","Residential Care"
"Peterborough","http://opendatacommunities.org/id/unitary-authority/peterborough","Peterborough City Council","Adults","Independent Sector Placements","Services",06/10/2017 00:00:00,30148947,660,"Revenue","ATCHISON, MR ALAN","Day Care"
"Peterborough","http://opendatacommunities.org/id/unitary-authority/peterborough","Peterborough City Council","Adults","Independent Sector Placements","Services",06/10/2017 00:00:00,30148949,5147.48,"Revenue","ATCHISON, MR ALAN","Residential Care"
"Peterborough","http://opendatacommunities.org/id/unitary-authority/peterborough","Peterborough City Council","Adults","Independent Sector Placements","Services",06/10/2017 00:00:00,30148950,5234.52,"Revenue","ATCHISON, MR ALAN","Residential Care"
"Peterborough","http://opendatacommunities.org/id/unitary-authority/peterborough","Peterborough City Council","ICT","ICT","Services",06/10/2017 00:00:00,30148967,12000,"Revenue","Vivacity Culture and Leisure","Computer Software"
"Peterborough","http://opendatacommunities.org/id/unitary-authority/peterborough","Peterborough City Council","Education","Special Educational Needs / Inclusion","Services",06/10/2017 00:00:00,30148985,503.8,"Revenue","Ewing Foundation","Hired Services"
"Peterborough","http://opendatacommunities.org/id/unitary-authority/peterborough","Peterborough City Council","Adults","Home Services Delivery Model","Third Party Payments",06/10/2017 00:00:00,30149012,8259.09,"Revenue","Cross Keys Homes","Grant-Third Party"
"Peterborough","http://opendatacommunities.org/id/unitary-authority/peterborough","Peterborough City Council","Vivacity/Cultural Services","Cultural Services","Services",06/10/2017 00:00:00,30149022,2600,"Revenue","Peterborough Sings","Hired Services"
"Peterborough","http://opendatacommunities.org/id/unitary-authority/peterborough","Peterborough City Council","Public Health","PH Commissioning","Third Party Payments",06/10/2017 00:00:00,30149038,69949,"Revenue","Solutions 4 Health Ltd","Third Party Payments - Contract"
"Peterborough","http://opendatacommunities.org/id/unitary-authority/peterborough","Peterborough City Council","Legal & Democratic","Legal Services","Services",06/10/2017 00:00:00,30149048,558,"Revenue","Freeths LLP","Legal Costs"
"Peterborough","http://opendatacommunities.org/id/unitary-authority/peterborough","Peterborough City Council","Westcombe Engineering","Westcombe Engineering","Services",06/10/2017 00:00:00,30149068,1250,"Revenue","Direct Power","Hired Services"
"Peterborough","http://opendatacommunities.org/id/unitary-authority/peterborough","Peterborough City Council","Commissioning and Commercial Operations","Commissioning","Services",06/10/2017 00:00:00,30149069,531,"Revenue","CAPITA Translation and Interpreting","Interpretation Expenses"
"Peterborough","http://opendatacommunities.org/id/unitary-authority/peterborough","Peterborough City Council","Education","Special Educational Needs / Inclusion","Services",06/10/2017 00:00:00,30149073,1687.5,"Revenue","The National Teaching & Advisory Service","Education Expenses"
"Peterborough","http://opendatacommunities.org/id/unitary-authority/peterborough","Peterborough City Council","Education","Special Educational Needs / Inclusion","Services",06/10/2017 00:00:00,30149074,562.5,"Revenue","The National Teaching & Advisory Service","Education Expenses"
"Peterborough","http://opendatacommunities.org/id/unitary-authority/peterborough","Peterborough City Council","Corporate Property","Office Accomodation","Cleaning & Domestic Supplies",06/10/2017 00:00:00,30149086,1833.24,"Revenue","YMCA Cambridge & Peterborough Ltd","Cleaning"
"Peterborough","http://opendatacommunities.org/id/unitary-authority/peterborough","Peterborough City Council","Adults","Independent Sector Placements","Services",06/10/2017 00:00:00,8000098286,1788.05,"Revenue","Allied Healthcare (UK) Ltd","Home Care"
"Peterborough","http://opendatacommunities.org/id/unitary-authority/peterborough","Peterborough City Council","Adults","Independent Sector Placements","Services",06/10/2017 00:00:00,8000098288,749.66,"Revenue","Allied Healthcare (UK) Ltd","Home Care"
"Peterborough","http://opendatacommunities.org/id/unitary-authority/peterborough","Peterborough City Council","Adults","Independent Sector Placements","Services",06/10/2017 00:00:00,8000098290,1695.17,"Revenue","Allied Healthcare (UK) Ltd","Home Care"
"Peterborough","http://opendatacommunities.org/id/unitary-authority/peterborough","Peterborough City Council","Adults","Independent Sector Placements","Services",06/10/2017 00:00:00,8000098293,1884.1,"Revenue","Allied Healthcare (UK) Ltd","Home Care"
"Peterborough","http://opendatacommunities.org/id/unitary-authority/peterborough","Peterborough City Council","Adults","Independent Sector Placements","Services",06/10/2017 00:00:00,8000098294,643.82,"Revenue","Allied Healthcare (UK) Ltd","Home Care"
"Peterborough","http://opendatacommunities.org/id/unitary-authority/peterborough","Peterborough City Council","Adults","Independent Sector Placements","Services",06/10/2017 00:00:00,8000098299,659.66,"Revenue","Allied Healthcare (UK) Ltd","Home Care"
"Peterborough","http://opendatacommunities.org/id/unitary-authority/peterborough","Peterborough City Council","Adults","Independent Sector Placements","Services",06/10/2017 00:00:00,8000098300,542.02,"Revenue","Allied Healthcare (UK) Ltd","Home Care"
"Peterborough","http://opendatacommunities.org/id/unitary-authority/peterborough","Peterborough City Council","Adults","Independent Sector Placements","Services",06/10/2017 00:00:00,8000098301,688.18,"Revenue","Allied Healthcare (UK) Ltd","Home Care"
"Peterborough","http://opendatacommunities.org/id/unitary-authority/peterborough","Peterborough City Council","Adults","Independent Sector Placements","Services",06/10/2017 00:00:00,8000098473,823.8,"Revenue","Axiom Housing Association","Home Care"
"Peterborough","http://opendatacommunities.org/id/unitary-authority/peterborough","Peterborough City Council","Adults","Independent Sector Placements","Services",06/10/2017 00:00:00,8000098474,823.8,"Revenue","Axiom Housing Association","Home Care"
"Peterborough","http://opendatacommunities.org/id/unitary-authority/peterborough","Peterborough City Council","Adults","Independent Sector Placements","Services",06/10/2017 00:00:00,8000098476,529.5,"Revenue","Axiom Housing Association","Home Care"
"Peterborough","http://opendatacommunities.org/id/unitary-authority/peterborough","Peterborough City Council","Adults","Independent Sector Placements","Services",06/10/2017 00:00:00,8000098483,617.7,"Revenue","Axiom Housing Association","Home Care"
"Peterborough","http://opendatacommunities.org/id/unitary-authority/peterborough","Peterborough City Council","Adults","Independent Sector Placements","Services",06/10/2017 00:00:00,8000098497,588.3,"Revenue","Axiom Housing Association","Home Care"
"Peterborough","http://opendatacommunities.org/id/unitary-authority/peterborough","Peterborough City Council","Adults","Independent Sector Placements","Services",06/10/2017 00:00:00,8000098501,738.24,"Revenue","Axiom Housing Association","Home Care"
"Peterborough","http://opendatacommunities.org/id/unitary-authority/peterborough","Peterborough City Council","Corporate","Corporate","Non Revenue",09/10/2017 00:00:00,30145904,4200,"Capital","Nene Park Trust","Building And Site Works"
"Peterborough","http://opendatacommunities.org/id/unitary-authority/peterborough","Peterborough City Council","Education","Schools Finance","Services",09/10/2017 00:00:00,30145968,1375,"Revenue","Research Machines Plc  (RM)","Computer Software"
"Peterborough","http://opendatacommunities.org/id/unitary-authority/peterborough","Peterborough City Council","Adults","Independent Sector Placements","Services",09/10/2017 00:00:00,30146079,4405.4,"Revenue","OAKFIELD (EASTON MAUDIT) LTD","Residential Care"
"Peterborough","http://opendatacommunities.org/id/unitary-authority/peterborough","Peterborough City Council","Corporate","Corporate","Non Revenue",09/10/2017 00:00:00,30146098,5597.86,"Capital","Servaccomm Redhall Ltd","Building And Site Works"
"Peterborough","http://opendatacommunities.org/id/unitary-authority/peterborough","Peterborough City Council","City Servs & Communications","Markets, Tourism & Events","Services",09/10/2017 00:00:00,30146101,1060,"Revenue","Show and Events Security Ltd","Security"
"Peterborough","http://opendatacommunities.org/id/unitary-authority/peterborough","Peterborough City Council","City Servs & Communications","Regulatory Services","Services",09/10/2017 00:00:00,30146114,2424,"Revenue","APSE","Professional Membership"
"Peterborough","http://opendatacommunities.org/id/unitary-authority/peterborough","Peterborough City Council","Children's & Safeguarding","External Education Placements","Services",09/10/2017 00:00:00,30146279,2220.23,"Revenue","Farcet C.E. (C) Primary School","Out Of Area Education Costs"
"Peterborough","http://opendatacommunities.org/id/unitary-authority/peterborough","Peterborough City Council","Peterborough Highway Services","Transport & Infrastructure Commissioning","Services",09/10/2017 00:00:00,30146319,595,"Revenue","UK Power Networks (operations) Ltd","Contractors"
"Peterborough","http://opendatacommunities.org/id/unitary-authority/peterborough","Peterborough City Council","Commissioning and Commercial Operations","Early Years & Quality Improvement","Interview & Training Expenses",09/10/2017 00:00:00,30146378,834,"Revenue","Fenland First Aid Services Ltd","Training"
"Peterborough","http://opendatacommunities.org/id/unitary-authority/peterborough","Peterborough City Council","Adults","Independent Sector Placements","Services",09/10/2017 00:00:00,30146477,1804.2,"Revenue","THE LODGE TRUST","Residential Care"
"Peterborough","http://opendatacommunities.org/id/unitary-authority/peterborough","Peterborough City Council","Various","Various","Services",09/10/2017 00:00:00,30146700,1684.63,"Revenue","Whistl UK Ltd","Postage"
"Peterborough","http://opendatacommunities.org/id/unitary-authority/peterborough","Peterborough City Council","Adults","Independent Sector Placements","Services",09/10/2017 00:00:00,30147025,2015,"Revenue","Klair House Residential Care Homes","Residential Care"
"Peterborough","http://opendatacommunities.org/id/unitary-authority/peterborough","Peterborough City Council","Adults","Independent Sector Placements","Services",09/10/2017 00:00:00,30147026,1950.02,"Revenue","Bestcare Ltd","Residential Care"
"Peterborough","http://opendatacommunities.org/id/unitary-authority/peterborough","Peterborough City Council","Adults","Block Contracts","Third Party Payments",09/10/2017 00:00:00,30147172,7583.33,"Revenue","Home Group Ltd","Third Party Payments - Contract"
"Peterborough","http://opendatacommunities.org/id/unitary-authority/peterborough","Peterborough City Council","Adults","Independent Sector Placements","Services",09/10/2017 00:00:00,30147341,2181,"Revenue","Southwark Park Nursing Homes - Blenheim Care Centre","Residential Care"
"Peterborough","http://opendatacommunities.org/id/unitary-authority/peterborough","Peterborough City Council","Communities","Community Capacity","Services",09/10/2017 00:00:00,30147684,600,"Revenue","M J Greaves","Contractors"
"Peterborough","http://opendatacommunities.org/id/unitary-authority/peterborough","Peterborough City Council","City Servs & Communications","Markets, Tourism & Events","Energy Costs",09/10/2017 00:00:00,30147925,961.52,"Revenue","British Gas Business","Electricity"
"Peterborough","http://opendatacommunities.org/id/unitary-authority/peterborough","Peterborough City Council","Adults","Independent Sector Placements","Services",09/10/2017 00:00:00,30148440,1516.23,"Revenue","Redacted Personal Information","Adult Social Care Direct Payment"
"Peterborough","http://opendatacommunities.org/id/unitary-authority/peterborough","Peterborough City Council","Corporate","Corporate","Non Revenue",09/10/2017 00:00:00,30148654,126723.01,"Capital","Southview Building Solutions Ltd","Building And Site Works"
"Peterborough","http://opendatacommunities.org/id/unitary-authority/peterborough","Peterborough City Council","Adults","Independent Sector Placements","Services",09/10/2017 00:00:00,30148817,1999.8,"Revenue","Runwood Homes Ltd","Residential Care"
"Peterborough","http://opendatacommunities.org/id/unitary-authority/peterborough","Peterborough City Council","Financial Services","Finance","Agency Staff",09/10/2017 00:00:00,30148831,706.87,"Revenue","Reed Specialist Recruitment Limited","External Temporary Staff"
"Peterborough","http://opendatacommunities.org/id/unitary-authority/peterborough","Peterborough City Council","Peterborough Highway Services","Highway Services - HoS","Agency Staff",09/10/2017 00:00:00,30148833,879.62,"Revenue","Reed Specialist Recruitment Limited","External Temporary Staff"
"Peterborough","http://opendatacommunities.org/id/unitary-authority/peterborough","Peterborough City Council","City Servs & Communications","Regulatory Services","Agency Staff",09/10/2017 00:00:00,30148845,1209.53,"Revenue","Reed Specialist Recruitment Limited","External Temporary Staff"
"Peterborough","http://opendatacommunities.org/id/unitary-authority/peterborough","Peterborough City Council","Corporate","Corporate","Non Revenue",09/10/2017 00:00:00,30148887,6000,"Capital","Gaswise Services Ltd","Grant Payment"
"Peterborough","http://opendatacommunities.org/id/unitary-authority/peterborough","Peterborough City Council","Corporate","Corporate","Non Revenue",09/10/2017 00:00:00,30149019,95936,"Capital","Carillion Construction Limited","Building And Site Works"
"Peterborough","http://opendatacommunities.org/id/unitary-authority/peterborough","Peterborough City Council","Adults","Independent Sector Placements","Services",09/10/2017 00:00:00,30149030,7275.23,"Revenue","Anchor Homes","Residential Care"
"Peterborough","http://opendatacommunities.org/id/unitary-authority/peterborough","Peterborough City Council","Adults","Independent Sector Placements","Services",09/10/2017 00:00:00,30149033,5402.16,"Revenue","Park Vista Care Home","Residential Care"
"Peterborough","http://opendatacommunities.org/id/unitary-authority/peterborough","Peterborough City Council","Corporate","Corporate","Non Revenue",09/10/2017 00:00:00,30149085,505196.72,"Capital","Kier Eastern","Building And Site Works"
"Peterborough","http://opendatacommunities.org/id/unitary-authority/peterborough","Peterborough City Council","Corporate Property","Office Accomodation","Energy Costs",09/10/2017 00:00:00,30149092,730.82,"Revenue","YMCA Cambridge & Peterborough Ltd","Electricity"
"Peterborough","http://opendatacommunities.org/id/unitary-authority/peterborough","Peterborough City Council","Corporate Property","Office Accomodation","Water Services",09/10/2017 00:00:00,30149098,610.19,"Revenue","YMCA Cambridge & Peterborough Ltd","Water"
"Peterborough","http://opendatacommunities.org/id/unitary-authority/peterborough","Peterborough City Council","Corporate Property","Office Accomodation","Premises Insurances",09/10/2017 00:00:00,30149099,657.43,"Revenue","YMCA Cambridge & Peterborough Ltd","Insurance - Premises"
"Peterborough","http://opendatacommunities.org/id/unitary-authority/peterborough","Peterborough City Council","Corporate Property","Office Accomodation","Energy Costs",09/10/2017 00:00:00,30149100,2015.12,"Revenue","YMCA Cambridge & Peterborough Ltd","Gas"
"Peterborough","http://opendatacommunities.org/id/unitary-authority/peterborough","Peterborough City Council","Corporate Property","Office Accomodation","Cleaning & Domestic Supplies",09/10/2017 00:00:00,30149101,5833.01,"Revenue","YMCA Cambridge & Peterborough Ltd","Cleaning"
"Peterborough","http://opendatacommunities.org/id/unitary-authority/peterborough","Peterborough City Council","Corporate Property","Office Accomodation","Energy Costs",09/10/2017 00:00:00,30149102,1984.46,"Revenue","YMCA Cambridge & Peterborough Ltd","Electricity"
"Peterborough","http://opendatacommunities.org/id/unitary-authority/peterborough","Peterborough City Council","Corporate Property","Office Accomodation","Cleaning & Domestic Supplies",09/10/2017 00:00:00,30149103,1579.48,"Revenue","YMCA Cambridge & Peterborough Ltd","Cleaning"
"Peterborough","http://opendatacommunities.org/id/unitary-authority/peterborough","Peterborough City Council","Adults","Independent Sector Placements","Services",09/10/2017 00:00:00,30149104,1648.8,"Revenue","LAVENDER HOUSE RESIDENTIAL HOME","Residential Care"
"Peterborough","http://opendatacommunities.org/id/unitary-authority/peterborough","Peterborough City Council","Adults","Independent Sector Placements","Services",09/10/2017 00:00:00,30149105,2122.71,"Revenue","LAVENDER HOUSE RESIDENTIAL HOME","Residential Care"
"Peterborough","http://opendatacommunities.org/id/unitary-authority/peterborough","Peterborough City Council","Adults","Independent Sector Placements","Services",09/10/2017 00:00:00,30149106,1768.93,"Revenue","LAVENDER HOUSE RESIDENTIAL HOME","Residential Care"
"Peterborough","http://opendatacommunities.org/id/unitary-authority/peterborough","Peterborough City Council","Adults","Independent Sector Placements","Services",09/10/2017 00:00:00,30149107,2051.96,"Revenue","LAVENDER HOUSE RESIDENTIAL HOME","Residential Care"
"Peterborough","http://opendatacommunities.org/id/unitary-authority/peterborough","Peterborough City Council","Adults","Independent Sector Placements","Services",09/10/2017 00:00:00,30149108,3221.1,"Revenue","SOCIAL CARE SOLUTIONS LTD","Home Care"
"Peterborough","http://opendatacommunities.org/id/unitary-authority/peterborough","Peterborough City Council","Adults","Independent Sector Placements","Services",09/10/2017 00:00:00,30149109,6966.72,"Revenue","Autism Care (UK) Ltd","Residential Care"
"Peterborough","http://opendatacommunities.org/id/unitary-authority/peterborough","Peterborough City Council","Adults","Independent Sector Placements","Services",09/10/2017 00:00:00,30149114,1073.7,"Revenue","SOCIAL CARE SOLUTIONS LTD","Home Care"
"Peterborough","http://opendatacommunities.org/id/unitary-authority/peterborough","Peterborough City Council","Adults","Independent Sector Placements","Services",09/10/2017 00:00:00,30149116,3210.4,"Revenue","Longueville Court (Barchester)","Residential Care"
"Peterborough","http://opendatacommunities.org/id/unitary-authority/peterborough","Peterborough City Council","Children's & Safeguarding","Access to Resources & Specialist Commissioning","Services",09/10/2017 00:00:00,30149146,-937.5,"Revenue","Key2","Boarding Out Allowances"
"Peterborough","http://opendatacommunities.org/id/unitary-authority/peterborough","Peterborough City Council","ICT","ICT","Services",09/10/2017 00:00:00,30149167,108289.69,"Revenue","Serco Ltd","Computer Software"
"Peterborough","http://opendatacommunities.org/id/unitary-authority/peterborough","Peterborough City Council","ICT","ICT","Services",09/10/2017 00:00:00,30149168,301469.87,"Revenue","Serco Ltd","Computer Software"
"Peterborough","http://opendatacommunities.org/id/unitary-authority/peterborough","Peterborough City Council","Corporate Items","Corporate Services","Services",09/10/2017 00:00:00,30149176,1014,"Revenue","Pinsent Masons","Legal Costs"
"Peterborough","http://opendatacommunities.org/id/unitary-authority/peterborough","Peterborough City Council","Corporate Items","Corporate Services","Services",09/10/2017 00:00:00,30149205,29441,"Revenue","Inner Circle Consulting","Consultants Fees"
"Peterborough","http://opendatacommunities.org/id/unitary-authority/peterborough","Peterborough City Council","City Servs & Communications","Parking Services","Services",09/10/2017 00:00:00,30149230,5534.69,"Revenue","Cobalt Telephone Technologies Ltd","Contractors"
"Peterborough","http://opendatacommunities.org/id/unitary-authority/peterborough","Peterborough City Council","City Servs & Communications","Parking Services","Services",09/10/2017 00:00:00,30149233,4296.99,"Revenue","Cobalt Telephone Technologies Ltd","Contractors"
"Peterborough","http://opendatacommunities.org/id/unitary-authority/peterborough","Peterborough City Council","Education","School Improvement","Services",09/10/2017 00:00:00,30149235,1080,"Revenue","Families First Peterborough","Grant Payment"
"Peterborough","http://opendatacommunities.org/id/unitary-authority/peterborough","Peterborough City Council","Education","School Improvement","Services",09/10/2017 00:00:00,30149237,1080,"Revenue","Families First Peterborough","Grant Payment"
"Peterborough","http://opendatacommunities.org/id/unitary-authority/peterborough","Peterborough City Council","Adults","Independent Sector Placements","Services",09/10/2017 00:00:00,30149239,3372.8,"Revenue","Select Support Partnerships Limited","Home Care"
"Peterborough","http://opendatacommunities.org/id/unitary-authority/peterborough","Peterborough City Council","Adults","Independent Sector Placements","Services",09/10/2017 00:00:00,30149240,8597.96,"Revenue","Consensus Support Services Ltd","Residential Care"
"Peterborough","http://opendatacommunities.org/id/unitary-authority/peterborough","Peterborough City Council","Adults","Independent Sector Placements","Services",09/10/2017 00:00:00,30149241,1243.13,"Revenue","THE HELPING HANDS GROUP","Day Care"
"Peterborough","http://opendatacommunities.org/id/unitary-authority/peterborough","Peterborough City Council","Adults","Independent Sector Placements","Services",09/10/2017 00:00:00,30149243,1991.25,"Revenue","THE HELPING HANDS GROUP","Day Care"
"Peterborough","http://opendatacommunities.org/id/unitary-authority/peterborough","Peterborough City Council","City Servs & Communications","Parking Services","Services",09/10/2017 00:00:00,30149244,4542.88,"Revenue","Cobalt Telephone Technologies Ltd","Contractors"
"Peterborough","http://opendatacommunities.org/id/unitary-authority/peterborough","Peterborough City Council","Adults","Independent Sector Placements","Services",09/10/2017 00:00:00,30149245,749.81,"Revenue","THE HELPING HANDS GROUP","Day Care"
"Peterborough","http://opendatacommunities.org/id/unitary-authority/peterborough","Peterborough City Council","Adults","Independent Sector Placements","Services",09/10/2017 00:00:00,30149247,796.5,"Revenue","THE HELPING HANDS GROUP","Day Care"
"Peterborough","http://opendatacommunities.org/id/unitary-authority/peterborough","Peterborough City Council","Adults","Independent Sector Placements","Services",09/10/2017 00:00:00,30149248,945,"Revenue","THE HELPING HANDS GROUP","Day Care"
"Peterborough","http://opendatacommunities.org/id/unitary-authority/peterborough","Peterborough City Council","Adults","Independent Sector Placements","Services",09/10/2017 00:00:00,30149249,1830,"Revenue","THE HELPING HANDS GROUP","Day Care"
"Peterborough","http://opendatacommunities.org/id/unitary-authority/peterborough","Peterborough City Council","Corporate","Corporate","Non Revenue",09/10/2017 00:00:00,30149283,331349.65,"Capital","Carillion Construction Limited","Building And Site Works"
"Peterborough","http://opendatacommunities.org/id/unitary-authority/peterborough","Peterborough City Council","Adults","Independent Sector Placements","Services",09/10/2017 00:00:00,30149288,976,"Revenue","THE HELPING HANDS GROUP","Day Care"
"Peterborough","http://opendatacommunities.org/id/unitary-authority/peterborough","Peterborough City Council","Adults","Independent Sector Placements","Services",09/10/2017 00:00:00,30149290,976,"Revenue","THE HELPING HANDS GROUP","Day Care"
"Peterborough","http://opendatacommunities.org/id/unitary-authority/peterborough","Peterborough City Council","Adults","Independent Sector Placements","Services",09/10/2017 00:00:00,30149291,976,"Revenue","THE HELPING HANDS GROUP","Day Care"
"Peterborough","http://opendatacommunities.org/id/unitary-authority/peterborough","Peterborough City Council","Adults","Independent Sector Placements","Services",09/10/2017 00:00:00,30149293,945,"Revenue","THE HELPING HANDS GROUP","Day Care"
"Peterborough","http://opendatacommunities.org/id/unitary-authority/peterborough","Peterborough City Council","Adults","Independent Sector Placements","Services",09/10/2017 00:00:00,30149295,1830,"Revenue","THE HELPING HANDS GROUP","Day Care"
"Peterborough","http://opendatacommunities.org/id/unitary-authority/peterborough","Peterborough City Council","Adults","Independent Sector Placements","Services",09/10/2017 00:00:00,30149297,1041.75,"Revenue","THE HELPING HANDS GROUP","Day Care"
"Peterborough","http://opendatacommunities.org/id/unitary-authority/peterborough","Peterborough City Council","Education","Pupil Referral Unit","Repair & Maintenance of Buildings",09/10/2017 00:00:00,30149298,930,"Revenue","Crossfire Protection Ltd","Premises Maintenance"
"Peterborough","http://opendatacommunities.org/id/unitary-authority/peterborough","Peterborough City Council","Adults","Independent Sector Placements","Services",09/10/2017 00:00:00,30149299,756,"Revenue","THE HELPING HANDS GROUP","Day Care"
"Peterborough","http://opendatacommunities.org/id/unitary-authority/peterborough","Peterborough City Council","Adults","Independent Sector Placements","Services",09/10/2017 00:00:00,30149300,1708,"Revenue","THE HELPING HANDS GROUP","Day Care"
"Peterborough","http://opendatacommunities.org/id/unitary-authority/peterborough","Peterborough City Council","Adults","Independent Sector Placements","Services",09/10/2017 00:00:00,30149301,2878.13,"Revenue","THE HELPING HANDS GROUP","Day Care"
"Peterborough","http://opendatacommunities.org/id/unitary-authority/peterborough","Peterborough City Council","Adults","Independent Sector Placements","Services",09/10/2017 00:00:00,30149302,567,"Revenue","THE HELPING HANDS GROUP","Day Care"
"Peterborough","http://opendatacommunities.org/id/unitary-authority/peterborough","Peterborough City Council","Adults","Independent Sector Placements","Services",09/10/2017 00:00:00,30149304,732,"Revenue","THE HELPING HANDS GROUP","Day Care"
"Peterborough","http://opendatacommunities.org/id/unitary-authority/peterborough","Peterborough City Council","Adults","Independent Sector Placements","Services",09/10/2017 00:00:00,30149305,1830,"Revenue","THE HELPING HANDS GROUP","Day Care"
"Peterborough","http://opendatacommunities.org/id/unitary-authority/peterborough","Peterborough City Council","Children's & Safeguarding","Access to Resources & Specialist Commissioning","Services",09/10/2017 00:00:00,30149314,775,"Revenue","Key2","Boarding Out Allowances"
"Peterborough","http://opendatacommunities.org/id/unitary-authority/peterborough","Peterborough City Council","Children's & Safeguarding","Access to Resources & Specialist Commissioning","Services",09/10/2017 00:00:00,30149316,750,"Revenue","Key2","Boarding Out Allowances"
"Peterborough","http://opendatacommunities.org/id/unitary-authority/peterborough","Peterborough City Council","Corporate Property","Office Accomodation","Rents",09/10/2017 00:00:00,30149334,54019.48,"Revenue","Alps Group Ltd","Rent"
"Peterborough","http://opendatacommunities.org/id/unitary-authority/peterborough","Peterborough City Council","Education","HTS & CSC Transport","Contract Hire and Operating Leases",09/10/2017 00:00:00,8000099304,1341.58,"Revenue","Redacted Personal Information","Hired Transport"
"Peterborough","http://opendatacommunities.org/id/unitary-authority/peterborough","Peterborough City Council","Education","HTS & CSC Transport","Contract Hire and Operating Leases",09/10/2017 00:00:00,8000099305,1414.5,"Revenue","Redacted Personal Information","Hired Transport"
"Peterborough","http://opendatacommunities.org/id/unitary-authority/peterborough","Peterborough City Council","Education","HTS & CSC Transport","Contract Hire and Operating Leases",09/10/2017 00:00:00,8000099309,845.25,"Revenue","Redacted Personal Information","Hired Transport"
"Peterborough","http://opendatacommunities.org/id/unitary-authority/peterborough","Peterborough City Council","Education","HTS & CSC Transport","Contract Hire and Operating Leases",09/10/2017 00:00:00,8000099311,2229.75,"Revenue","Redacted Personal Information","Hired Transport"
"Peterborough","http://opendatacommunities.org/id/unitary-authority/peterborough","Peterborough City Council","Education","HTS & CSC Transport","Contract Hire and Operating Leases",09/10/2017 00:00:00,8000099313,563.25,"Revenue","Redacted Personal Information","Hired Transport"
"Peterborough","http://opendatacommunities.org/id/unitary-authority/peterborough","Peterborough City Council","Children's & Safeguarding","External Education Placements","Services",11/10/2017 00:00:00,30137123,19265.78,"Revenue","Park House School","Boarding Out Allowances"
"Peterborough","http://opendatacommunities.org/id/unitary-authority/peterborough","Peterborough City Council","Children's & Safeguarding","External Education Placements","Services",11/10/2017 00:00:00,30137126,19265.67,"Revenue","Park House School","Boarding Out Allowances"
"Peterborough","http://opendatacommunities.org/id/unitary-authority/peterborough","Peterborough City Council","Children's & Safeguarding","External Education Placements","Services",11/10/2017 00:00:00,30139591,3726,"Revenue","Kirkstone House School","Boarding Out Allowances"
"Peterborough","http://opendatacommunities.org/id/unitary-authority/peterborough","Peterborough City Council","Adults","Independent Sector Placements","Services",11/10/2017 00:00:00,30142816,5199.8,"Revenue","Mencap","Home Care"
"Peterborough","http://opendatacommunities.org/id/unitary-authority/peterborough","Peterborough City Council","Children's & Safeguarding","Commissioning - CSC","Services",11/10/2017 00:00:00,30145125,528,"Revenue","Sahara Community Care Services","Purchased Social Care Services"
"Peterborough","http://opendatacommunities.org/id/unitary-authority/peterborough","Peterborough City Council","Corporate","Corporate","Non Revenue",11/10/2017 00:00:00,30145741,666.28,"Capital","Gresty Land Agency Ltd","Consultants Fees"
"Peterborough","http://opendatacommunities.org/id/unitary-authority/peterborough","Peterborough City Council","Adults","Mental Capacity Act & DoLs","Services",11/10/2017 00:00:00,30145972,1295,"Revenue","SS Psychiatric Services Ltd","Hired Services"
"Peterborough","http://opendatacommunities.org/id/unitary-authority/peterborough","Peterborough City Council","Children's & Safeguarding","Early Help ASC/CSC","Interview & Training Expenses",11/10/2017 00:00:00,30146083,598,"Revenue","MA Education Ltd","Training"
"Peterborough","http://opendatacommunities.org/id/unitary-authority/peterborough","Peterborough City Council","Corporate","Corporate","Non Revenue",11/10/2017 00:00:00,30146100,5640,"Capital","Cloud Technology Solutions","Computer Software"
"Peterborough","http://opendatacommunities.org/id/unitary-authority/peterborough","Peterborough City Council","Adults","Block Contracts","Third Party Payments",11/10/2017 00:00:00,30146226,6730.64,"Revenue","Hales Group Ltd","Third Party Payments - Contract"
"Peterborough","http://opendatacommunities.org/id/unitary-authority/peterborough","Peterborough City Council","Vivacity/Cultural Services","Cultural Services","Services",11/10/2017 00:00:00,30146234,7196.1,"Revenue","Chamberlain Music Education","Hired Services"
"Peterborough","http://opendatacommunities.org/id/unitary-authority/peterborough","Peterborough City Council","Education","Pupil Referral Unit","Agency Staff",11/10/2017 00:00:00,30146317,1035,"Revenue","Teaching Personnel Ltd","Supply Teachers"
"Peterborough","http://opendatacommunities.org/id/unitary-authority/peterborough","Peterborough City Council","HR","HR WFD & Training","Services",11/10/2017 00:00:00,30146332,1795,"Revenue","Clara Learning Ltd","Course Instructors Fees"
"Peterborough","http://opendatacommunities.org/id/unitary-authority/peterborough","Peterborough City Council","Education","HTS & CSC Transport","Contract Hire and Operating Leases",11/10/2017 00:00:00,30146334,1209.2,"Revenue","Centrebus North Ltd","Hired Transport"
"Peterborough","http://opendatacommunities.org/id/unitary-authority/peterborough","Peterborough City Council","Legal & Democratic","Democratic Services","Services",11/10/2017 00:00:00,30146376,1581,"Revenue","Principal Protection Ltd","Civic Events"
"Peterborough","http://opendatacommunities.org/id/unitary-authority/peterborough","Peterborough City Council","Children's & Safeguarding","Children's Social Care","Transport",11/10/2017 00:00:00,30146382,2537.45,"Revenue","R S P LTD","Public Transport"
"Peterborough","http://opendatacommunities.org/id/unitary-authority/peterborough","Peterborough City Council","Peterborough Highway Services","Highway & Drainage Control","Agency Staff",11/10/2017 00:00:00,30146385,1702.8,"Revenue","Matchtech","External Temporary Staff"
"Peterborough","http://opendatacommunities.org/id/unitary-authority/peterborough","Peterborough City Council","Peterborough Highway Services","Highway & Drainage Control","Agency Staff",11/10/2017 00:00:00,30146386,1110,"Revenue","Matchtech","External Temporary Staff"
"Peterborough","http://opendatacommunities.org/id/unitary-authority/peterborough","Peterborough City Council","Westcombe Engineering","Westcombe Engineering","Tools, Equipment, Furniture & Materials",11/10/2017 00:00:00,30146419,760.91,"Revenue","M O 8 Specialities Ltd","Materials"
"Peterborough","http://opendatacommunities.org/id/unitary-authority/peterborough","Peterborough City Council","City Servs & Communications","Markets, Tourism & Events","Services",11/10/2017 00:00:00,30146431,610,"Revenue","Fastsigns Peterborough","Advertising"
"Peterborough","http://opendatacommunities.org/id/unitary-authority/peterborough","Peterborough City Council","Legal & Democratic","Legal Services","Agency Staff",11/10/2017 00:00:00,30146585,1176.94,"Revenue","Venn Group Ltd","External Temporary Staff"
"Peterborough","http://opendatacommunities.org/id/unitary-authority/peterborough","Peterborough City Council","Legal & Democratic","Legal Services","Agency Staff",11/10/2017 00:00:00,30146588,1038.61,"Revenue","Venn Group Ltd","External Temporary Staff"
"Peterborough","http://opendatacommunities.org/id/unitary-authority/peterborough","Peterborough City Council","Legal & Democratic","Legal Services","Agency Staff",11/10/2017 00:00:00,30146590,923.68,"Revenue","Venn Group Ltd","External Temporary Staff"
"Peterborough","http://opendatacommunities.org/id/unitary-authority/peterborough","Peterborough City Council","Legal & Democratic","Legal Services","Agency Staff",11/10/2017 00:00:00,30146595,1026.89,"Revenue","Venn Group Ltd","External Temporary Staff"
"Peterborough","http://opendatacommunities.org/id/unitary-authority/peterborough","Peterborough City Council","Legal & Democratic","Legal Services","Agency Staff",11/10/2017 00:00:00,30146597,1742.04,"Revenue","Venn Group Ltd","External Temporary Staff"
"Peterborough","http://opendatacommunities.org/id/unitary-authority/peterborough","Peterborough City Council","Legal & Democratic","Legal Services","Agency Staff",11/10/2017 00:00:00,30146601,1173.31,"Revenue","Venn Group Ltd","External Temporary Staff"
"Peterborough","http://opendatacommunities.org/id/unitary-authority/peterborough","Peterborough City Council","Legal & Democratic","Legal Services","Agency Staff",11/10/2017 00:00:00,30146606,1008.14,"Revenue","Venn Group Ltd","External Temporary Staff"
"Peterborough","http://opendatacommunities.org/id/unitary-authority/peterborough","Peterborough City Council","Corporate","Corporate","Non Revenue",11/10/2017 00:00:00,30146669,2950,"Capital","Badenoch & Clark Ltd","Consultants Fees"
"Peterborough","http://opendatacommunities.org/id/unitary-authority/peterborough","Peterborough City Council","Public Health","PH Commissioning","Third Party Payments",11/10/2017 00:00:00,30146684,652.16,"Revenue","Imperial College Healthcare NHS Trust","Third Party Payments - Contract"
"Peterborough","http://opendatacommunities.org/id/unitary-authority/peterborough","Peterborough City Council","Peterborough Highway Services","Network and Traffic Management","Services",11/10/2017 00:00:00,30146719,3743.86,"Revenue","Dynniq UK Ltd","Contractors"
"Peterborough","http://opendatacommunities.org/id/unitary-authority/peterborough","Peterborough City Council","Peterborough Highway Services","Network and Traffic Management","Services",11/10/2017 00:00:00,30146720,3677,"Revenue","Dynniq UK Ltd","Contractors"
"Peterborough","http://opendatacommunities.org/id/unitary-authority/peterborough","Peterborough City Council","Education","Special Educational Needs / Inclusion","Agency Staff",11/10/2017 00:00:00,30146722,5060,"Revenue","Protocol National Ltd","External Temporary Staff"
"Peterborough","http://opendatacommunities.org/id/unitary-authority/peterborough","Peterborough City Council","Peterborough Highway Services","Transport & Infrastructure Commissioning","Services",11/10/2017 00:00:00,30146734,7091.08,"Revenue","Stagecoach in Peterborough","Contractors"
"Peterborough","http://opendatacommunities.org/id/unitary-authority/peterborough","Peterborough City Council","Legal & Democratic","Legal Services","Services",11/10/2017 00:00:00,30146755,980.07,"Revenue","The Psychological Service","Jurors/Expert Witnesses"
"Peterborough","http://opendatacommunities.org/id/unitary-authority/peterborough","Peterborough City Council","Adults","Home Services Delivery Model","Services",11/10/2017 00:00:00,30146757,663,"Revenue","Rawheat Heating & Plumbing Eng.","Contractors"
"Peterborough","http://opendatacommunities.org/id/unitary-authority/peterborough","Peterborough City Council","Adults","Home Services Delivery Model","Services",11/10/2017 00:00:00,30146759,833,"Revenue","Rawheat Heating & Plumbing Eng.","Contractors"
"Peterborough","http://opendatacommunities.org/id/unitary-authority/peterborough","Peterborough City Council","Legal & Democratic","Legal Services","Services",11/10/2017 00:00:00,30146854,9245,"Revenue","Bramwell, Mr Christopher","Legal Costs"
"Peterborough","http://opendatacommunities.org/id/unitary-authority/peterborough","Peterborough City Council","Legal & Democratic","Legal Services","Agency Staff",11/10/2017 00:00:00,30146918,2146,"Revenue","Venn Group Ltd","External Temporary Staff"
"Peterborough","http://opendatacommunities.org/id/unitary-authority/peterborough","Peterborough City Council","Legal & Democratic","Legal Services","Agency Staff",11/10/2017 00:00:00,30146919,2146,"Revenue","Venn Group Ltd","External Temporary Staff"
"Peterborough","http://opendatacommunities.org/id/unitary-authority/peterborough","Peterborough City Council","Corporate","Corporate","Non Revenue",11/10/2017 00:00:00,30146921,6490,"Capital","M J Greaves","Grant Payment"
"Peterborough","http://opendatacommunities.org/id/unitary-authority/peterborough","Peterborough City Council","Adults","Independent Sector Placements","Services",11/10/2017 00:00:00,30146949,860,"Revenue","Thera East Anglia","Day Care"
"Peterborough","http://opendatacommunities.org/id/unitary-authority/peterborough","Peterborough City Council","Adults","Independent Sector Placements","Services",11/10/2017 00:00:00,30146950,817,"Revenue","Thera East Anglia","Day Care"
"Peterborough","http://opendatacommunities.org/id/unitary-authority/peterborough","Peterborough City Council","Adults","Independent Sector Placements","Services",11/10/2017 00:00:00,30146956,975,"Revenue","ABBEYGATE REST HOME","Residential Care"
"Peterborough","http://opendatacommunities.org/id/unitary-authority/peterborough","Peterborough City Council","Adults","Independent Sector Placements","Services",11/10/2017 00:00:00,30146957,975,"Revenue","ABBEYGATE REST HOME","Residential Care"
"Peterborough","http://opendatacommunities.org/id/unitary-authority/peterborough","Peterborough City Council","Adults","Independent Sector Placements","Services",11/10/2017 00:00:00,30146982,2440,"Revenue","Thera East Anglia","Day Care"
"Peterborough","http://opendatacommunities.org/id/unitary-authority/peterborough","Peterborough City Council","Adults","Independent Sector Placements","Services",11/10/2017 00:00:00,30146984,2318,"Revenue","Thera East Anglia","Day Care"
"Peterborough","http://opendatacommunities.org/id/unitary-authority/peterborough","Peterborough City Council","Adults","Independent Sector Placements","Services",11/10/2017 00:00:00,30147027,1498.75,"Revenue","MEARS GROUP","Day Care"
"Peterborough","http://opendatacommunities.org/id/unitary-authority/peterborough","Peterborough City Council","Westcombe Engineering","Westcombe Engineering","Tools, Equipment, Furniture & Materials",11/10/2017 00:00:00,30147058,567,"Revenue","EXMOL MANUFACTURING","Items For Resale"
"Peterborough","http://opendatacommunities.org/id/unitary-authority/peterborough","Peterborough City Council","Legal & Democratic","Legal Services","Services",11/10/2017 00:00:00,30147088,1750,"Revenue","Sleight, Mr Nigel","Legal Costs"
"Peterborough","http://opendatacommunities.org/id/unitary-authority/peterborough","Peterborough City Council","Peterborough Highway Services","Transport & Infrastructure Commissioning","Services",11/10/2017 00:00:00,30147138,185197.99,"Revenue","Stagecoach in Peterborough","Contractors"
"Peterborough","http://opendatacommunities.org/id/unitary-authority/peterborough","Peterborough City Council","Corporate Property","Commercial Propety","Third Party Payments",11/10/2017 00:00:00,30147156,178215.33,"Revenue","NPS Peterborough Ltd","Third Party Payments - Contract"
"Peterborough","http://opendatacommunities.org/id/unitary-authority/peterborough","Peterborough City Council","Adults","Independent Sector Placements","Services",11/10/2017 00:00:00,30147206,1465.92,"Revenue","PRIME LIFE LTD (Caenarvon House)","Residential Care"
"Peterborough","http://opendatacommunities.org/id/unitary-authority/peterborough","Peterborough City Council","Adults","Independent Sector Placements","Services",11/10/2017 00:00:00,30147237,1027.36,"Revenue","Maxey House Res Home","Residential Care"
"Peterborough","http://opendatacommunities.org/id/unitary-authority/peterborough","Peterborough City Council","Adults","Independent Sector Placements","Services",11/10/2017 00:00:00,30147238,1821.88,"Revenue","Maxey House Res Home","Residential Care"
"Peterborough","http://opendatacommunities.org/id/unitary-authority/peterborough","Peterborough City Council","Adults","Independent Sector Placements","Services",11/10/2017 00:00:00,30147239,1676.24,"Revenue","Maxey House Res Home","Residential Care"
"Peterborough","http://opendatacommunities.org/id/unitary-authority/peterborough","Peterborough City Council","Adults","Independent Sector Placements","Services",11/10/2017 00:00:00,30147240,1184.6,"Revenue","Maxey House Res Home","Residential Care"
"Peterborough","http://opendatacommunities.org/id/unitary-authority/peterborough","Peterborough City Council","Adults","Independent Sector Placements","Services",11/10/2017 00:00:00,30147241,1123.68,"Revenue","Maxey House Res Home","Residential Care"
"Peterborough","http://opendatacommunities.org/id/unitary-authority/peterborough","Peterborough City Council","Adults","Independent Sector Placements","Services",11/10/2017 00:00:00,30147243,1284.08,"Revenue","Maxey House Res Home","Residential Care"
"Peterborough","http://opendatacommunities.org/id/unitary-authority/peterborough","Peterborough City Council","Adults","Independent Sector Placements","Services",11/10/2017 00:00:00,30147244,1244.68,"Revenue","Maxey House Res Home","Residential Care"
"Peterborough","http://opendatacommunities.org/id/unitary-authority/peterborough","Peterborough City Council","Adults","Independent Sector Placements","Services",11/10/2017 00:00:00,30147245,995.8,"Revenue","Maxey House Res Home","Residential Care"
"Peterborough","http://opendatacommunities.org/id/unitary-authority/peterborough","Peterborough City Council","Adults","Independent Sector Placements","Services",11/10/2017 00:00:00,30147246,1011.84,"Revenue","Maxey House Res Home","Residential Care"
"Peterborough","http://opendatacommunities.org/id/unitary-authority/peterborough","Peterborough City Council","Adults","Independent Sector Placements","Services",11/10/2017 00:00:00,30147249,1279.56,"Revenue","Maxey House Res Home","Residential Care"
"Peterborough","http://opendatacommunities.org/id/unitary-authority/peterborough","Peterborough City Council","Adults","Independent Sector Placements","Services",11/10/2017 00:00:00,30147250,1284.08,"Revenue","Maxey House Res Home","Residential Care"
"Peterborough","http://opendatacommunities.org/id/unitary-authority/peterborough","Peterborough City Council","Children's & Safeguarding","External Education Placements","Services",11/10/2017 00:00:00,30147252,18533.35,"Revenue","Dove Adolescent Services Ltd","Boarding Out Allowances"
"Peterborough","http://opendatacommunities.org/id/unitary-authority/peterborough","Peterborough City Council","Adults","Independent Sector Placements","Agency Staff",11/10/2017 00:00:00,30147291,5293.02,"Revenue","Swim Recruitment","External Temporary Staff"
"Peterborough","http://opendatacommunities.org/id/unitary-authority/peterborough","Peterborough City Council","Adults","Independent Sector Placements","Agency Staff",11/10/2017 00:00:00,30147292,2824.72,"Revenue","Swim Recruitment","External Temporary Staff"
"Peterborough","http://opendatacommunities.org/id/unitary-authority/peterborough","Peterborough City Council","Corporate","Corporate","Non Revenue",11/10/2017 00:00:00,30147372,1395.45,"Capital","Gaswise Services Ltd","Grant Payment"
"Peterborough","http://opendatacommunities.org/id/unitary-authority/peterborough","Peterborough City Council","Corporate","Corporate","Non Revenue",11/10/2017 00:00:00,30147376,3196.2,"Capital","Gaswise Services Ltd","Grant Payment"
"Peterborough","http://opendatacommunities.org/id/unitary-authority/peterborough","Peterborough City Council","Corporate","Corporate","Non Revenue",11/10/2017 00:00:00,30147384,6068.67,"Capital","Casbon Building Services","Grant Payment"
"Peterborough","http://opendatacommunities.org/id/unitary-authority/peterborough","Peterborough City Council","Children's & Safeguarding","External Education Placements","Services",11/10/2017 00:00:00,30147465,1087.43,"Revenue","Blue Mountain Homes","Boarding Out Allowances"
"Peterborough","http://opendatacommunities.org/id/unitary-authority/peterborough","Peterborough City Council","Education","Pupil Referral Unit","Agency Staff",11/10/2017 00:00:00,30147495,4085,"Revenue","Vision for Education Ltd","Supply Teachers"
"Peterborough","http://opendatacommunities.org/id/unitary-authority/peterborough","Peterborough City Council","Corporate","Corporate","Non Revenue",11/10/2017 00:00:00,30148001,1171.51,"Capital","Remark Group","Consultants Fees"
"Peterborough","http://opendatacommunities.org/id/unitary-authority/peterborough","Peterborough City Council","City Servs & Communications","Markets, Tourism & Events","Energy Costs",11/10/2017 00:00:00,30148064,592.91,"Revenue","British Gas Business","Electricity"
"Peterborough","http://opendatacommunities.org/id/unitary-authority/peterborough","Peterborough City Council","Vivacity/Cultural Services","Cultural Services","Energy Costs",11/10/2017 00:00:00,30148065,1428.46,"Revenue","British Gas Business","Electricity"
"Peterborough","http://opendatacommunities.org/id/unitary-authority/peterborough","Peterborough City Council","Vivacity/Cultural Services","Cultural Services","Energy Costs",11/10/2017 00:00:00,30148065,1400.57,"Revenue","British Gas Business","Electricity"
"Peterborough","http://opendatacommunities.org/id/unitary-authority/peterborough","Peterborough City Council","Education","Pupil Referral Unit","Tools, Equipment, Furniture & Materials",11/10/2017 00:00:00,30148246,951,"Revenue","Eastern Shires Purchasing Organisation","Furniture And Equipment"
